Workbook

Sheet Irrigation Settings
A1: controller port | C1: Irrigation Head Location | E1: Minutes | F1: frequency | G1: TIME
A2: color of wire | O2: area delivery | Q2: total water/use
A3: #1 | C3: Orchard Trees & middle garden beds | E3: 20 | F3: S/M/W/F | G3: 01:00:00 | L3: 6 bubbler heads (1.25g/min) | O3: =1.25*6 -> 7.5 | Q3: =E3*O3 -> 150
A5: #2 | C5: Orchard back beds O9-O12 | E5: 10 | F5: S/M/W/F | G5: 01:00:00 | L5: 10 sprinkler heads 1.25 g/m) | O5: =1.25*10 -> 12.5 | Q5: =E5*O5 -> 125
A7: #3 | C7: Orchard Grapes | E7: 20 | F7: S/M/W/F | G7: 01:00:00 | L7: 4 sprinkler heads (2.5 g/m) | O7: =4*2.5 -> 10 | Q7: 200
A9: #4
A11: #5 | C11: Herb & Outside Main Garden | E11: 10 | F11: S/M/W/F | G11: 01:00:00 | L11: 3 sprinkler heads (2.5g/m) | O11: =3*2.5 -> 7.5 | Q11: 75
A13: #6 | C13: Main Garden | E13: 25 | F13: S/M/W/F | G13: 01:00:00 | L13: 18 sprinkler heads (2.5g/m) | O13: =18*2.5 -> 45 | Q13: 1125
A15: #7
A17: #8 | C17: Annex | E17: 20 | F17: S/M/W/F | G17: 01:00:00 | L17: 3 sprinkler heads (2.5g/m) | O17: =3*2.5 -> 7.5 | Q17: 150
A19: #9 | C19: Playground trees | E19: 25 | F19: S/M/W/F | G19: 01:00:00 | L19: 5 sprinkler heads (2.5g/m) | O19: =5*2.5 -> 12.5 | Q19: 312.5
L20: 9 sprinkler heads (2.5g/m) trees | O20: =9*2.5 -> 22.5 | Q20: set by school / maintenance controller
L21: 49 sprinkler heads main garden | Q21: =SUM(Q3:Q19) -> 2137.5 | R21: total per use
M22: controller controlled
H24: =Q21*7 -> 14962.5 | I24: 7 day week | K24: =Q21*3 -> 6412.5 | L24: 3 day week
H26: =H24*4.5 -> 67331.25 | I26: monthly 7 day week | K26: =K24*4.5 -> 28856.25 | L26: monthly 3 day week
E28: monthly fee | H28: =0.023 * H26 -> $1,548.62 | K28: =0.023 * K26 -> $663.69 | M28: cost based on $0.023 per gallon /w sewage fee
E29: yearly fee | H29: =H28*12 -> $18,583.43 | K29: =K28*12 -> $7,964.33

Sheet Annex

Sheet Orchard Layout
H29: shut off valve for orchard up by sidewalk and big stone
H30: #1 | I30: trees and center nozzles
H31: #2 | I31: grape vines
H32: #3 | I32: wooded perimeter

Sheet "Main" Garden Layout

Sheet 2022 - 2023
J1: =((SUBTOTAL(9,J4:J1056))+SUBTOTAL(9,K4:K1056)/16) -> 3080.00
A2: Basic Information | J2: Total weight (lbs) | M2: Fertilize | P2: plant | S2: Air | U2: Rain (inches) | W2: Compost | AA2: Maintenance & Observations
A3: date | B3: am/pm | C3: Teacher | D3: team leader | E3: team # | F3: Volunt. Lead | G3: Task | H3: Produce | I3: location | J3: lbs | K3: oz | L3: loc | M3: fert used | N3: bed location | O3: Next Application | P3: notes | Q3: bed id | R3: apply fert | S3: oF | T3: oC | U3: shed | V3: garden | W3: bin #1 | X3: bin #2 | Y3: bin #3 | Z3: notes | AA3: loc | AB3: action | AC3: notes
A4: 2022-08-01 | C4: volunteers | G4: harvest | H4: grapes | I4: =IF(G4="harvest",L4,IF(G4="plant",Q4,IF(G4="fertilize",N4,IF(G4="maintenance",AA4,IF(G4="observation",AA4,""))))) -> M4,12 | J4: 7 | K4: 8 | L4: M4,12 | M4: =IF(G4="Fertilize",GOTO M4,"") ->  | N4: =IF(G4="Fertilize",GOTO N4,"") ->  | O4: =IF(G4="Fertilize",A4+14,"") ->  | P4: =IF(G4="Plant",GOTO P4,"") ->  | Q4: =IF(G4="Plant",GOTO Q4,"") ->  | R4: =IF(G4="Plant",A4+14,"") ->  | S4: =IF(G4="compost",GOTO S4,"") ->  | T4: =IF(G4="compost",GOTO T4,"") ->  | U4: =IF(G4="compost",GOTO U4,"") ->  | V4: =IF(G4="compost",GOTO V4,"") ->  | W4: =IF(G4="compost",GOTO W4,"") ->  | X4: =IF(G4="compost",GOTO X4,"") ->  | Y4: =IF(G4="compost",GOTO Y4,"") ->  | Z4: =IF(G4="compost",GOTO Z4,"") ->  | AA4: =IF(G4="Maintenance",GOTO AA4,IF(G4="Table",GOTO AA4,"")) ->  | AB4: =IF(G4="Maintenance",GOTO AB4,IF(G4="Table",GOTO AB4,"")) ->  | AC4: =IF(G4="Maintenance",GOTO AC4,IF(G4="Table",GOTO AC4,"")) -> 
A5: 2022-08-01 | C5: volunteers | G5: Fertilize | H5: grapes | I5: M12 | M5: microlife 6-2-4 | N5: M12 | O5: 2022-08-15 | P5: =IF(G5="Plant",GOTO P5,"") ->  | Q5: =IF(G5="Plant",GOTO Q5,"") ->  | S5: =IF(G5="compost",GOTO S5,"") ->  | T5: =IF(G5="compost",GOTO T5,"") ->  | U5: =IF(G5="compost",GOTO U5,"") ->  | V5: =IF(G5="compost",GOTO V5,"") ->  | W5: =IF(G5="compost",GOTO W5,"") ->  | X5: =IF(G5="compost",GOTO X5,"") ->  | Y5: =IF(G5="compost",GOTO Y5,"") ->  | Z5: =IF(G5="compost",GOTO Z5,"") ->  | AA5: =IF(G5="Maintenance",GOTO AA5,IF(G5="Table",GOTO AA5,"")) ->  | AB5: =IF(G5="Maintenance",GOTO AB5,IF(G5="Table",GOTO AB5,"")) ->  | AC5: =IF(G5="Maintenance",GOTO AC5,IF(G5="Table",GOTO AC5,"")) -> 
A6: 2022-08-01 | C6: volunteers | G6: harvest | H6: beans, yard long | I6: m14,3 | J6: 7 | K6: 12 | L6: m14,3 | M6: =IF(G6="Fertilize",GOTO M6,"") ->  | N6: =IF(G6="Fertilize",GOTO N6,"") ->  | P6: =IF(G6="Plant",GOTO P6,"") ->  | Q6: =IF(G6="Plant",GOTO Q6,"") ->  | S6: =IF(G6="compost",GOTO S6,"") ->  | T6: =IF(G6="compost",GOTO T6,"") ->  | U6: =IF(G6="compost",GOTO U6,"") ->  | V6: =IF(G6="compost",GOTO V6,"") ->  | W6: =IF(G6="compost",GOTO W6,"") ->  | X6: =IF(G6="compost",GOTO X6,"") ->  | Y6: =IF(G6="compost",GOTO Y6,"") ->  | Z6: =IF(G6="compost",GOTO Z6,"") ->  | AA6: =IF(G6="Maintenance",GOTO AA6,IF(G6="Table",GOTO AA6,"")) ->  | AB6: =IF(G6="Maintenance",GOTO AB6,IF(G6="Table",GOTO AB6,"")) ->  | AC6: =IF(G6="Maintenance",GOTO AC6,IF(G6="Table",GOTO AC6,"")) -> 
A7: 2022-08-04 | C7: volunteers | G7: harvest | H7: beans, yard long | I7: m14,3 | J7: 3 | K7: 4 | L7: m14,3 | M7: =IF(G7="Fertilize",GOTO M7,"") ->  | N7: =IF(G7="Fertilize",GOTO N7,"") ->  | P7: =IF(G7="Plant",GOTO P7,"") ->  | Q7: =IF(G7="Plant",GOTO Q7,"") ->  | S7: =IF(G7="compost",GOTO S7,"") ->  | T7: =IF(G7="compost",GOTO T7,"") ->  | U7: =IF(G7="compost",GOTO U7,"") ->  | V7: =IF(G7="compost",GOTO V7,"") ->  | W7: =IF(G7="compost",GOTO W7,"") ->  | X7: =IF(G7="compost",GOTO X7,"") ->  | Y7: =IF(G7="compost",GOTO Y7,"") ->  | Z7: =IF(G7="compost",GOTO Z7,"") ->  | AA7: =IF(G7="Maintenance",GOTO AA7,IF(G7="Table",GOTO AA7,"")) ->  | AB7: =IF(G7="Maintenance",GOTO AB7,IF(G7="Table",GOTO AB7,"")) ->  | AC7: =IF(G7="Maintenance",GOTO AC7,IF(G7="Table",GOTO AC7,"")) -> 
A8: 2022-08-04 | C8: volunteers | G8: harvest | H8: okra | I8: m16,15,O11,12 | J8: 2 | K8: 13 | L8: m16,15,O11,12 | M8: =IF(G8="Fertilize",GOTO M8,"") ->  | N8: =IF(G8="Fertilize",GOTO N8,"") ->  | P8: =IF(G8="Plant",GOTO P8,"") ->  | Q8: =IF(G8="Plant",GOTO Q8,"") ->  | S8: =IF(G8="compost",GOTO S8,"") ->  | T8: =IF(G8="compost",GOTO T8,"") ->  | U8: =IF(G8="compost",GOTO U8,"") ->  | V8: =IF(G8="compost",GOTO V8,"") ->  | W8: =IF(G8="compost",GOTO W8,"") ->  | X8: =IF(G8="compost",GOTO X8,"") ->  | Y8: =IF(G8="compost",GOTO Y8,"") ->  | Z8: =IF(G8="compost",GOTO Z8,"") ->  | AA8: =IF(G8="Maintenance",GOTO AA8,IF(G8="Table",GOTO AA8,"")) ->  | AB8: =IF(G8="Maintenance",GOTO AB8,IF(G8="Table",GOTO AB8,"")) ->  | AC8: =IF(G8="Maintenance",GOTO AC8,IF(G8="Table",GOTO AC8,"")) -> 
A9: 2022-08-04 | C9: volunteers | G9: harvest | H9: grapes | I9: M4,12 | J9: 11 | K9: 10 | L9: M4,12 | M9: =IF(G9="Fertilize",GOTO M9,"") ->  | N9: =IF(G9="Fertilize",GOTO N9,"") ->  | P9: =IF(G9="Plant",GOTO P9,"") ->  | Q9: =IF(G9="Plant",GOTO Q9,"") ->  | S9: =IF(G9="compost",GOTO S9,"") ->  | T9: =IF(G9="compost",GOTO T9,"") ->  | U9: =IF(G9="compost",GOTO U9,"") ->  | V9: =IF(G9="compost",GOTO V9,"") ->  | W9: =IF(G9="compost",GOTO W9,"") ->  | X9: =IF(G9="compost",GOTO X9,"") ->  | Y9: =IF(G9="compost",GOTO Y9,"") ->  | Z9: =IF(G9="compost",GOTO Z9,"") ->  | AA9: =IF(G9="Maintenance",GOTO AA9,IF(G9="Table",GOTO AA9,"")) ->  | AB9: =IF(G9="Maintenance",GOTO AB9,IF(G9="Table",GOTO AB9,"")) ->  | AC9: =IF(G9="Maintenance",GOTO AC9,IF(G9="Table",GOTO AC9,"")) -> 
A10: 2022-08-06 | C10: volunteers | G10: harvest | H10: Cucumbers, burpless tendergreens | I10: main | J10: 2 | K10: 11 | L10: main | M10: =IF(G10="Fertilize",GOTO M10,"") ->  | N10: =IF(G10="Fertilize",GOTO N10,"") ->  | P10: =IF(G10="Plant",GOTO P10,"") ->  | Q10: =IF(G10="Plant",GOTO Q10,"") ->  | S10: =IF(G10="compost",GOTO S10,"") ->  | T10: =IF(G10="compost",GOTO T10,"") ->  | U10: =IF(G10="compost",GOTO U10,"") ->  | V10: =IF(G10="compost",GOTO V10,"") ->  | W10: =IF(G10="compost",GOTO W10,"") ->  | X10: =IF(G10="compost",GOTO X10,"") ->  | Y10: =IF(G10="compost",GOTO Y10,"") ->  | Z10: =IF(G10="compost",GOTO Z10,"") ->  | AA10: =IF(G10="Maintenance",GOTO AA10,IF(G10="Table",GOTO AA10,"")) ->  | AB10: =IF(G10="Maintenance",GOTO AB10,IF(G10="Table",GOTO AB10,"")) ->  | AC10: =IF(G10="Maintenance",GOTO AC10,IF(G10="Table",GOTO AC10,"")) -> 
A11: 2022-08-06 | C11: volunteers | G11: harvest | H11: okra | I11: m16,15,O11,12 | J11: 3 | K11: 10 | L11: m16,15,O11,12 | M11: =IF(G11="Fertilize",GOTO M11,"") ->  | N11: =IF(G11="Fertilize",GOTO N11,"") ->  | P11: =IF(G11="Plant",GOTO P11,"") ->  | Q11: =IF(G11="Plant",GOTO Q11,"") ->  | S11: =IF(G11="compost",GOTO S11,"") ->  | T11: =IF(G11="compost",GOTO T11,"") ->  | U11: =IF(G11="compost",GOTO U11,"") ->  | V11: =IF(G11="compost",GOTO V11,"") ->  | W11: =IF(G11="compost",GOTO W11,"") ->  | X11: =IF(G11="compost",GOTO X11,"") ->  | Y11: =IF(G11="compost",GOTO Y11,"") ->  | Z11: =IF(G11="compost",GOTO Z11,"") ->  | AA11: =IF(G11="Maintenance",GOTO AA11,IF(G11="Table",GOTO AA11,"")) ->  | AB11: =IF(G11="Maintenance",GOTO AB11,IF(G11="Table",GOTO AB11,"")) ->  | AC11: =IF(G11="Maintenance",GOTO AC11,IF(G11="Table",GOTO AC11,"")) -> 
A12: 2022-08-06 | C12: volunteers | G12: harvest | H12: beans, yard long | I12: m14,3 | J12: 2 | K12: 9 | L12: m14,3 | M12: =IF(G12="Fertilize",GOTO M12,"") ->  | N12: =IF(G12="Fertilize",GOTO N12,"") ->  | P12: =IF(G12="Plant",GOTO P12,"") ->  | Q12: =IF(G12="Plant",GOTO Q12,"") ->  | S12: =IF(G12="compost",GOTO S12,"") ->  | T12: =IF(G12="compost",GOTO T12,"") ->  | U12: =IF(G12="compost",GOTO U12,"") ->  | V12: =IF(G12="compost",GOTO V12,"") ->  | W12: =IF(G12="compost",GOTO W12,"") ->  | X12: =IF(G12="compost",GOTO X12,"") ->  | Y12: =IF(G12="compost",GOTO Y12,"") ->  | Z12: =IF(G12="compost",GOTO Z12,"") ->  | AA12: =IF(G12="Maintenance",GOTO AA12,IF(G12="Table",GOTO AA12,"")) ->  | AB12: =IF(G12="Maintenance",GOTO AB12,IF(G12="Table",GOTO AB12,"")) ->  | AC12: =IF(G12="Maintenance",GOTO AC12,IF(G12="Table",GOTO AC12,"")) -> 
A13: 2022-08-06 | C13: volunteers | G13: harvest | H13: grapes | I13: M4,12 | J13: 1 | K13: 13 | L13: M4,12 | M13: =IF(G13="Fertilize",GOTO M13,"") ->  | N13: =IF(G13="Fertilize",GOTO N13,"") ->  | P13: =IF(G13="Plant",GOTO P13,"") ->  | Q13: =IF(G13="Plant",GOTO Q13,"") ->  | S13: =IF(G13="compost",GOTO S13,"") ->  | T13: =IF(G13="compost",GOTO T13,"") ->  | U13: =IF(G13="compost",GOTO U13,"") ->  | V13: =IF(G13="compost",GOTO V13,"") ->  | W13: =IF(G13="compost",GOTO W13,"") ->  | X13: =IF(G13="compost",GOTO X13,"") ->  | Y13: =IF(G13="compost",GOTO Y13,"") ->  | Z13: =IF(G13="compost",GOTO Z13,"") ->  | AA13: =IF(G13="Maintenance",GOTO AA13,IF(G13="Table",GOTO AA13,"")) ->  | AB13: =IF(G13="Maintenance",GOTO AB13,IF(G13="Table",GOTO AB13,"")) ->  | AC13: =IF(G13="Maintenance",GOTO AC13,IF(G13="Table",GOTO AC13,"")) -> 
A14: 2022-08-09 | C14: volunteers | G14: harvest | H14: beans, yard long | I14: m14,3 | J14: 4 | K14: 10 | L14: m14,3 | M14: =IF(G14="Fertilize",GOTO M14,"") ->  | N14: =IF(G14="Fertilize",GOTO N14,"") ->  | P14: =IF(G14="Plant",GOTO P14,"") ->  | Q14: =IF(G14="Plant",GOTO Q14,"") ->  | S14: =IF(G14="compost",GOTO S14,"") ->  | T14: =IF(G14="compost",GOTO T14,"") ->  | U14: =IF(G14="compost",GOTO U14,"") ->  | V14: =IF(G14="compost",GOTO V14,"") ->  | W14: =IF(G14="compost",GOTO W14,"") ->  | X14: =IF(G14="compost",GOTO X14,"") ->  | Y14: =IF(G14="compost",GOTO Y14,"") ->  | Z14: =IF(G14="compost",GOTO Z14,"") ->  | AA14: =IF(G14="Maintenance",GOTO AA14,IF(G14="Table",GOTO AA14,"")) ->  | AB14: =IF(G14="Maintenance",GOTO AB14,IF(G14="Table",GOTO AB14,"")) ->  | AC14: =IF(G14="Maintenance",GOTO AC14,IF(G14="Table",GOTO AC14,"")) -> 
A15: 2022-08-09 | C15: volunteers | G15: harvest | H15: okra | I15: m16,15,O11,12 | J15: 4 | K15: 10 | L15: m16,15,O11,12 | M15: =IF(G15="Fertilize",GOTO M15,"") ->  | N15: =IF(G15="Fertilize",GOTO N15,"") ->  | P15: =IF(G15="Plant",GOTO P15,"") ->  | Q15: =IF(G15="Plant",GOTO Q15,"") ->  | S15: =IF(G15="compost",GOTO S15,"") ->  | T15: =IF(G15="compost",GOTO T15,"") ->  | U15: =IF(G15="compost",GOTO U15,"") ->  | V15: =IF(G15="compost",GOTO V15,"") ->  | W15: =IF(G15="compost",GOTO W15,"") ->  | X15: =IF(G15="compost",GOTO X15,"") ->  | Y15: =IF(G15="compost",GOTO Y15,"") ->  | Z15: =IF(G15="compost",GOTO Z15,"") ->  | AA15: =IF(G15="Maintenance",GOTO AA15,IF(G15="Table",GOTO AA15,"")) ->  | AB15: =IF(G15="Maintenance",GOTO AB15,IF(G15="Table",GOTO AB15,"")) ->  | AC15: =IF(G15="Maintenance",GOTO AC15,IF(G15="Table",GOTO AC15,"")) -> 
A16: 2022-08-09 | C16: volunteers | G16: harvest | H16: grapes | I16: M4,12 | J16: 8 | K16: 4 | L16: M4,12 | M16: =IF(G16="Fertilize",GOTO M16,"") ->  | N16: =IF(G16="Fertilize",GOTO N16,"") ->  | P16: =IF(G16="Plant",GOTO P16,"") ->  | Q16: =IF(G16="Plant",GOTO Q16,"") ->  | S16: =IF(G16="compost",GOTO S16,"") ->  | T16: =IF(G16="compost",GOTO T16,"") ->  | U16: =IF(G16="compost",GOTO U16,"") ->  | V16: =IF(G16="compost",GOTO V16,"") ->  | W16: =IF(G16="compost",GOTO W16,"") ->  | X16: =IF(G16="compost",GOTO X16,"") ->  | Y16: =IF(G16="compost",GOTO Y16,"") ->  | Z16: =IF(G16="compost",GOTO Z16,"") ->  | AA16: =IF(G16="Maintenance",GOTO AA16,IF(G16="Table",GOTO AA16,"")) ->  | AB16: =IF(G16="Maintenance",GOTO AB16,IF(G16="Table",GOTO AB16,"")) ->  | AC16: =IF(G16="Maintenance",GOTO AC16,IF(G16="Table",GOTO AC16,"")) -> 
A17: 2022-08-11 | C17: volunteers | G17: harvest | H17: okra | I17: m16,15,O11,12 | J17: 2 | K17: 0 | L17: m16,15,O11,12 | M17: =IF(G17="Fertilize",GOTO M17,"") ->  | N17: =IF(G17="Fertilize",GOTO N17,"") ->  | P17: =IF(G17="Plant",GOTO P17,"") ->  | Q17: =IF(G17="Plant",GOTO Q17,"") ->  | S17: =IF(G17="compost",GOTO S17,"") ->  | T17: =IF(G17="compost",GOTO T17,"") ->  | U17: =IF(G17="compost",GOTO U17,"") ->  | V17: =IF(G17="compost",GOTO V17,"") ->  | W17: =IF(G17="compost",GOTO W17,"") ->  | X17: =IF(G17="compost",GOTO X17,"") ->  | Y17: =IF(G17="compost",GOTO Y17,"") ->  | Z17: =IF(G17="compost",GOTO Z17,"") ->  | AA17: =IF(G17="Maintenance",GOTO AA17,IF(G17="Table",GOTO AA17,"")) ->  | AB17: =IF(G17="Maintenance",GOTO AB17,IF(G17="Table",GOTO AB17,"")) ->  | AC17: =IF(G17="Maintenance",GOTO AC17,IF(G17="Table",GOTO AC17,"")) -> 
A18: 2022-08-11 | C18: volunteers | G18: harvest | H18: beans, yard long | I18: m14,3 | J18: 2 | K18: 12 | L18: m14,3 | M18: =IF(G18="Fertilize",GOTO M18,"") ->  | N18: =IF(G18="Fertilize",GOTO N18,"") ->  | P18: =IF(G18="Plant",GOTO P18,"") ->  | Q18: =IF(G18="Plant",GOTO Q18,"") ->  | S18: =IF(G18="compost",GOTO S18,"") ->  | T18: =IF(G18="compost",GOTO T18,"") ->  | U18: =IF(G18="compost",GOTO U18,"") ->  | V18: =IF(G18="compost",GOTO V18,"") ->  | W18: =IF(G18="compost",GOTO W18,"") ->  | X18: =IF(G18="compost",GOTO X18,"") ->  | Y18: =IF(G18="compost",GOTO Y18,"") ->  | Z18: =IF(G18="compost",GOTO Z18,"") ->  | AA18: =IF(G18="Maintenance",GOTO AA18,IF(G18="Table",GOTO AA18,"")) ->  | AB18: =IF(G18="Maintenance",GOTO AB18,IF(G18="Table",GOTO AB18,"")) ->  | AC18: =IF(G18="Maintenance",GOTO AC18,IF(G18="Table",GOTO AC18,"")) -> 
A19: 2022-08-11 | C19: volunteers | G19: harvest | H19: grapes | I19: M4,12 | J19: 16 | K19: 4 | L19: M4,12 | M19: =IF(G19="Fertilize",GOTO M19,"") ->  | N19: =IF(G19="Fertilize",GOTO N19,"") ->  | P19: =IF(G19="Plant",GOTO P19,"") ->  | Q19: =IF(G19="Plant",GOTO Q19,"") ->  | S19: =IF(G19="compost",GOTO S19,"") ->  | T19: =IF(G19="compost",GOTO T19,"") ->  | U19: =IF(G19="compost",GOTO U19,"") ->  | V19: =IF(G19="compost",GOTO V19,"") ->  | W19: =IF(G19="compost",GOTO W19,"") ->  | X19: =IF(G19="compost",GOTO X19,"") ->  | Y19: =IF(G19="compost",GOTO Y19,"") ->  | Z19: =IF(G19="compost",GOTO Z19,"") ->  | AA19: =IF(G19="Maintenance",GOTO AA19,IF(G19="Table",GOTO AA19,"")) ->  | AB19: =IF(G19="Maintenance",GOTO AB19,IF(G19="Table",GOTO AB19,"")) ->  | AC19: =IF(G19="Maintenance",GOTO AC19,IF(G19="Table",GOTO AC19,"")) -> 
A20: 2022-08-13 | C20: volunteers | G20: harvest | H20: okra | I20: m16,15,O11,12 | J20: 2 | K20: 6 | L20: m16,15,O11,12 | M20: =IF(G20="Fertilize",GOTO M20,"") ->  | N20: =IF(G20="Fertilize",GOTO N20,"") ->  | P20: =IF(G20="Plant",GOTO P20,"") ->  | Q20: =IF(G20="Plant",GOTO Q20,"") ->  | S20: =IF(G20="compost",GOTO S20,"") ->  | T20: =IF(G20="compost",GOTO T20,"") ->  | U20: =IF(G20="compost",GOTO U20,"") ->  | V20: =IF(G20="compost",GOTO V20,"") ->  | W20: =IF(G20="compost",GOTO W20,"") ->  | X20: =IF(G20="compost",GOTO X20,"") ->  | Y20: =IF(G20="compost",GOTO Y20,"") ->  | Z20: =IF(G20="compost",GOTO Z20,"") ->  | AA20: =IF(G20="Maintenance",GOTO AA20,IF(G20="Table",GOTO AA20,"")) ->  | AB20: =IF(G20="Maintenance",GOTO AB20,IF(G20="Table",GOTO AB20,"")) ->  | AC20: =IF(G20="Maintenance",GOTO AC20,IF(G20="Table",GOTO AC20,"")) -> 
A21: 2022-08-13 | C21: volunteers | G21: harvest | H21: peppers | I21: M5 | J21: 0 | K21: 7 | L21: M5 | M21: =IF(G21="Fertilize",GOTO M21,"") ->  | N21: =IF(G21="Fertilize",GOTO N21,"") ->  | P21: =IF(G21="Plant",GOTO P21,"") ->  | Q21: =IF(G21="Plant",GOTO Q21,"") ->  | S21: =IF(G21="compost",GOTO S21,"") ->  | T21: =IF(G21="compost",GOTO T21,"") ->  | U21: =IF(G21="compost",GOTO U21,"") ->  | V21: =IF(G21="compost",GOTO V21,"") ->  | W21: =IF(G21="compost",GOTO W21,"") ->  | X21: =IF(G21="compost",GOTO X21,"") ->  | Y21: =IF(G21="compost",GOTO Y21,"") ->  | Z21: =IF(G21="compost",GOTO Z21,"") ->  | AA21: =IF(G21="Maintenance",GOTO AA21,IF(G21="Table",GOTO AA21,"")) ->  | AB21: =IF(G21="Maintenance",GOTO AB21,IF(G21="Table",GOTO AB21,"")) ->  | AC21: =IF(G21="Maintenance",GOTO AC21,IF(G21="Table",GOTO AC21,"")) -> 
A22: 2022-08-13 | C22: volunteers | G22: harvest | H22: grapes | I22: M4,12 | J22: 8 | K22: 12 | L22: M4,12 | M22: =IF(G22="Fertilize",GOTO M22,"") ->  | N22: =IF(G22="Fertilize",GOTO N22,"") ->  | P22: =IF(G22="Plant",GOTO P22,"") ->  | Q22: =IF(G22="Plant",GOTO Q22,"") ->  | S22: =IF(G22="compost",GOTO S22,"") ->  | T22: =IF(G22="compost",GOTO T22,"") ->  | U22: =IF(G22="compost",GOTO U22,"") ->  | V22: =IF(G22="compost",GOTO V22,"") ->  | W22: =IF(G22="compost",GOTO W22,"") ->  | X22: =IF(G22="compost",GOTO X22,"") ->  | Y22: =IF(G22="compost",GOTO Y22,"") ->  | Z22: =IF(G22="compost",GOTO Z22,"") ->  | AA22: =IF(G22="Maintenance",GOTO AA22,IF(G22="Table",GOTO AA22,"")) ->  | AB22: =IF(G22="Maintenance",GOTO AB22,IF(G22="Table",GOTO AB22,"")) ->  | AC22: =IF(G22="Maintenance",GOTO AC22,IF(G22="Table",GOTO AC22,"")) -> 
A23: 2022-08-13 | C23: volunteers | G23: harvest | H23: beans, yard long | I23: m14,3 | J23: 1 | K23: 6 | L23: m14,3 | M23: =IF(G23="Fertilize",GOTO M23,"") ->  | N23: =IF(G23="Fertilize",GOTO N23,"") ->  | P23: =IF(G23="Plant",GOTO P23,"") ->  | Q23: =IF(G23="Plant",GOTO Q23,"") ->  | S23: =IF(G23="compost",GOTO S23,"") ->  | T23: =IF(G23="compost",GOTO T23,"") ->  | U23: =IF(G23="compost",GOTO U23,"") ->  | V23: =IF(G23="compost",GOTO V23,"") ->  | W23: =IF(G23="compost",GOTO W23,"") ->  | X23: =IF(G23="compost",GOTO X23,"") ->  | Y23: =IF(G23="compost",GOTO Y23,"") ->  | Z23: =IF(G23="compost",GOTO Z23,"") ->  | AA23: =IF(G23="Maintenance",GOTO AA23,IF(G23="Table",GOTO AA23,"")) ->  | AB23: =IF(G23="Maintenance",GOTO AB23,IF(G23="Table",GOTO AB23,"")) ->  | AC23: =IF(G23="Maintenance",GOTO AC23,IF(G23="Table",GOTO AC23,"")) -> 
A24: 2022-08-13 | C24: volunteers | G24: harvest | H24: cucumbers | I24: main | J24: 0 | K24: 4 | L24: main | M24: =IF(G24="Fertilize",GOTO M24,"") ->  | N24: =IF(G24="Fertilize",GOTO N24,"") ->  | P24: =IF(G24="Plant",GOTO P24,"") ->  | Q24: =IF(G24="Plant",GOTO Q24,"") ->  | S24: =IF(G24="compost",GOTO S24,"") ->  | T24: =IF(G24="compost",GOTO T24,"") ->  | U24: =IF(G24="compost",GOTO U24,"") ->  | V24: =IF(G24="compost",GOTO V24,"") ->  | W24: =IF(G24="compost",GOTO W24,"") ->  | X24: =IF(G24="compost",GOTO X24,"") ->  | Y24: =IF(G24="compost",GOTO Y24,"") ->  | Z24: =IF(G24="compost",GOTO Z24,"") ->  | AA24: =IF(G24="Maintenance",GOTO AA24,IF(G24="Table",GOTO AA24,"")) ->  | AB24: =IF(G24="Maintenance",GOTO AB24,IF(G24="Table",GOTO AB24,"")) ->  | AC24: =IF(G24="Maintenance",GOTO AC24,IF(G24="Table",GOTO AC24,"")) -> 
A25: 2022-08-16 | C25: volunteers | G25: harvest | H25: okra | I25: m16,15,O11,12 | J25: 6 | K25: 3 | L25: m16,15,O11,12 | M25: =IF(G25="Fertilize",GOTO M25,"") ->  | N25: =IF(G25="Fertilize",GOTO N25,"") ->  | P25: =IF(G25="Plant",GOTO P25,"") ->  | Q25: =IF(G25="Plant",GOTO Q25,"") ->  | S25: =IF(G25="compost",GOTO S25,"") ->  | T25: =IF(G25="compost",GOTO T25,"") ->  | U25: =IF(G25="compost",GOTO U25,"") ->  | V25: =IF(G25="compost",GOTO V25,"") ->  | W25: =IF(G25="compost",GOTO W25,"") ->  | X25: =IF(G25="compost",GOTO X25,"") ->  | Y25: =IF(G25="compost",GOTO Y25,"") ->  | Z25: =IF(G25="compost",GOTO Z25,"") ->  | AA25: =IF(G25="Maintenance",GOTO AA25,IF(G25="Table",GOTO AA25,"")) ->  | AB25: =IF(G25="Maintenance",GOTO AB25,IF(G25="Table",GOTO AB25,"")) ->  | AC25: =IF(G25="Maintenance",GOTO AC25,IF(G25="Table",GOTO AC25,"")) -> 
A26: 2022-08-16 | C26: volunteers | G26: harvest | H26: beans, yard long | I26: m14,3 | J26: 2 | K26: 1 | L26: m14,3 | M26: =IF(G26="Fertilize",GOTO M26,"") ->  | N26: =IF(G26="Fertilize",GOTO N26,"") ->  | P26: =IF(G26="Plant",GOTO P26,"") ->  | Q26: =IF(G26="Plant",GOTO Q26,"") ->  | S26: =IF(G26="compost",GOTO S26,"") ->  | T26: =IF(G26="compost",GOTO T26,"") ->  | U26: =IF(G26="compost",GOTO U26,"") ->  | V26: =IF(G26="compost",GOTO V26,"") ->  | W26: =IF(G26="compost",GOTO W26,"") ->  | X26: =IF(G26="compost",GOTO X26,"") ->  | Y26: =IF(G26="compost",GOTO Y26,"") ->  | Z26: =IF(G26="compost",GOTO Z26,"") ->  | AA26: =IF(G26="Maintenance",GOTO AA26,IF(G26="Table",GOTO AA26,"")) ->  | AB26: =IF(G26="Maintenance",GOTO AB26,IF(G26="Table",GOTO AB26,"")) ->  | AC26: =IF(G26="Maintenance",GOTO AC26,IF(G26="Table",GOTO AC26,"")) -> 
A27: 2022-08-16 | C27: volunteers | G27: harvest | H27: eggplant | I27: M5 | J27: 2 | K27: 11 | L27: M5 | M27: =IF(G27="Fertilize",GOTO M27,"") ->  | N27: =IF(G27="Fertilize",GOTO N27,"") ->  | P27: =IF(G27="Plant",GOTO P27,"") ->  | Q27: =IF(G27="Plant",GOTO Q27,"") ->  | S27: =IF(G27="compost",GOTO S27,"") ->  | T27: =IF(G27="compost",GOTO T27,"") ->  | U27: =IF(G27="compost",GOTO U27,"") ->  | V27: =IF(G27="compost",GOTO V27,"") ->  | W27: =IF(G27="compost",GOTO W27,"") ->  | X27: =IF(G27="compost",GOTO X27,"") ->  | Y27: =IF(G27="compost",GOTO Y27,"") ->  | Z27: =IF(G27="compost",GOTO Z27,"") ->  | AA27: =IF(G27="Maintenance",GOTO AA27,IF(G27="Table",GOTO AA27,"")) ->  | AB27: =IF(G27="Maintenance",GOTO AB27,IF(G27="Table",GOTO AB27,"")) ->  | AC27: =IF(G27="Maintenance",GOTO AC27,IF(G27="Table",GOTO AC27,"")) -> 
A28: 2022-08-16 | C28: volunteers | G28: harvest | H28: grapes | I28: M4,12 | J28: 22 | K28: 14 | L28: M4,12 | M28: =IF(G28="Fertilize",GOTO M28,"") ->  | N28: =IF(G28="Fertilize",GOTO N28,"") ->  | P28: =IF(G28="Plant",GOTO P28,"") ->  | Q28: =IF(G28="Plant",GOTO Q28,"") ->  | S28: =IF(G28="compost",GOTO S28,"") ->  | T28: =IF(G28="compost",GOTO T28,"") ->  | U28: =IF(G28="compost",GOTO U28,"") ->  | V28: =IF(G28="compost",GOTO V28,"") ->  | W28: =IF(G28="compost",GOTO W28,"") ->  | X28: =IF(G28="compost",GOTO X28,"") ->  | Y28: =IF(G28="compost",GOTO Y28,"") ->  | Z28: =IF(G28="compost",GOTO Z28,"") ->  | AA28: =IF(G28="Maintenance",GOTO AA28,IF(G28="Table",GOTO AA28,"")) ->  | AB28: =IF(G28="Maintenance",GOTO AB28,IF(G28="Table",GOTO AB28,"")) ->  | AC28: =IF(G28="Maintenance",GOTO AC28,IF(G28="Table",GOTO AC28,"")) -> 
A29: 2022-08-16 | C29: volunteers | G29: harvest | H29: peppers | I29: m5,O16 | J29: 0 | K29: 13 | L29: m5,O16 | M29: =IF(G29="Fertilize",GOTO M29,"") ->  | N29: =IF(G29="Fertilize",GOTO N29,"") ->  | P29: =IF(G29="Plant",GOTO P29,"") ->  | Q29: =IF(G29="Plant",GOTO Q29,"") ->  | S29: =IF(G29="compost",GOTO S29,"") ->  | T29: =IF(G29="compost",GOTO T29,"") ->  | U29: =IF(G29="compost",GOTO U29,"") ->  | V29: =IF(G29="compost",GOTO V29,"") ->  | W29: =IF(G29="compost",GOTO W29,"") ->  | X29: =IF(G29="compost",GOTO X29,"") ->  | Y29: =IF(G29="compost",GOTO Y29,"") ->  | Z29: =IF(G29="compost",GOTO Z29,"") ->  | AA29: =IF(G29="Maintenance",GOTO AA29,IF(G29="Table",GOTO AA29,"")) ->  | AB29: =IF(G29="Maintenance",GOTO AB29,IF(G29="Table",GOTO AB29,"")) ->  | AC29: =IF(G29="Maintenance",GOTO AC29,IF(G29="Table",GOTO AC29,"")) -> 
A30: 2022-08-16 | C30: volunteers | G30: harvest | H30: cucumbers | I30: main, orchard | J30: 0 | K30: 12 | L30: main, orchard | M30: =IF(G30="Fertilize",GOTO M30,"") ->  | N30: =IF(G30="Fertilize",GOTO N30,"") ->  | P30: =IF(G30="Plant",GOTO P30,"") ->  | Q30: =IF(G30="Plant",GOTO Q30,"") ->  | S30: =IF(G30="compost",GOTO S30,"") ->  | T30: =IF(G30="compost",GOTO T30,"") ->  | U30: =IF(G30="compost",GOTO U30,"") ->  | V30: =IF(G30="compost",GOTO V30,"") ->  | W30: =IF(G30="compost",GOTO W30,"") ->  | X30: =IF(G30="compost",GOTO X30,"") ->  | Y30: =IF(G30="compost",GOTO Y30,"") ->  | Z30: =IF(G30="compost",GOTO Z30,"") ->  | AA30: =IF(G30="Maintenance",GOTO AA30,IF(G30="Table",GOTO AA30,"")) ->  | AB30: =IF(G30="Maintenance",GOTO AB30,IF(G30="Table",GOTO AB30,"")) ->  | AC30: =IF(G30="Maintenance",GOTO AC30,IF(G30="Table",GOTO AC30,"")) -> 
A31: 2022-08-18 | C31: volunteers | G31: harvest | H31: grapes | I31: M4,12 | J31: 28 | K31: 13 | L31: M4,12 | M31: =IF(G31="Fertilize",GOTO M31,"") ->  | N31: =IF(G31="Fertilize",GOTO N31,"") ->  | P31: =IF(G31="Plant",GOTO P31,"") ->  | Q31: =IF(G31="Plant",GOTO Q31,"") ->  | S31: =IF(G31="compost",GOTO S31,"") ->  | T31: =IF(G31="compost",GOTO T31,"") ->  | U31: =IF(G31="compost",GOTO U31,"") ->  | V31: =IF(G31="compost",GOTO V31,"") ->  | W31: =IF(G31="compost",GOTO W31,"") ->  | X31: =IF(G31="compost",GOTO X31,"") ->  | Y31: =IF(G31="compost",GOTO Y31,"") ->  | Z31: =IF(G31="compost",GOTO Z31,"") ->  | AA31: =IF(G31="Maintenance",GOTO AA31,IF(G31="Table",GOTO AA31,"")) ->  | AB31: =IF(G31="Maintenance",GOTO AB31,IF(G31="Table",GOTO AB31,"")) ->  | AC31: =IF(G31="Maintenance",GOTO AC31,IF(G31="Table",GOTO AC31,"")) -> 
A32: 2022-08-18 | C32: volunteers | G32: harvest | H32: okra | I32: m16,15,O11,12 | J32: 2 | K32: 0 | L32: m16,15,O11,12 | M32: =IF(G32="Fertilize",GOTO M32,"") ->  | N32: =IF(G32="Fertilize",GOTO N32,"") ->  | P32: =IF(G32="Plant",GOTO P32,"") ->  | Q32: =IF(G32="Plant",GOTO Q32,"") ->  | S32: =IF(G32="compost",GOTO S32,"") ->  | T32: =IF(G32="compost",GOTO T32,"") ->  | U32: =IF(G32="compost",GOTO U32,"") ->  | V32: =IF(G32="compost",GOTO V32,"") ->  | W32: =IF(G32="compost",GOTO W32,"") ->  | X32: =IF(G32="compost",GOTO X32,"") ->  | Y32: =IF(G32="compost",GOTO Y32,"") ->  | Z32: =IF(G32="compost",GOTO Z32,"") ->  | AA32: =IF(G32="Maintenance",GOTO AA32,IF(G32="Table",GOTO AA32,"")) ->  | AB32: =IF(G32="Maintenance",GOTO AB32,IF(G32="Table",GOTO AB32,"")) ->  | AC32: =IF(G32="Maintenance",GOTO AC32,IF(G32="Table",GOTO AC32,"")) -> 
A33: 2022-08-18 | C33: volunteers | G33: harvest | H33: cucumbers | I33: main, orchard | J33: 0 | K33: 10 | L33: main, orchard | M33: =IF(G33="Fertilize",GOTO M33,"") ->  | N33: =IF(G33="Fertilize",GOTO N33,"") ->  | P33: =IF(G33="Plant",GOTO P33,"") ->  | Q33: =IF(G33="Plant",GOTO Q33,"") ->  | S33: =IF(G33="compost",GOTO S33,"") ->  | T33: =IF(G33="compost",GOTO T33,"") ->  | U33: =IF(G33="compost",GOTO U33,"") ->  | V33: =IF(G33="compost",GOTO V33,"") ->  | W33: =IF(G33="compost",GOTO W33,"") ->  | X33: =IF(G33="compost",GOTO X33,"") ->  | Y33: =IF(G33="compost",GOTO Y33,"") ->  | Z33: =IF(G33="compost",GOTO Z33,"") ->  | AA33: =IF(G33="Maintenance",GOTO AA33,IF(G33="Table",GOTO AA33,"")) ->  | AB33: =IF(G33="Maintenance",GOTO AB33,IF(G33="Table",GOTO AB33,"")) ->  | AC33: =IF(G33="Maintenance",GOTO AC33,IF(G33="Table",GOTO AC33,"")) -> 
A34: 2022-08-18 | C34: volunteers | G34: harvest | H34: beans, yard long | I34: m14,3 | J34: 2 | K34: 0 | L34: m14,3 | M34: =IF(G34="Fertilize",GOTO M34,"") ->  | N34: =IF(G34="Fertilize",GOTO N34,"") ->  | P34: =IF(G34="Plant",GOTO P34,"") ->  | Q34: =IF(G34="Plant",GOTO Q34,"") ->  | S34: =IF(G34="compost",GOTO S34,"") ->  | T34: =IF(G34="compost",GOTO T34,"") ->  | U34: =IF(G34="compost",GOTO U34,"") ->  | V34: =IF(G34="compost",GOTO V34,"") ->  | W34: =IF(G34="compost",GOTO W34,"") ->  | X34: =IF(G34="compost",GOTO X34,"") ->  | Y34: =IF(G34="compost",GOTO Y34,"") ->  | Z34: =IF(G34="compost",GOTO Z34,"") ->  | AA34: =IF(G34="Maintenance",GOTO AA34,IF(G34="Table",GOTO AA34,"")) ->  | AB34: =IF(G34="Maintenance",GOTO AB34,IF(G34="Table",GOTO AB34,"")) ->  | AC34: =IF(G34="Maintenance",GOTO AC34,IF(G34="Table",GOTO AC34,"")) -> 
A35: 2022-08-20 | C35: volunteers | G35: harvest | H35: grapes | I35: M4,12 | J35: 3 | K35: 15 | L35: M4,12 | M35: =IF(G35="Fertilize",GOTO M35,"") ->  | N35: =IF(G35="Fertilize",GOTO N35,"") ->  | P35: =IF(G35="Plant",GOTO P35,"") ->  | Q35: =IF(G35="Plant",GOTO Q35,"") ->  | S35: =IF(G35="compost",GOTO S35,"") ->  | T35: =IF(G35="compost",GOTO T35,"") ->  | U35: =IF(G35="compost",GOTO U35,"") ->  | V35: =IF(G35="compost",GOTO V35,"") ->  | W35: =IF(G35="compost",GOTO W35,"") ->  | X35: =IF(G35="compost",GOTO X35,"") ->  | Y35: =IF(G35="compost",GOTO Y35,"") ->  | Z35: =IF(G35="compost",GOTO Z35,"") ->  | AA35: =IF(G35="Maintenance",GOTO AA35,IF(G35="Table",GOTO AA35,"")) ->  | AB35: =IF(G35="Maintenance",GOTO AB35,IF(G35="Table",GOTO AB35,"")) ->  | AC35: =IF(G35="Maintenance",GOTO AC35,IF(G35="Table",GOTO AC35,"")) -> 
A36: 2022-08-20 | C36: volunteers | G36: harvest | H36: okra | I36: main, orchard | J36: 2 | K36: 1 | L36: main, orchard | M36: =IF(G36="Fertilize",GOTO M36,"") ->  | N36: =IF(G36="Fertilize",GOTO N36,"") ->  | O36: =IF(G36="Fertilize",A36+14,"") ->  | P36: =IF(G36="Plant",GOTO P36,"") ->  | Q36: =IF(G36="Plant",GOTO Q36,"") ->  | R36: =IF(G36="Plant",A36+14,"") ->  | S36: =IF(G36="compost",GOTO S36,"") ->  | T36: =IF(G36="compost",GOTO T36,"") ->  | U36: =IF(G36="compost",GOTO U36,"") ->  | V36: =IF(G36="compost",GOTO V36,"") ->  | W36: =IF(G36="compost",GOTO W36,"") ->  | X36: =IF(G36="compost",GOTO X36,"") ->  | Y36: =IF(G36="compost",GOTO Y36,"") ->  | Z36: =IF(G36="compost",GOTO Z36,"") ->  | AA36: =IF(G36="Maintenance",GOTO AA36,IF(G36="Table",GOTO AA36,"")) ->  | AB36: =IF(G36="Maintenance",GOTO AB36,IF(G36="Table",GOTO AB36,"")) ->  | AC36: =IF(G36="Maintenance",GOTO AC36,IF(G36="Table",GOTO AC36,"")) -> 
A37: 2022-08-20 | C37: volunteers | G37: harvest | H37: beans, yard long | I37: m14,3 | J37: 0 | K37: 13 | L37: m14,3 | M37: =IF(G37="Fertilize",GOTO M37,"") ->  | N37: =IF(G37="Fertilize",GOTO N37,"") ->  | P37: =IF(G37="Plant",GOTO P37,"") ->  | Q37: =IF(G37="Plant",GOTO Q37,"") ->  | S37: =IF(G37="compost",GOTO S37,"") ->  | T37: =IF(G37="compost",GOTO T37,"") ->  | U37: =IF(G37="compost",GOTO U37,"") ->  | V37: =IF(G37="compost",GOTO V37,"") ->  | W37: =IF(G37="compost",GOTO W37,"") ->  | X37: =IF(G37="compost",GOTO X37,"") ->  | Y37: =IF(G37="compost",GOTO Y37,"") ->  | Z37: =IF(G37="compost",GOTO Z37,"") ->  | AA37: =IF(G37="Maintenance",GOTO AA37,IF(G37="Table",GOTO AA37,"")) ->  | AB37: =IF(G37="Maintenance",GOTO AB37,IF(G37="Table",GOTO AB37,"")) ->  | AC37: =IF(G37="Maintenance",GOTO AC37,IF(G37="Table",GOTO AC37,"")) -> 
A38: 2022-08-23 | C38: volunteers | G38: harvest | H38: okra | I38: m16,15,O11,12 | J38: 3 | K38: 7 | L38: m16,15,O11,12 | M38: =IF(G38="Fertilize",GOTO M38,"") ->  | N38: =IF(G38="Fertilize",GOTO N38,"") ->  | P38: =IF(G38="Plant",GOTO P38,"") ->  | Q38: =IF(G38="Plant",GOTO Q38,"") ->  | S38: =IF(G38="compost",GOTO S38,"") ->  | T38: =IF(G38="compost",GOTO T38,"") ->  | U38: =IF(G38="compost",GOTO U38,"") ->  | V38: =IF(G38="compost",GOTO V38,"") ->  | W38: =IF(G38="compost",GOTO W38,"") ->  | X38: =IF(G38="compost",GOTO X38,"") ->  | Y38: =IF(G38="compost",GOTO Y38,"") ->  | Z38: =IF(G38="compost",GOTO Z38,"") ->  | AA38: =IF(G38="Maintenance",GOTO AA38,IF(G38="Table",GOTO AA38,"")) ->  | AB38: =IF(G38="Maintenance",GOTO AB38,IF(G38="Table",GOTO AB38,"")) ->  | AC38: =IF(G38="Maintenance",GOTO AC38,IF(G38="Table",GOTO AC38,"")) -> 
A39: 2022-08-23 | C39: volunteers | G39: harvest | H39: beans, yard long | I39: m14,3 | J39: 2 | K39: 0 | L39: m14,3 | M39: =IF(G39="Fertilize",GOTO M39,"") ->  | N39: =IF(G39="Fertilize",GOTO N39,"") ->  | P39: =IF(G39="Plant",GOTO P39,"") ->  | Q39: =IF(G39="Plant",GOTO Q39,"") ->  | S39: =IF(G39="compost",GOTO S39,"") ->  | T39: =IF(G39="compost",GOTO T39,"") ->  | U39: =IF(G39="compost",GOTO U39,"") ->  | V39: =IF(G39="compost",GOTO V39,"") ->  | W39: =IF(G39="compost",GOTO W39,"") ->  | X39: =IF(G39="compost",GOTO X39,"") ->  | Y39: =IF(G39="compost",GOTO Y39,"") ->  | Z39: =IF(G39="compost",GOTO Z39,"") ->  | AA39: =IF(G39="Maintenance",GOTO AA39,IF(G39="Table",GOTO AA39,"")) ->  | AB39: =IF(G39="Maintenance",GOTO AB39,IF(G39="Table",GOTO AB39,"")) ->  | AC39: =IF(G39="Maintenance",GOTO AC39,IF(G39="Table",GOTO AC39,"")) -> 
A40: 2022-08-25 | C40: volunteers | G40: harvest | H40: eggplant | I40: m5 | J40: 6 | K40: 3 | L40: m5 | M40: =IF(G40="Fertilize",GOTO M40,"") ->  | N40: =IF(G40="Fertilize",GOTO N40,"") ->  | P40: =IF(G40="Plant",GOTO P40,"") ->  | Q40: =IF(G40="Plant",GOTO Q40,"") ->  | S40: =IF(G40="compost",GOTO S40,"") ->  | T40: =IF(G40="compost",GOTO T40,"") ->  | U40: =IF(G40="compost",GOTO U40,"") ->  | V40: =IF(G40="compost",GOTO V40,"") ->  | W40: =IF(G40="compost",GOTO W40,"") ->  | X40: =IF(G40="compost",GOTO X40,"") ->  | Y40: =IF(G40="compost",GOTO Y40,"") ->  | Z40: =IF(G40="compost",GOTO Z40,"") ->  | AA40: =IF(G40="Maintenance",GOTO AA40,IF(G40="Table",GOTO AA40,"")) ->  | AB40: =IF(G40="Maintenance",GOTO AB40,IF(G40="Table",GOTO AB40,"")) ->  | AC40: =IF(G40="Maintenance",GOTO AC40,IF(G40="Table",GOTO AC40,"")) -> 
A41: 2022-08-25 | C41: volunteers | G41: harvest | H41: beans, yard long | I41: m14,3 | J41: 0 | K41: 10 | L41: m14,3 | M41: =IF(G41="Fertilize",GOTO M41,"") ->  | N41: =IF(G41="Fertilize",GOTO N41,"") ->  | P41: =IF(G41="Plant",GOTO P41,"") ->  | Q41: =IF(G41="Plant",GOTO Q41,"") ->  | S41: =IF(G41="compost",GOTO S41,"") ->  | T41: =IF(G41="compost",GOTO T41,"") ->  | U41: =IF(G41="compost",GOTO U41,"") ->  | V41: =IF(G41="compost",GOTO V41,"") ->  | W41: =IF(G41="compost",GOTO W41,"") ->  | X41: =IF(G41="compost",GOTO X41,"") ->  | Y41: =IF(G41="compost",GOTO Y41,"") ->  | Z41: =IF(G41="compost",GOTO Z41,"") ->  | AA41: =IF(G41="Maintenance",GOTO AA41,IF(G41="Table",GOTO AA41,"")) ->  | AB41: =IF(G41="Maintenance",GOTO AB41,IF(G41="Table",GOTO AB41,"")) ->  | AC41: =IF(G41="Maintenance",GOTO AC41,IF(G41="Table",GOTO AC41,"")) -> 
A42: 2022-08-25 | C42: volunteers | G42: harvest | H42: okra | I42: main, orchard | J42: 1 | K42: 4 | L42: main, orchard | M42: =IF(G42="Fertilize",GOTO M42,"") ->  | N42: =IF(G42="Fertilize",GOTO N42,"") ->  | P42: =IF(G42="Plant",GOTO P42,"") ->  | Q42: =IF(G42="Plant",GOTO Q42,"") ->  | S42: =IF(G42="compost",GOTO S42,"") ->  | T42: =IF(G42="compost",GOTO T42,"") ->  | U42: =IF(G42="compost",GOTO U42,"") ->  | V42: =IF(G42="compost",GOTO V42,"") ->  | W42: =IF(G42="compost",GOTO W42,"") ->  | X42: =IF(G42="compost",GOTO X42,"") ->  | Y42: =IF(G42="compost",GOTO Y42,"") ->  | Z42: =IF(G42="compost",GOTO Z42,"") ->  | AA42: =IF(G42="Maintenance",GOTO AA42,IF(G42="Table",GOTO AA42,"")) ->  | AB42: =IF(G42="Maintenance",GOTO AB42,IF(G42="Table",GOTO AB42,"")) ->  | AC42: =IF(G42="Maintenance",GOTO AC42,IF(G42="Table",GOTO AC42,"")) -> 
A43: 2022-08-25 | C43: volunteers | G43: harvest | H43: squash, summer | I43: M13 | J43: 0 | K43: 8 | L43: M13 | M43: =IF(G43="Fertilize",GOTO M43,"") ->  | N43: =IF(G43="Fertilize",GOTO N43,"") ->  | P43: =IF(G43="Plant",GOTO P43,"") ->  | Q43: =IF(G43="Plant",GOTO Q43,"") ->  | S43: =IF(G43="compost",GOTO S43,"") ->  | T43: =IF(G43="compost",GOTO T43,"") ->  | U43: =IF(G43="compost",GOTO U43,"") ->  | V43: =IF(G43="compost",GOTO V43,"") ->  | W43: =IF(G43="compost",GOTO W43,"") ->  | X43: =IF(G43="compost",GOTO X43,"") ->  | Y43: =IF(G43="compost",GOTO Y43,"") ->  | Z43: =IF(G43="compost",GOTO Z43,"") ->  | AA43: =IF(G43="Maintenance",GOTO AA43,IF(G43="Table",GOTO AA43,"")) ->  | AB43: =IF(G43="Maintenance",GOTO AB43,IF(G43="Table",GOTO AB43,"")) ->  | AC43: =IF(G43="Maintenance",GOTO AC43,IF(G43="Table",GOTO AC43,"")) -> 
A44: 2022-08-25 | C44: volunteers | G44: harvest | H44: peppers | I44: m5 | J44: 0 | K44: 13 | L44: m5 | M44: =IF(G44="Fertilize",GOTO M44,"") ->  | N44: =IF(G44="Fertilize",GOTO N44,"") ->  | P44: =IF(G44="Plant",GOTO P44,"") ->  | Q44: =IF(G44="Plant",GOTO Q44,"") ->  | S44: =IF(G44="compost",GOTO S44,"") ->  | T44: =IF(G44="compost",GOTO T44,"") ->  | U44: =IF(G44="compost",GOTO U44,"") ->  | V44: =IF(G44="compost",GOTO V44,"") ->  | W44: =IF(G44="compost",GOTO W44,"") ->  | X44: =IF(G44="compost",GOTO X44,"") ->  | Y44: =IF(G44="compost",GOTO Y44,"") ->  | Z44: =IF(G44="compost",GOTO Z44,"") ->  | AA44: =IF(G44="Maintenance",GOTO AA44,IF(G44="Table",GOTO AA44,"")) ->  | AB44: =IF(G44="Maintenance",GOTO AB44,IF(G44="Table",GOTO AB44,"")) ->  | AC44: =IF(G44="Maintenance",GOTO AC44,IF(G44="Table",GOTO AC44,"")) -> 
A45: 2022-08-25 | C45: volunteers | G45: plant | H45: tomatoes | I45: M5 | J45: =IF(G45="Harvest",GOTO J45,"") ->  | K45: =IF(G45="Harvest",GOTO K45,"") ->  | M45: =IF(G45="Fertilize",GOTO M45,"") ->  | N45: =IF(G45="Fertilize",GOTO N45,"") ->  | P45: transplant 4 with cages | Q45: M5 | R45: 2022-09-08 | S45: =IF(G45="compost",GOTO S45,"") ->  | T45: =IF(G45="compost",GOTO T45,"") ->  | U45: =IF(G45="compost",GOTO U45,"") ->  | V45: =IF(G45="compost",GOTO V45,"") ->  | W45: =IF(G45="compost",GOTO W45,"") ->  | X45: =IF(G45="compost",GOTO X45,"") ->  | Y45: =IF(G45="compost",GOTO Y45,"") ->  | Z45: =IF(G45="compost",GOTO Z45,"") ->  | AA45: =IF(G45="Maintenance",GOTO AA45,IF(G45="Table",GOTO AA45,"")) ->  | AB45: =IF(G45="Maintenance",GOTO AB45,IF(G45="Table",GOTO AB45,"")) ->  | AC45: =IF(G45="Maintenance",GOTO AC45,IF(G45="Table",GOTO AC45,"")) -> 
A46: 2022-08-27 | C46: volunteers | G46: harvest | H46: beans, yard long | I46: m14 | J46: 0 | K46: 13 | L46: m14 | M46: =IF(G46="Fertilize",GOTO M46,"") ->  | N46: =IF(G46="Fertilize",GOTO N46,"") ->  | P46: =IF(G46="Plant",GOTO P46,"") ->  | Q46: =IF(G46="Plant",GOTO Q46,"") ->  | S46: =IF(G46="compost",GOTO S46,"") ->  | T46: =IF(G46="compost",GOTO T46,"") ->  | U46: =IF(G46="compost",GOTO U46,"") ->  | V46: =IF(G46="compost",GOTO V46,"") ->  | W46: =IF(G46="compost",GOTO W46,"") ->  | X46: =IF(G46="compost",GOTO X46,"") ->  | Y46: =IF(G46="compost",GOTO Y46,"") ->  | Z46: =IF(G46="compost",GOTO Z46,"") ->  | AA46: =IF(G46="Maintenance",GOTO AA46,IF(G46="Table",GOTO AA46,"")) ->  | AB46: =IF(G46="Maintenance",GOTO AB46,IF(G46="Table",GOTO AB46,"")) ->  | AC46: =IF(G46="Maintenance",GOTO AC46,IF(G46="Table",GOTO AC46,"")) -> 
A47: 2022-08-27 | C47: volunteers | G47: harvest | H47: okra | I47: m16,15,O11,12 | J47: 1 | K47: 10 | L47: m16,15,O11,12 | M47: =IF(G47="Fertilize",GOTO M47,"") ->  | N47: =IF(G47="Fertilize",GOTO N47,"") ->  | P47: =IF(G47="Plant",GOTO P47,"") ->  | Q47: =IF(G47="Plant",GOTO Q47,"") ->  | S47: =IF(G47="compost",GOTO S47,"") ->  | T47: =IF(G47="compost",GOTO T47,"") ->  | U47: =IF(G47="compost",GOTO U47,"") ->  | V47: =IF(G47="compost",GOTO V47,"") ->  | W47: =IF(G47="compost",GOTO W47,"") ->  | X47: =IF(G47="compost",GOTO X47,"") ->  | Y47: =IF(G47="compost",GOTO Y47,"") ->  | Z47: =IF(G47="compost",GOTO Z47,"") ->  | AA47: =IF(G47="Maintenance",GOTO AA47,IF(G47="Table",GOTO AA47,"")) ->  | AB47: =IF(G47="Maintenance",GOTO AB47,IF(G47="Table",GOTO AB47,"")) ->  | AC47: =IF(G47="Maintenance",GOTO AC47,IF(G47="Table",GOTO AC47,"")) -> 
A48: 2022-08-27 | C48: volunteers | G48: harvest | H48: peppers | I48: m5 | J48: 0 | K48: 6 | L48: m5 | M48: =IF(G48="Fertilize",GOTO M48,"") ->  | N48: =IF(G48="Fertilize",GOTO N48,"") ->  | P48: =IF(G48="Plant",GOTO P48,"") ->  | Q48: =IF(G48="Plant",GOTO Q48,"") ->  | S48: =IF(G48="compost",GOTO S48,"") ->  | T48: =IF(G48="compost",GOTO T48,"") ->  | U48: =IF(G48="compost",GOTO U48,"") ->  | V48: =IF(G48="compost",GOTO V48,"") ->  | W48: =IF(G48="compost",GOTO W48,"") ->  | X48: =IF(G48="compost",GOTO X48,"") ->  | Y48: =IF(G48="compost",GOTO Y48,"") ->  | Z48: =IF(G48="compost",GOTO Z48,"") ->  | AA48: =IF(G48="Maintenance",GOTO AA48,IF(G48="Table",GOTO AA48,"")) ->  | AB48: =IF(G48="Maintenance",GOTO AB48,IF(G48="Table",GOTO AB48,"")) ->  | AC48: =IF(G48="Maintenance",GOTO AC48,IF(G48="Table",GOTO AC48,"")) -> 
A49: 2022-08-27 | C49: volunteers | G49: maintenance, support | I49: Main | M49: =IF(G49="Fertilize",GOTO M49,"") ->  | N49: =IF(G49="Fertilize",GOTO N49,"") ->  | P49: =IF(G49="Plant",GOTO P49,"") ->  | Q49: =IF(G49="Plant",GOTO Q49,"") ->  | S49: =IF(G49="compost",GOTO S49,"") ->  | T49: =IF(G49="compost",GOTO T49,"") ->  | U49: =IF(G49="compost",GOTO U49,"") ->  | V49: =IF(G49="compost",GOTO V49,"") ->  | W49: =IF(G49="compost",GOTO W49,"") ->  | X49: =IF(G49="compost",GOTO X49,"") ->  | Y49: =IF(G49="compost",GOTO Y49,"") ->  | Z49: =IF(G49="compost",GOTO Z49,"") ->  | AA49: Shed | AB49: applied wood sealer to tables | AC49: non-toxic sealant preservative
A50: 2022-08-30 | C50: volunteers | G50: harvest | H50: beans, yard long | I50: m14 | J50: 1 | K50: 8 | L50: m14 | M50: =IF(G50="Fertilize",GOTO M50,"") ->  | N50: =IF(G50="Fertilize",GOTO N50,"") ->  | P50: =IF(G50="Plant",GOTO P50,"") ->  | Q50: =IF(G50="Plant",GOTO Q50,"") ->  | S50: =IF(G50="compost",GOTO S50,"") ->  | T50: =IF(G50="compost",GOTO T50,"") ->  | U50: =IF(G50="compost",GOTO U50,"") ->  | V50: =IF(G50="compost",GOTO V50,"") ->  | W50: =IF(G50="compost",GOTO W50,"") ->  | X50: =IF(G50="compost",GOTO X50,"") ->  | Y50: =IF(G50="compost",GOTO Y50,"") ->  | Z50: =IF(G50="compost",GOTO Z50,"") ->  | AA50: =IF(G50="Maintenance",GOTO AA50,IF(G50="Table",GOTO AA50,"")) ->  | AB50: =IF(G50="Maintenance",GOTO AB50,IF(G50="Table",GOTO AB50,"")) ->  | AC50: =IF(G50="Maintenance",GOTO AC50,IF(G50="Table",GOTO AC50,"")) -> 
A51: 2022-08-30 | C51: volunteers | G51: harvest | H51: okra | I51: m16,15,O11,12 | J51: 3 | K51: 0 | L51: m16,15,O11,12 | M51: =IF(G51="Fertilize",GOTO M51,"") ->  | N51: =IF(G51="Fertilize",GOTO N51,"") ->  | P51: =IF(G51="Plant",GOTO P51,"") ->  | Q51: =IF(G51="Plant",GOTO Q51,"") ->  | S51: =IF(G51="compost",GOTO S51,"") ->  | T51: =IF(G51="compost",GOTO T51,"") ->  | U51: =IF(G51="compost",GOTO U51,"") ->  | V51: =IF(G51="compost",GOTO V51,"") ->  | W51: =IF(G51="compost",GOTO W51,"") ->  | X51: =IF(G51="compost",GOTO X51,"") ->  | Y51: =IF(G51="compost",GOTO Y51,"") ->  | Z51: =IF(G51="compost",GOTO Z51,"") ->  | AA51: =IF(G51="Maintenance",GOTO AA51,IF(G51="Table",GOTO AA51,"")) ->  | AB51: =IF(G51="Maintenance",GOTO AB51,IF(G51="Table",GOTO AB51,"")) ->  | AC51: =IF(G51="Maintenance",GOTO AC51,IF(G51="Table",GOTO AC51,"")) -> 
A52: 2022-09-01 | C52: volunteers | G52: harvest | H52: okra | I52: m16,15,O11,12 | J52: 1 | K52: 6 | L52: m16,15,O11,12 | M52: =IF(G52="Fertilize",GOTO M52,"") ->  | N52: =IF(G52="Fertilize",GOTO N52,"") ->  | P52: =IF(G52="Plant",GOTO P52,"") ->  | Q52: =IF(G52="Plant",GOTO Q52,"") ->  | S52: =IF(G52="compost",GOTO S52,"") ->  | T52: =IF(G52="compost",GOTO T52,"") ->  | U52: =IF(G52="compost",GOTO U52,"") ->  | V52: =IF(G52="compost",GOTO V52,"") ->  | W52: =IF(G52="compost",GOTO W52,"") ->  | X52: =IF(G52="compost",GOTO X52,"") ->  | Y52: =IF(G52="compost",GOTO Y52,"") ->  | Z52: =IF(G52="compost",GOTO Z52,"") ->  | AA52: =IF(G52="Maintenance",GOTO AA52,IF(G52="Table",GOTO AA52,"")) ->  | AB52: =IF(G52="Maintenance",GOTO AB52,IF(G52="Table",GOTO AB52,"")) ->  | AC52: =IF(G52="Maintenance",GOTO AC52,IF(G52="Table",GOTO AC52,"")) -> 
A53: 2022-09-01 | C53: volunteers | G53: harvest | H53: peppers | I53: m5 | J53: 0 | K53: 4 | L53: m5 | M53: =IF(G53="Fertilize",GOTO M53,"") ->  | N53: =IF(G53="Fertilize",GOTO N53,"") ->  | P53: =IF(G53="Plant",GOTO P53,"") ->  | Q53: =IF(G53="Plant",GOTO Q53,"") ->  | S53: =IF(G53="compost",GOTO S53,"") ->  | T53: =IF(G53="compost",GOTO T53,"") ->  | U53: =IF(G53="compost",GOTO U53,"") ->  | V53: =IF(G53="compost",GOTO V53,"") ->  | W53: =IF(G53="compost",GOTO W53,"") ->  | X53: =IF(G53="compost",GOTO X53,"") ->  | Y53: =IF(G53="compost",GOTO Y53,"") ->  | Z53: =IF(G53="compost",GOTO Z53,"") ->  | AA53: =IF(G53="Maintenance",GOTO AA53,IF(G53="Table",GOTO AA53,"")) ->  | AB53: =IF(G53="Maintenance",GOTO AB53,IF(G53="Table",GOTO AB53,"")) ->  | AC53: =IF(G53="Maintenance",GOTO AC53,IF(G53="Table",GOTO AC53,"")) -> 
A54: 2022-09-01 | C54: volunteers | G54: harvest | H54: beans, yard long | I54: M14 | J54: 0 | K54: 6 | L54: M14 | M54: =IF(G54="Fertilize",GOTO M54,"") ->  | N54: =IF(G54="Fertilize",GOTO N54,"") ->  | P54: =IF(G54="Plant",GOTO P54,"") ->  | Q54: =IF(G54="Plant",GOTO Q54,"") ->  | S54: =IF(G54="compost",GOTO S54,"") ->  | T54: =IF(G54="compost",GOTO T54,"") ->  | U54: =IF(G54="compost",GOTO U54,"") ->  | V54: =IF(G54="compost",GOTO V54,"") ->  | W54: =IF(G54="compost",GOTO W54,"") ->  | X54: =IF(G54="compost",GOTO X54,"") ->  | Y54: =IF(G54="compost",GOTO Y54,"") ->  | Z54: =IF(G54="compost",GOTO Z54,"") ->  | AA54: =IF(G54="Maintenance",GOTO AA54,IF(G54="Table",GOTO AA54,"")) ->  | AB54: =IF(G54="Maintenance",GOTO AB54,IF(G54="Table",GOTO AB54,"")) ->  | AC54: =IF(G54="Maintenance",GOTO AC54,IF(G54="Table",GOTO AC54,"")) -> 
A55: 2022-09-03 | C55: volunteers | G55: harvest | H55: okra | I55: m16,15,O11,12 | J55: 2 | K55: 6 | L55: m16,15,O11,12 | M55: =IF(G55="Fertilize",GOTO M55,"") ->  | N55: =IF(G55="Fertilize",GOTO N55,"") ->  | P55: =IF(G55="Plant",GOTO P55,"") ->  | Q55: =IF(G55="Plant",GOTO Q55,"") ->  | S55: =IF(G55="compost",GOTO S55,"") ->  | T55: =IF(G55="compost",GOTO T55,"") ->  | U55: =IF(G55="compost",GOTO U55,"") ->  | V55: =IF(G55="compost",GOTO V55,"") ->  | W55: =IF(G55="compost",GOTO W55,"") ->  | X55: =IF(G55="compost",GOTO X55,"") ->  | Y55: =IF(G55="compost",GOTO Y55,"") ->  | Z55: =IF(G55="compost",GOTO Z55,"") ->  | AA55: =IF(G55="Maintenance",GOTO AA55,IF(G55="Table",GOTO AA55,"")) ->  | AB55: =IF(G55="Maintenance",GOTO AB55,IF(G55="Table",GOTO AB55,"")) ->  | AC55: =IF(G55="Maintenance",GOTO AC55,IF(G55="Table",GOTO AC55,"")) -> 
A56: 2022-09-03 | C56: volunteers | G56: harvest | H56: eggplant | I56: m5 | J56: 0 | K56: 10 | L56: m5 | M56: =IF(G56="Fertilize",GOTO M56,"") ->  | N56: =IF(G56="Fertilize",GOTO N56,"") ->  | P56: =IF(G56="Plant",GOTO P56,"") ->  | Q56: =IF(G56="Plant",GOTO Q56,"") ->  | S56: =IF(G56="compost",GOTO S56,"") ->  | T56: =IF(G56="compost",GOTO T56,"") ->  | U56: =IF(G56="compost",GOTO U56,"") ->  | V56: =IF(G56="compost",GOTO V56,"") ->  | W56: =IF(G56="compost",GOTO W56,"") ->  | X56: =IF(G56="compost",GOTO X56,"") ->  | Y56: =IF(G56="compost",GOTO Y56,"") ->  | Z56: =IF(G56="compost",GOTO Z56,"") ->  | AA56: =IF(G56="Maintenance",GOTO AA56,IF(G56="Table",GOTO AA56,"")) ->  | AB56: =IF(G56="Maintenance",GOTO AB56,IF(G56="Table",GOTO AB56,"")) ->  | AC56: =IF(G56="Maintenance",GOTO AC56,IF(G56="Table",GOTO AC56,"")) -> 
A57: 2022-09-03 | C57: volunteers | G57: harvest | H57: beans, yard long | I57: m14 | J57: 0 | K57: 6 | L57: m14 | M57: =IF(G57="Fertilize",GOTO M57,"") ->  | N57: =IF(G57="Fertilize",GOTO N57,"") ->  | P57: =IF(G57="Plant",GOTO P57,"") ->  | Q57: =IF(G57="Plant",GOTO Q57,"") ->  | S57: =IF(G57="compost",GOTO S57,"") ->  | T57: =IF(G57="compost",GOTO T57,"") ->  | U57: =IF(G57="compost",GOTO U57,"") ->  | V57: =IF(G57="compost",GOTO V57,"") ->  | W57: =IF(G57="compost",GOTO W57,"") ->  | X57: =IF(G57="compost",GOTO X57,"") ->  | Y57: =IF(G57="compost",GOTO Y57,"") ->  | Z57: =IF(G57="compost",GOTO Z57,"") ->  | AA57: m14 | AB57: removed plants - old | AC57: =IF(G57="Maintenance",GOTO AC57,IF(G57="Table",GOTO AC57,"")) -> 
A58: 2022-09-03 | C58: volunteers | G58: maintenance, support | I58: Annex | J58: =IF(G58="Harvest",GOTO J58,"") ->  | K58: =IF(G58="Harvest",GOTO K58,"") ->  | M58: =IF(G58="Fertilize",GOTO M58,"") ->  | N58: =IF(G58="Fertilize",GOTO N58,"") ->  | P58: =IF(G58="Plant",GOTO P58,"") ->  | Q58: =IF(G58="Plant",GOTO Q58,"") ->  | S58: =IF(G58="compost",GOTO S58,"") ->  | T58: =IF(G58="compost",GOTO T58,"") ->  | U58: =IF(G58="compost",GOTO U58,"") ->  | V58: =IF(G58="compost",GOTO V58,"") ->  | W58: =IF(G58="compost",GOTO W58,"") ->  | X58: =IF(G58="compost",GOTO X58,"") ->  | Y58: =IF(G58="compost",GOTO Y58,"") ->  | Z58: =IF(G58="compost",GOTO Z58,"") ->  | AA58: Annex | AB58: applied wood sealer to outdoor classroom | AC58: non-toxic sealant preservative
A59: 2022-09-03 | C59: volunteers | G59: maintenance, support | I59: Orchard | J59: =IF(G59="Harvest",GOTO J59,"") ->  | K59: =IF(G59="Harvest",GOTO K59,"") ->  | M59: =IF(G59="Fertilize",GOTO M59,"") ->  | N59: =IF(G59="Fertilize",GOTO N59,"") ->  | P59: =IF(G59="Plant",GOTO P59,"") ->  | Q59: =IF(G59="Plant",GOTO Q59,"") ->  | S59: =IF(G59="compost",GOTO S59,"") ->  | T59: =IF(G59="compost",GOTO T59,"") ->  | U59: =IF(G59="compost",GOTO U59,"") ->  | V59: =IF(G59="compost",GOTO V59,"") ->  | W59: =IF(G59="compost",GOTO W59,"") ->  | X59: =IF(G59="compost",GOTO X59,"") ->  | Y59: =IF(G59="compost",GOTO Y59,"") ->  | Z59: =IF(G59="compost",GOTO Z59,"") ->  | AA59: mower | AB59: installed new drive belt on mowers | AC59: both mowers
A60: 2022-09-03 | C60: volunteers | G60: plant | H60: beans, yard long | I60: M8 | J60: =IF(G60="Harvest",GOTO J60,"") ->  | K60: =IF(G60="Harvest",GOTO K60,"") ->  | M60: =IF(G60="Fertilize",GOTO M60,"") ->  | N60: =IF(G60="Fertilize",GOTO N60,"") ->  | P60: transplant 1/2 bed & seeds to complete | Q60: M8 | R60: 2022-09-17 | S60: =IF(G60="compost",GOTO S60,"") ->  | T60: =IF(G60="compost",GOTO T60,"") ->  | U60: =IF(G60="compost",GOTO U60,"") ->  | V60: =IF(G60="compost",GOTO V60,"") ->  | W60: =IF(G60="compost",GOTO W60,"") ->  | X60: =IF(G60="compost",GOTO X60,"") ->  | Y60: =IF(G60="compost",GOTO Y60,"") ->  | Z60: =IF(G60="compost",GOTO Z60,"") ->  | AA60: =IF(G60="Maintenance",GOTO AA60,IF(G60="Table",GOTO AA60,"")) ->  | AB60: =IF(G60="Maintenance",GOTO AB60,IF(G60="Table",GOTO AB60,"")) ->  | AC60: =IF(G60="Maintenance",GOTO AC60,IF(G60="Table",GOTO AC60,"")) -> 
A61: 2022-09-08 | C61: volunteers | G61: harvest | H61: eggplant | I61: m5 | J61: 2 | K61: 6 | L61: m5 | M61: =IF(G61="Fertilize",GOTO M61,"") ->  | N61: =IF(G61="Fertilize",GOTO N61,"") ->  | P61: =IF(G61="Plant",GOTO P61,"") ->  | Q61: =IF(G61="Plant",GOTO Q61,"") ->  | S61: =IF(G61="compost",GOTO S61,"") ->  | T61: =IF(G61="compost",GOTO T61,"") ->  | U61: =IF(G61="compost",GOTO U61,"") ->  | V61: =IF(G61="compost",GOTO V61,"") ->  | W61: =IF(G61="compost",GOTO W61,"") ->  | X61: =IF(G61="compost",GOTO X61,"") ->  | Y61: =IF(G61="compost",GOTO Y61,"") ->  | Z61: =IF(G61="compost",GOTO Z61,"") ->  | AA61: =IF(G61="Maintenance",GOTO AA61,IF(G61="Table",GOTO AA61,"")) ->  | AB61: =IF(G61="Maintenance",GOTO AB61,IF(G61="Table",GOTO AB61,"")) ->  | AC61: =IF(G61="Maintenance",GOTO AC61,IF(G61="Table",GOTO AC61,"")) -> 
A62: 2022-09-08 | C62: volunteers | G62: harvest | H62: okra | I62: m16,15,O11,12 | J62: 1 | K62: 4 | L62: m16,15,O11,12 | M62: =IF(G62="Fertilize",GOTO M62,"") ->  | N62: =IF(G62="Fertilize",GOTO N62,"") ->  | P62: =IF(G62="Plant",GOTO P62,"") ->  | Q62: =IF(G62="Plant",GOTO Q62,"") ->  | S62: =IF(G62="compost",GOTO S62,"") ->  | T62: =IF(G62="compost",GOTO T62,"") ->  | U62: =IF(G62="compost",GOTO U62,"") ->  | V62: =IF(G62="compost",GOTO V62,"") ->  | W62: 122 | X62: =IF(G62="compost",GOTO X62,"") ->  | Y62: =IF(G62="compost",GOTO Y62,"") ->  | Z62: =IF(G62="compost",GOTO Z62,"") ->  | AA62: =IF(G62="Maintenance",GOTO AA62,IF(G62="Table",GOTO AA62,"")) ->  | AB62: =IF(G62="Maintenance",GOTO AB62,IF(G62="Table",GOTO AB62,"")) ->  | AC62: =IF(G62="Maintenance",GOTO AC62,IF(G62="Table",GOTO AC62,"")) -> 
A63: 2022-09-08 | C63: volunteers | G63: maintenance, support | I63: =IF(G63="harvest",L63,IF(G63="plant",Q63,IF(G63="fertilize",N63,IF(G63="maintenance, support",AA63,IF(G63="observation",AA63,""))))) -> weed control | J63: =IF(G63="Harvest",GOTO J63,"") ->  | K63: =IF(G63="Harvest",GOTO K63,"") ->  | M63: =IF(G63="Fertilize",GOTO M63,"") ->  | N63: =IF(G63="Fertilize",GOTO N63,"") ->  | P63: =IF(G63="Plant",GOTO P63,"") ->  | Q63: =IF(G63="Plant",GOTO Q63,"") ->  | S63: =IF(G63="compost",GOTO S63,"") ->  | T63: =IF(G63="compost",GOTO T63,"") ->  | U63: =IF(G63="compost",GOTO U63,"") ->  | V63: =IF(G63="compost",GOTO V63,"") ->  | W63: =IF(G63="compost",GOTO W63,"") ->  | X63: =IF(G63="compost",GOTO X63,"") ->  | Y63: =IF(G63="compost",GOTO Y63,"") ->  | Z63: =IF(G63="compost",GOTO Z63,"") ->  | AA63: weed control | AB63: hand weed & added grass mulch | AC63: M6,7,9,10,13,14
A64: 2022-09-10 | C64: volunteers | G64: harvest | H64: okra | I64: m16,15,O11,12 | J64: 0 | K64: 13 | L64: m16,15,O11,12 | M64: =IF(G64="Fertilize",GOTO M64,"") ->  | N64: =IF(G64="Fertilize",GOTO N64,"") ->  | P64: =IF(G64="Plant",GOTO P64,"") ->  | Q64: =IF(G64="Plant",GOTO Q64,"") ->  | S64: =IF(G64="compost",GOTO S64,"") ->  | T64: =IF(G64="compost",GOTO T64,"") ->  | U64: =IF(G64="compost",GOTO U64,"") ->  | V64: =IF(G64="compost",GOTO V64,"") ->  | W64: 138 | X64: =IF(G64="compost",GOTO X64,"") ->  | Y64: =IF(G64="compost",GOTO Y64,"") ->  | Z64: =IF(G64="compost",GOTO Z64,"") ->  | AA64: =IF(G64="Maintenance",GOTO AA64,IF(G64="Table",GOTO AA64,"")) ->  | AB64: =IF(G64="Maintenance",GOTO AB64,IF(G64="Table",GOTO AB64,"")) ->  | AC64: =IF(G64="Maintenance",GOTO AC64,IF(G64="Table",GOTO AC64,"")) -> 
A65: 2022-09-10 | C65: volunteers | G65: harvest | H65: peppers | I65: m5 | J65: 0 | K65: 6 | L65: m5 | M65: =IF(G65="Fertilize",GOTO M65,"") ->  | N65: =IF(G65="Fertilize",GOTO N65,"") ->  | P65: =IF(G65="Plant",GOTO P65,"") ->  | Q65: =IF(G65="Plant",GOTO Q65,"") ->  | S65: =IF(G65="compost",GOTO S65,"") ->  | T65: =IF(G65="compost",GOTO T65,"") ->  | U65: =IF(G65="compost",GOTO U65,"") ->  | V65: =IF(G65="compost",GOTO V65,"") ->  | W65: =IF(G65="compost",GOTO W65,"") ->  | X65: =IF(G65="compost",GOTO X65,"") ->  | Y65: =IF(G65="compost",GOTO Y65,"") ->  | Z65: =IF(G65="compost",GOTO Z65,"") ->  | AA65: =IF(G65="Maintenance",GOTO AA65,IF(G65="Table",GOTO AA65,"")) ->  | AB65: =IF(G65="Maintenance",GOTO AB65,IF(G65="Table",GOTO AB65,"")) ->  | AC65: =IF(G65="Maintenance",GOTO AC65,IF(G65="Table",GOTO AC65,"")) -> 
A66: 2022-09-11 | C66: volunteers | G66: maintenance, support | I66: =IF(G66="harvest",L66,IF(G66="plant",Q66,IF(G66="fertilize",N66,IF(G66="maintenance, support",AA66,IF(G66="observation",AA66,""))))) -> weed control | J66: =IF(G66="Harvest",GOTO J66,"") ->  | K66: =IF(G66="Harvest",GOTO K66,"") ->  | M66: =IF(G66="Fertilize",GOTO M66,"") ->  | N66: =IF(G66="Fertilize",GOTO N66,"") ->  | P66: =IF(G66="Plant",GOTO P66,"") ->  | Q66: =IF(G66="Plant",GOTO Q66,"") ->  | S66: =IF(G66="compost",GOTO S66,"") ->  | T66: =IF(G66="compost",GOTO T66,"") ->  | U66: =IF(G66="compost",GOTO U66,"") ->  | V66: =IF(G66="compost",GOTO V66,"") ->  | W66: =IF(G66="compost",GOTO W66,"") ->  | X66: =IF(G66="compost",GOTO X66,"") ->  | Y66: =IF(G66="compost",GOTO Y66,"") ->  | Z66: =IF(G66="compost",GOTO Z66,"") ->  | AA66: weed control | AB66: applied AXXE | AC66: orchard & main walkways
A67: 2022-09-13 | C67: volunteers | G67: harvest | H67: okra | I67: M15,16 | J67: 1 | K67: 7 | L67: M15,16 | M67: =IF(G67="Fertilize",GOTO M67,"") ->  | N67: =IF(G67="Fertilize",GOTO N67,"") ->  | P67: =IF(G67="Plant",GOTO P67,"") ->  | Q67: =IF(G67="Plant",GOTO Q67,"") ->  | S67: =IF(G67="compost",GOTO S67,"") ->  | T67: =IF(G67="compost",GOTO T67,"") ->  | U67: =IF(G67="compost",GOTO U67,"") ->  | V67: =IF(G67="compost",GOTO V67,"") ->  | W67: =IF(G67="compost",GOTO W67,"") ->  | X67: =IF(G67="compost",GOTO X67,"") ->  | Y67: =IF(G67="compost",GOTO Y67,"") ->  | Z67: =IF(G67="compost",GOTO Z67,"") ->  | AA67: =IF(G67="Maintenance",GOTO AA67,IF(G67="Table",GOTO AA67,"")) ->  | AB67: =IF(G67="Maintenance",GOTO AB67,IF(G67="Table",GOTO AB67,"")) ->  | AC67: =IF(G67="Maintenance",GOTO AC67,IF(G67="Table",GOTO AC67,"")) -> 
A68: 2022-09-13 | C68: volunteers | G68: harvest | H68: peppers | I68: =IF(G68="harvest",L68,IF(G68="plant",Q68,IF(G68="fertilize",N68,IF(G68="maintenance",AA68,IF(G68="observation",AA68,""))))) -> m5 | J68: 0 | K68: 6 | L68: m5 | M68: =IF(G68="Fertilize",GOTO M68,"") ->  | N68: =IF(G68="Fertilize",GOTO N68,"") ->  | O68: =IF(G68="Fertilize",A68+14,"") ->  | P68: =IF(G68="Plant",GOTO P68,"") ->  | Q68: =IF(G68="Plant",GOTO Q68,"") ->  | R68: =IF(G68="Plant",A68+14,"") ->  | S68: =IF(G68="compost",GOTO S68,"") ->  | T68: =IF(G68="compost",GOTO T68,"") ->  | U68: =IF(G68="compost",GOTO U68,"") ->  | V68: =IF(G68="compost",GOTO V68,"") ->  | W68: =IF(G68="compost",GOTO W68,"") ->  | X68: =IF(G68="compost",GOTO X68,"") ->  | Y68: =IF(G68="compost",GOTO Y68,"") ->  | Z68: =IF(G68="compost",GOTO Z68,"") ->  | AA68: =IF(G68="Maintenance",GOTO AA68,IF(G68="Table",GOTO AA68,"")) ->  | AB68: =IF(G68="Maintenance",GOTO AB68,IF(G68="Table",GOTO AB68,"")) ->  | AC68: =IF(G68="Maintenance",GOTO AC68,IF(G68="Table",GOTO AC68,"")) -> 
A69: 2022-09-13 | C69: volunteers | G69: harvest | H69: basil | I69: m2 | J69: 1 | K69: 8 | L69: m2 | M69: =IF(G69="Fertilize",GOTO M69,"") ->  | N69: =IF(G69="Fertilize",GOTO N69,"") ->  | P69: =IF(G69="Plant",GOTO P69,"") ->  | Q69: =IF(G69="Plant",GOTO Q69,"") ->  | S69: =IF(G69="compost",GOTO S69,"") ->  | T69: =IF(G69="compost",GOTO T69,"") ->  | U69: =IF(G69="compost",GOTO U69,"") ->  | V69: =IF(G69="compost",GOTO V69,"") ->  | W69: =IF(G69="compost",GOTO W69,"") ->  | X69: =IF(G69="compost",GOTO X69,"") ->  | Y69: =IF(G69="compost",GOTO Y69,"") ->  | Z69: =IF(G69="compost",GOTO Z69,"") ->  | AA69: =IF(G69="Maintenance",GOTO AA69,IF(G69="Table",GOTO AA69,"")) ->  | AB69: =IF(G69="Maintenance",GOTO AB69,IF(G69="Table",GOTO AB69,"")) ->  | AC69: =IF(G69="Maintenance",GOTO AC69,IF(G69="Table",GOTO AC69,"")) -> 
A70: 2022-09-13 | C70: volunteers | G70: maintenance, support | I70: Main | J70: =IF(G70="Harvest",GOTO J70,"") ->  | M70: =IF(G70="Fertilize",GOTO M70,"") ->  | N70: =IF(G70="Fertilize",GOTO N70,"") ->  | P70: =IF(G70="Plant",GOTO P70,"") ->  | Q70: =IF(G70="Plant",GOTO Q70,"") ->  | S70: =IF(G70="compost",GOTO S70,"") ->  | T70: =IF(G70="compost",GOTO T70,"") ->  | U70: =IF(G70="compost",GOTO U70,"") ->  | V70: =IF(G70="compost",GOTO V70,"") ->  | W70: =IF(G70="compost",GOTO W70,"") ->  | X70: =IF(G70="compost",GOTO X70,"") ->  | Y70: =IF(G70="compost",GOTO Y70,"") ->  | Z70: =IF(G70="compost",GOTO Z70,"") ->  | AA70: Compost TEA | AB70: setup solar powered compost TEA station | AC70: solar system, between green tank and bench
A71: 2022-09-13 | C71: volunteers | G71: plant | H71: peas, sugar snap | I71: M3 | J71: =IF(G71="Harvest",GOTO J71,"") ->  | K71: =IF(G71="Harvest",GOTO K71,"") ->  | M71: =IF(G71="Fertilize",GOTO M71,"") ->  | N71: =IF(G71="Fertilize",GOTO N71,"") ->  | P71: soak seeds, plant along fence | Q71: M3 | R71: 2022-09-27 | S71: =IF(G71="compost",GOTO S71,"") ->  | T71: =IF(G71="compost",GOTO T71,"") ->  | U71: =IF(G71="compost",GOTO U71,"") ->  | V71: =IF(G71="compost",GOTO V71,"") ->  | W71: =IF(G71="compost",GOTO W71,"") ->  | X71: =IF(G71="compost",GOTO X71,"") ->  | Y71: =IF(G71="compost",GOTO Y71,"") ->  | Z71: =IF(G71="compost",GOTO Z71,"") ->  | AA71: =IF(G71="Maintenance",GOTO AA71,IF(G71="Table",GOTO AA71,"")) ->  | AB71: =IF(G71="Maintenance",GOTO AB71,IF(G71="Table",GOTO AB71,"")) ->  | AC71: =IF(G71="Maintenance",GOTO AC71,IF(G71="Table",GOTO AC71,"")) -> 
A72: 2022-09-15 | B72: am | C72: Harisis | D72: Aldo | E72: 2 | F72: SH | G72: harvest | H72: okra | I72: M15,16 | J72: 0 | K72: 12 | L72: M15,16 | M72: =IF(G72="Fertilize",GOTO M72,"") ->  | N72: =IF(G72="Fertilize",GOTO N72,"") ->  | P72: =IF(G72="Plant",GOTO P72,"") ->  | Q72: =IF(G72="Plant",GOTO Q72,"") ->  | S72: =IF(G72="compost",GOTO S72,"") ->  | T72: =IF(G72="compost",GOTO T72,"") ->  | U72: =IF(G72="compost",GOTO U72,"") ->  | V72: =IF(G72="compost",GOTO V72,"") ->  | W72: =IF(G72="compost",GOTO W72,"") ->  | X72: =IF(G72="compost",GOTO X72,"") ->  | Y72: =IF(G72="compost",GOTO Y72,"") ->  | Z72: =IF(G72="compost",GOTO Z72,"") ->  | AA72: =IF(G72="Maintenance",GOTO AA72,IF(G72="Table",GOTO AA72,"")) ->  | AB72: =IF(G72="Maintenance",GOTO AB72,IF(G72="Table",GOTO AB72,"")) ->  | AC72: =IF(G72="Maintenance",GOTO AC72,IF(G72="Table",GOTO AC72,"")) -> 
A73: 2022-09-15 | B73: am | C73: Harisis | D73: Fabiana | E73: 1 | F73: JB | G73: plant | H73: cilantro | I73: M2 | J73: =IF(G73="Harvest",GOTO J73,"") ->  | K73: =IF(G73="Harvest",GOTO K73,"") ->  | M73: =IF(G73="Fertilize",GOTO M73,"") ->  | N73: =IF(G73="Fertilize",GOTO N73,"") ->  | P73: cilantro | Q73: M2 | R73: 2022-09-29 | S73: =IF(G73="compost",GOTO S73,"") ->  | T73: =IF(G73="compost",GOTO T73,"") ->  | U73: =IF(G73="compost",GOTO U73,"") ->  | V73: =IF(G73="compost",GOTO V73,"") ->  | W73: =IF(G73="compost",GOTO W73,"") ->  | X73: =IF(G73="compost",GOTO X73,"") ->  | Y73: =IF(G73="compost",GOTO Y73,"") ->  | Z73: =IF(G73="compost",GOTO Z73,"") ->  | AA73: pots | AB73: trim mint | AC73: outside main shed area
A74: 2022-09-15 | B74: am | C74: Harisis | D74: Aldo | E74: 2 | F74: SH | G74: plant | H74: carrots | I74: M13 | J74: =IF(G74="Harvest",GOTO J74,"") ->  | K74: =IF(G74="Harvest",GOTO K74,"") ->  | M74: =IF(G74="Fertilize",GOTO M74,"") ->  | N74: =IF(G74="Fertilize",GOTO N74,"") ->  | P74: use plant stick (dev. By PB) | Q74: M13 | R74: 2022-09-29 | S74: =IF(G74="compost",GOTO S74,"") ->  | T74: =IF(G74="compost",GOTO T74,"") ->  | U74: =IF(G74="compost",GOTO U74,"") ->  | V74: =IF(G74="compost",GOTO V74,"") ->  | W74: =IF(G74="compost",GOTO W74,"") ->  | X74: =IF(G74="compost",GOTO X74,"") ->  | Y74: =IF(G74="compost",GOTO Y74,"") ->  | Z74: =IF(G74="compost",GOTO Z74,"") ->  | AA74: =IF(G74="Maintenance",GOTO AA74,IF(G74="Table",GOTO AA74,"")) ->  | AB74: =IF(G74="Maintenance",GOTO AB74,IF(G74="Table",GOTO AB74,"")) ->  | AC74: =IF(G74="Maintenance",GOTO AC74,IF(G74="Table",GOTO AC74,"")) -> 
A75: 2022-09-15 | B75: am | C75: Harisis | D75: Amy | E75: 3 | F75: SK | G75: plant | H75: broccoli | I75: M9 | J75: =IF(G75="Harvest",GOTO J75,"") ->  | K75: =IF(G75="Harvest",GOTO K75,"") ->  | M75: =IF(G75="Fertilize",GOTO M75,"") ->  | N75: =IF(G75="Fertilize",GOTO N75,"") ->  | P75: transplant, with compost tea (south) and other side (north) without | Q75: M9 | R75: 2022-09-29 | S75: =IF(G75="compost",GOTO S75,"") ->  | T75: =IF(G75="compost",GOTO T75,"") ->  | U75: =IF(G75="compost",GOTO U75,"") ->  | V75: =IF(G75="compost",GOTO V75,"") ->  | W75: =IF(G75="compost",GOTO W75,"") ->  | X75: =IF(G75="compost",GOTO X75,"") ->  | Y75: =IF(G75="compost",GOTO Y75,"") ->  | Z75: =IF(G75="compost",GOTO Z75,"") ->  | AA75: =IF(G75="Maintenance",GOTO AA75,IF(G75="Table",GOTO AA75,"")) ->  | AB75: =IF(G75="Maintenance",GOTO AB75,IF(G75="Table",GOTO AB75,"")) ->  | AC75: =IF(G75="Maintenance",GOTO AC75,IF(G75="Table",GOTO AC75,"")) -> 
A76: 2022-09-15 | B76: am | C76: Harisis | D76: Amy | E76: 3 | F76: SK | G76: plant | H76: collards | I76: M6 | J76: =IF(G76="Harvest",GOTO J76,"") ->  | K76: =IF(G76="Harvest",GOTO K76,"") ->  | M76: =IF(G76="Fertilize",GOTO M76,"") ->  | N76: =IF(G76="Fertilize",GOTO N76,"") ->  | P76: use 6-2-4, water in well | Q76: M6 | R76: 2022-09-29 | S76: =IF(G76="compost",GOTO S76,"") ->  | T76: =IF(G76="compost",GOTO T76,"") ->  | U76: =IF(G76="compost",GOTO U76,"") ->  | V76: =IF(G76="compost",GOTO V76,"") ->  | W76: =IF(G76="compost",GOTO W76,"") ->  | X76: =IF(G76="compost",GOTO X76,"") ->  | Y76: =IF(G76="compost",GOTO Y76,"") ->  | Z76: =IF(G76="compost",GOTO Z76,"") ->  | AA76: =IF(G76="Maintenance",GOTO AA76,IF(G76="Table",GOTO AA76,"")) ->  | AB76: =IF(G76="Maintenance",GOTO AB76,IF(G76="Table",GOTO AB76,"")) ->  | AC76: =IF(G76="Maintenance",GOTO AC76,IF(G76="Table",GOTO AC76,"")) -> 
A77: 2022-09-15 | B77: am | C77: Harisis | D77: Susana | E77: 4 | F77: HO | G77: compost | J77: =IF(G77="Harvest",GOTO J77,"") ->  | K77: =IF(G77="Harvest",GOTO K77,"") ->  | M77: =IF(G77="Fertilize",GOTO M77,"") ->  | N77: =IF(G77="Fertilize",GOTO N77,"") ->  | P77: =IF(G77="Plant",GOTO P77,"") ->  | Q77: =IF(G77="Plant",GOTO Q77,"") ->  | S77: 86 | U77: .5 | W77: 136 | X77: 88 | Y77: 86 | Z77: move bin 2 to bin 3 | AA77: =IF(G77="Maintenance",GOTO AA77,IF(G77="Table",GOTO AA77,"")) ->  | AB77: =IF(G77="Maintenance",GOTO AB77,IF(G77="Table",GOTO AB77,"")) ->  | AC77: =IF(G77="Maintenance",GOTO AC77,IF(G77="Table",GOTO AC77,"")) -> 
A78: 2022-09-15 | B78: pm | C78: Harisis | D78: Isabella | E78: 1 | F78: JB | G78: plant | H78: parsley & basil | I78: M2 | J78: =IF(G78="Harvest",GOTO J78,"") ->  | K78: =IF(G78="Harvest",GOTO K78,"") ->  | M78: =IF(G78="Fertilize",GOTO M78,"") ->  | N78: =IF(G78="Fertilize",GOTO N78,"") ->  | P78: plant parsley, & basil | Q78: M2 | R78: 2022-09-29 | S78: =IF(G78="compost",GOTO S78,"") ->  | T78: =IF(G78="compost",GOTO T78,"") ->  | U78: =IF(G78="compost",GOTO U78,"") ->  | V78: =IF(G78="compost",GOTO V78,"") ->  | W78: =IF(G78="compost",GOTO W78,"") ->  | X78: =IF(G78="compost",GOTO X78,"") ->  | Y78: =IF(G78="compost",GOTO Y78,"") ->  | Z78: =IF(G78="compost",GOTO Z78,"") ->  | AA78: shed | AB78: cut back tropical milkweed, pineapple sage | AC78: =IF(G78="Maintenance",GOTO AC78,IF(G78="Table",GOTO AC78,"")) -> 
A79: 2022-09-15 | B79: pm | C79: Harisis | D79: Ximena | E79: 2 | F79: SH | G79: harvest | H79: eggplant | I79: M5 | J79: 1 | K79: 0 | L79: M5 | M79: =IF(G79="Fertilize",GOTO M79,"") ->  | N79: =IF(G79="Fertilize",GOTO N79,"") ->  | P79: =IF(G79="Plant",GOTO P79,"") ->  | Q79: =IF(G79="Plant",GOTO Q79,"") ->  | S79: =IF(G79="compost",GOTO S79,"") ->  | T79: =IF(G79="compost",GOTO T79,"") ->  | U79: =IF(G79="compost",GOTO U79,"") ->  | V79: =IF(G79="compost",GOTO V79,"") ->  | W79: =IF(G79="compost",GOTO W79,"") ->  | X79: =IF(G79="compost",GOTO X79,"") ->  | Y79: =IF(G79="compost",GOTO Y79,"") ->  | Z79: =IF(G79="compost",GOTO Z79,"") ->  | AA79: =IF(G79="Maintenance",GOTO AA79,IF(G79="Table",GOTO AA79,"")) ->  | AB79: =IF(G79="Maintenance",GOTO AB79,IF(G79="Table",GOTO AB79,"")) ->  | AC79: =IF(G79="Maintenance",GOTO AC79,IF(G79="Table",GOTO AC79,"")) -> 
A80: 2022-09-15 | B80: pm | C80: Harisis | D80: Angel | E80: 4 | F80: HO | G80: compost | J80: =IF(G80="Harvest",GOTO J80,"") ->  | K80: =IF(G80="Harvest",GOTO K80,"") ->  | M80: =IF(G80="Fertilize",GOTO M80,"") ->  | N80: =IF(G80="Fertilize",GOTO N80,"") ->  | P80: =IF(G80="Plant",GOTO P80,"") ->  | Q80: =IF(G80="Plant",GOTO Q80,"") ->  | S80: 96 | U80: .3 | V80: 2 | W80: 126 | X80: 86 | Y80: 86 | Z80: move bin 2 to bin 3 | AA80: =IF(G80="Maintenance",GOTO AA80,IF(G80="Table",GOTO AA80,"")) ->  | AB80: =IF(G80="Maintenance",GOTO AB80,IF(G80="Table",GOTO AB80,"")) ->  | AC80: =IF(G80="Maintenance",GOTO AC80,IF(G80="Table",GOTO AC80,"")) -> 
A81: 2022-09-15 | B81: pm | C81: Harisis | D81: Alexander | E81: 3 | F81: SK | G81: plant | H81: collards | I81: M6 | J81: =IF(G81="Harvest",GOTO J81,"") ->  | K81: =IF(G81="Harvest",GOTO K81,"") ->  | M81: =IF(G81="Fertilize",GOTO M81,"") ->  | N81: =IF(G81="Fertilize",GOTO N81,"") ->  | P81: transplant, water in well | Q81: M6 | R81: 2022-09-29 | S81: =IF(G81="compost",GOTO S81,"") ->  | T81: =IF(G81="compost",GOTO T81,"") ->  | U81: =IF(G81="compost",GOTO U81,"") ->  | V81: =IF(G81="compost",GOTO V81,"") ->  | W81: =IF(G81="compost",GOTO W81,"") ->  | X81: =IF(G81="compost",GOTO X81,"") ->  | Y81: =IF(G81="compost",GOTO Y81,"") ->  | Z81: =IF(G81="compost",GOTO Z81,"") ->  | AA81: =IF(G81="Maintenance",GOTO AA81,IF(G81="Table",GOTO AA81,"")) ->  | AB81: =IF(G81="Maintenance",GOTO AB81,IF(G81="Table",GOTO AB81,"")) ->  | AC81: =IF(G81="Maintenance",GOTO AC81,IF(G81="Table",GOTO AC81,"")) -> 
A82: 2022-09-15 | B82: pm | C82: Harisis | D82: Alexander | E82: 3 | F82: EV | G82: plant | H82: cabbage | I82: O16 | J82: =IF(G82="Harvest",GOTO J82,"") ->  | K82: =IF(G82="Harvest",GOTO K82,"") ->  | M82: =IF(G82="Fertilize",GOTO M82,"") ->  | N82: =IF(G82="Fertilize",GOTO N82,"") ->  | P82: transplant, water in well | Q82: O16 | R82: 2022-09-29 | S82: =IF(G82="compost",GOTO S82,"") ->  | T82: =IF(G82="compost",GOTO T82,"") ->  | U82: =IF(G82="compost",GOTO U82,"") ->  | V82: =IF(G82="compost",GOTO V82,"") ->  | W82: =IF(G82="compost",GOTO W82,"") ->  | X82: =IF(G82="compost",GOTO X82,"") ->  | Y82: =IF(G82="compost",GOTO Y82,"") ->  | Z82: =IF(G82="compost",GOTO Z82,"") ->  | AA82: =IF(G82="Maintenance",GOTO AA82,IF(G82="Table",GOTO AA82,"")) ->  | AB82: =IF(G82="Maintenance",GOTO AB82,IF(G82="Table",GOTO AB82,"")) ->  | AC82: =IF(G82="Maintenance",GOTO AC82,IF(G82="Table",GOTO AC82,"")) -> 
A83: 2022-09-17 | C83: volunteers | G83: harvest | H83: okra | I83: m15,16 | J83: 1 | K83: 7 | L83: m15,16 | M83: =IF(G83="Fertilize",GOTO M83,"") ->  | N83: =IF(G83="Fertilize",GOTO N83,"") ->  | P83: =IF(G83="Plant",GOTO P83,"") ->  | Q83: =IF(G83="Plant",GOTO Q83,"") ->  | S83: =IF(G83="compost",GOTO S83,"") ->  | T83: =IF(G83="compost",GOTO T83,"") ->  | U83: =IF(G83="compost",GOTO U83,"") ->  | V83: =IF(G83="compost",GOTO V83,"") ->  | W83: =IF(G83="compost",GOTO W83,"") ->  | X83: =IF(G83="compost",GOTO X83,"") ->  | Y83: =IF(G83="compost",GOTO Y83,"") ->  | Z83: =IF(G83="compost",GOTO Z83,"") ->  | AA83: =IF(G83="Maintenance",GOTO AA83,IF(G83="Table",GOTO AA83,"")) ->  | AB83: =IF(G83="Maintenance",GOTO AB83,IF(G83="Table",GOTO AB83,"")) ->  | AC83: =IF(G83="Maintenance",GOTO AC83,IF(G83="Table",GOTO AC83,"")) -> 
A84: 2022-09-17 | C84: volunteers | G84: harvest | H84: eggplant | I84: m5 | J84: 0 | K84: 10 | L84: m5 | M84: =IF(G84="Fertilize",GOTO M84,"") ->  | N84: =IF(G84="Fertilize",GOTO N84,"") ->  | P84: =IF(G84="Plant",GOTO P84,"") ->  | Q84: =IF(G84="Plant",GOTO Q84,"") ->  | S84: =IF(G84="compost",GOTO S84,"") ->  | T84: =IF(G84="compost",GOTO T84,"") ->  | U84: =IF(G84="compost",GOTO U84,"") ->  | V84: =IF(G84="compost",GOTO V84,"") ->  | W84: =IF(G84="compost",GOTO W84,"") ->  | X84: =IF(G84="compost",GOTO X84,"") ->  | Y84: =IF(G84="compost",GOTO Y84,"") ->  | Z84: =IF(G84="compost",GOTO Z84,"") ->  | AA84: =IF(G84="Maintenance",GOTO AA84,IF(G84="Table",GOTO AA84,"")) ->  | AB84: =IF(G84="Maintenance",GOTO AB84,IF(G84="Table",GOTO AB84,"")) ->  | AC84: =IF(G84="Maintenance",GOTO AC84,IF(G84="Table",GOTO AC84,"")) -> 
A85: 2022-09-17 | C85: volunteers | G85: maintenance, support | I85: Main | J85: =IF(G85="Harvest",GOTO J85,"") ->  | K85: =IF(G85="Harvest",GOTO K85,"") ->  | M85: =IF(G85="Fertilize",GOTO M85,"") ->  | N85: =IF(G85="Fertilize",GOTO N85,"") ->  | P85: =IF(G85="Plant",GOTO P85,"") ->  | Q85: =IF(G85="Plant",GOTO Q85,"") ->  | S85: =IF(G85="compost",GOTO S85,"") ->  | T85: =IF(G85="compost",GOTO T85,"") ->  | U85: =IF(G85="compost",GOTO U85,"") ->  | V85: =IF(G85="compost",GOTO V85,"") ->  | W85: =IF(G85="compost",GOTO W85,"") ->  | X85: =IF(G85="compost",GOTO X85,"") ->  | Y85: =IF(G85="compost",GOTO Y85,"") ->  | Z85: =IF(G85="compost",GOTO Z85,"") ->  | AA85: Shed | AB85: repaired 3 tier herb bed | AC85: repaired tiers and filled in beds with soil
A86: 2022-09-17 | C86: volunteers | G86: maintenance, support | I86: =IF(G86="harvest",L86,IF(G86="plant",Q86,IF(G86="fertilize",N86,IF(G86="maintenance, support",AA86,IF(G86="observation",AA86,""))))) -> orchard | J86: =IF(G86="Harvest",GOTO J86,"") ->  | K86: =IF(G86="Harvest",GOTO K86,"") ->  | M86: =IF(G86="Fertilize",GOTO M86,"") ->  | N86: =IF(G86="Fertilize",GOTO N86,"") ->  | P86: =IF(G86="Plant",GOTO P86,"") ->  | Q86: =IF(G86="Plant",GOTO Q86,"") ->  | S86: =IF(G86="compost",GOTO S86,"") ->  | T86: =IF(G86="compost",GOTO T86,"") ->  | U86: =IF(G86="compost",GOTO U86,"") ->  | V86: =IF(G86="compost",GOTO V86,"") ->  | W86: =IF(G86="compost",GOTO W86,"") ->  | X86: =IF(G86="compost",GOTO X86,"") ->  | Y86: =IF(G86="compost",GOTO Y86,"") ->  | Z86: =IF(G86="compost",GOTO Z86,"") ->  | AA86: orchard | AB86: modifying irrigation '#3' to water O9-12 automatically | AC86: zone 3 re-configured to O9-12
A87: 2022-09-20 | C87: volunteers | G87: harvest | H87: okra | I87: M15,16 | J87: 1 | K87: 5 | L87: M15,16 | M87: =IF(G87="Fertilize",GOTO M87,"") ->  | N87: =IF(G87="Fertilize",GOTO N87,"") ->  | P87: =IF(G87="Plant",GOTO P87,"") ->  | Q87: =IF(G87="Plant",GOTO Q87,"") ->  | S87: =IF(G87="compost",GOTO S87,"") ->  | T87: =IF(G87="compost",GOTO T87,"") ->  | U87: =IF(G87="compost",GOTO U87,"") ->  | V87: =IF(G87="compost",GOTO V87,"") ->  | W87: =IF(G87="compost",GOTO W87,"") ->  | X87: =IF(G87="compost",GOTO X87,"") ->  | Y87: =IF(G87="compost",GOTO Y87,"") ->  | Z87: =IF(G87="compost",GOTO Z87,"") -> 
A88: 2022-09-22 | B88: AM | C88: Lopez | D88: Landon | E88: 1 | F88: JB | G88: plant | H88: milkweed, native & tropical | I88: M21 | J88: =IF(G88="Harvest",GOTO J88,"") ->  | K88: =IF(G88="Harvest",GOTO K88,"") ->  | M88: =IF(G88="Fertilize",GOTO M88,"") ->  | N88: =IF(G88="Fertilize",GOTO N88,"") ->  | P88: transplants, | Q88: M21 | R88: 2022-10-06 | S88: =IF(G88="compost",GOTO S88,"") ->  | T88: =IF(G88="compost",GOTO T88,"") ->  | U88: =IF(G88="compost",GOTO U88,"") ->  | V88: =IF(G88="compost",GOTO V88,"") ->  | W88: =IF(G88="compost",GOTO W88,"") ->  | X88: =IF(G88="compost",GOTO X88,"") ->  | Y88: =IF(G88="compost",GOTO Y88,"") ->  | Z88: =IF(G88="compost",GOTO Z88,"") ->  | AA88: Shed | AB88: trim oregano, cleaned herbal beds | AC88: shed area & along main garden fence
A89: 2022-09-22 | B89: Am | C89: Lopez | D89: Addison | E89: 2 | F89: SK | G89: observation | I89: M9 | J89: =IF(G89="Harvest",GOTO J89,"") ->  | K89: =IF(G89="Harvest",GOTO K89,"") ->  | M89: =IF(G89="Fertilize",GOTO M89,"") ->  | N89: =IF(G89="Fertilize",GOTO N89,"") ->  | P89: =IF(G89="Plant",GOTO P89,"") ->  | Q89: =IF(G89="Plant",GOTO Q89,"") ->  | S89: =IF(G89="compost",GOTO S89,"") ->  | T89: =IF(G89="compost",GOTO T89,"") ->  | U89: =IF(G89="compost",GOTO U89,"") ->  | V89: =IF(G89="compost",GOTO V89,"") ->  | W89: =IF(G89="compost",GOTO W89,"") ->  | X89: =IF(G89="compost",GOTO X89,"") ->  | Y89: =IF(G89="compost",GOTO Y89,"") ->  | Z89: =IF(G89="compost",GOTO Z89,"") ->  | AA89: M9 | AB89: Broccoli: compost tea (M9a) vs none (m9b) | AC89: so far no observable difference
A90: 2022-09-22 | B90: am | C90: Lopez | D90: Olivia | E90: 3 | F90: PB | G90: plant | H90: carrots | I90: M13 | J90: =IF(G90="Harvest",GOTO J90,"") ->  | K90: =IF(G90="Harvest",GOTO K90,"") ->  | M90: =IF(G90="Fertilize",GOTO M90,"") ->  | N90: =IF(G90="Fertilize",GOTO N90,"") ->  | P90: seeds, with planting aide | Q90: M13 | R90: 2022-10-20 | S90: =IF(G90="compost",GOTO S90,"") ->  | T90: =IF(G90="compost",GOTO T90,"") ->  | U90: =IF(G90="compost",GOTO U90,"") ->  | V90: =IF(G90="compost",GOTO V90,"") ->  | W90: =IF(G90="compost",GOTO W90,"") ->  | X90: =IF(G90="compost",GOTO X90,"") ->  | Y90: =IF(G90="compost",GOTO Y90,"") ->  | Z90: =IF(G90="compost",GOTO Z90,"") ->  | AA90: =IF(G90="Maintenance",GOTO AA90,IF(G90="Table",GOTO AA90,"")) ->  | AB90: =IF(G90="Maintenance",GOTO AB90,IF(G90="Table",GOTO AB90,"")) ->  | AC90: =IF(G90="Maintenance",GOTO AC90,IF(G90="Table",GOTO AC90,"")) -> 
A91: 2022-09-22 | B91: am | C91: Lopez | D91: Layla | E91: 4 | F91: PM | G91: harvest | H91: okra | I91: M15,16 | J91: 0 | K91: 14 | L91: M15,16 | M91: =IF(G91="Fertilize",GOTO M91,"") ->  | N91: =IF(G91="Fertilize",GOTO N91,"") ->  | P91: =IF(G91="Plant",GOTO P91,"") ->  | Q91: =IF(G91="Plant",GOTO Q91,"") ->  | R91: =IF(G91="Plant",A91+14,"") ->  | S91: =IF(G91="compost",GOTO S91,"") ->  | T91: =IF(G91="compost",GOTO T91,"") ->  | U91: =IF(G91="compost",GOTO U91,"") ->  | V91: =IF(G91="compost",GOTO V91,"") ->  | W91: =IF(G91="compost",GOTO W91,"") ->  | X91: =IF(G91="compost",GOTO X91,"") ->  | Y91: =IF(G91="compost",GOTO Y91,"") ->  | Z91: =IF(G91="compost",GOTO Z91,"") ->  | AA91: M15,16 | AB91: water in well, weed, clean up leaves | AC91: M16 almost ready to clear bed
A92: 2022-09-22 | B92: am | C92: Lopez | D92: Jaylin | E92: 5 | F92: DW | G92: compost | J92: =IF(G92="Harvest",GOTO J92,"") ->  | K92: =IF(G92="Harvest",GOTO K92,"") ->  | M92: =IF(G92="Fertilize",GOTO M92,"") ->  | N92: =IF(G92="Fertilize",GOTO N92,"") ->  | P92: =IF(G92="Plant",GOTO P92,"") ->  | Q92: =IF(G92="Plant",GOTO Q92,"") ->  | R92: =IF(G92="Plant",A92+14,"") ->  | S92: 91 | U92: 1.5 | W92: 125 | X92: 85 | Y92: 85 | Z92: fill buckets with #3 for team 3 | AA92: =IF(G92="Maintenance",GOTO AA92,IF(G92="Table",GOTO AA92,"")) ->  | AB92: =IF(G92="Maintenance",GOTO AB92,IF(G92="Table",GOTO AB92,"")) ->  | AC92: =IF(G92="Maintenance",GOTO AC92,IF(G92="Table",GOTO AC92,"")) -> 
A93: 2022-09-22 | B93: pm | C93: lopez | D93: Alanni | E93: 1 | F93: PM | G93: plant | H93: milkweed, native & tropical | I93: M3 outside | J93: =IF(G93="Harvest",GOTO J93,"") ->  | K93: =IF(G93="Harvest",GOTO K93,"") ->  | M93: =IF(G93="Fertilize",GOTO M93,"") ->  | N93: =IF(G93="Fertilize",GOTO N93,"") ->  | P93: transplants | Q93: M3 outside | R93: =IF(G93="Plant",A93+14,"") -> 2022-10-06 | S93: =IF(G93="compost",GOTO S93,"") ->  | T93: =IF(G93="compost",GOTO T93,"") ->  | U93: =IF(G93="compost",GOTO U93,"") ->  | V93: =IF(G93="compost",GOTO V93,"") ->  | W93: =IF(G93="compost",GOTO W93,"") ->  | X93: =IF(G93="compost",GOTO X93,"") ->  | Y93: =IF(G93="compost",GOTO Y93,"") ->  | Z93: =IF(G93="compost",GOTO Z93,"") ->  | AA93: M3 outside | AB93: deadhead plants, weed, water in well | AC93: removed many dead or dying plants
A94: 2022-09-22 | B94: pm | C94: lopez | D94: David | E94: 2 | F94: SK | G94: observation | I94: M9 | J94: =IF(G94="Harvest",GOTO J94,"") ->  | K94: =IF(G94="Harvest",GOTO K94,"") ->  | M94: =IF(G94="Fertilize",GOTO M94,"") ->  | N94: =IF(G94="Fertilize",GOTO N94,"") ->  | P94: =IF(G94="Plant",GOTO P94,"") ->  | Q94: =IF(G94="Plant",GOTO Q94,"") ->  | R94: =IF(G94="Plant",A94+14,"") ->  | S94: =IF(G94="compost",GOTO S94,"") ->  | T94: =IF(G94="compost",GOTO T94,"") ->  | U94: =IF(G94="compost",GOTO U94,"") ->  | V94: =IF(G94="compost",GOTO V94,"") ->  | W94: =IF(G94="compost",GOTO W94,"") ->  | X94: =IF(G94="compost",GOTO X94,"") ->  | Y94: =IF(G94="compost",GOTO Y94,"") ->  | Z94: =IF(G94="compost",GOTO Z94,"") ->  | AA94: M9 | AB94: Broccoli: compost tea vs none | AC94: so far no observable difference
A95: 2022-09-22 | B95: pm | C95: lopez | D95: Chelsea | E95: 3 | F95: SH | G95: harvest | H95: eggplant | I95: M5 | J95: 1 | K95: 7 | L95: M5 | M95: =IF(G95="Fertilize",GOTO M95,"") ->  | N95: =IF(G95="Fertilize",GOTO N95,"") ->  | P95: =IF(G95="Plant",GOTO P95,"") ->  | Q95: =IF(G95="Plant",GOTO Q95,"") ->  | R95: =IF(G95="Plant",A95+14,"") ->  | S95: =IF(G95="compost",GOTO S95,"") ->  | T95: =IF(G95="compost",GOTO T95,"") ->  | U95: =IF(G95="compost",GOTO U95,"") ->  | V95: =IF(G95="compost",GOTO V95,"") ->  | W95: =IF(G95="compost",GOTO W95,"") ->  | X95: =IF(G95="compost",GOTO X95,"") ->  | Y95: =IF(G95="compost",GOTO Y95,"") ->  | Z95: =IF(G95="compost",GOTO Z95,"") ->  | AA95: M13 | AB95: gently water in carrots, | AC95: =IF(G95="Maintenance",GOTO AC95,IF(G95="Table",GOTO AC95,"")) -> 
A96: 2022-09-22 | B96: pm | C96: lopez | D96: Chelsea | E96: 3 | F96: SH | G96: plant | H96: carrots | I96: M13 | J96: 1 | K96: 7 | L96: M5 | M96: =IF(G96="Fertilize",GOTO M96,"") ->  | N96: =IF(G96="Fertilize",GOTO N96,"") ->  | P96: seeds, with planting aide | Q96: M13 | R96: 2022-10-20 | S96: =IF(G96="compost",GOTO S96,"") ->  | T96: =IF(G96="compost",GOTO T96,"") ->  | U96: =IF(G96="compost",GOTO U96,"") ->  | V96: =IF(G96="compost",GOTO V96,"") ->  | W96: =IF(G96="compost",GOTO W96,"") ->  | X96: =IF(G96="compost",GOTO X96,"") ->  | Y96: =IF(G96="compost",GOTO Y96,"") ->  | Z96: =IF(G96="compost",GOTO Z96,"") ->  | AA96: M13 | AB96: gently water in carrots, | AC96: =IF(G96="Maintenance",GOTO AC96,IF(G96="Table",GOTO AC96,"")) -> 
A97: 2022-09-22 | B97: pm | C97: lopez | D97: Gabriel | E97: 4 | F97: JB | G97: plant | H97: cilantro, spider | I97: pots | J97: =IF(G97="Harvest",GOTO J97,"") ->  | K97: =IF(G97="Harvest",GOTO K97,"") ->  | M97: =IF(G97="Fertilize",GOTO M97,"") ->  | N97: =IF(G97="Fertilize",GOTO N97,"") ->  | P97: cilantro, spider plants | Q97: pots | R97: =IF(G97="Plant",A97+14,"") -> 2022-10-06 | S97: =IF(G97="compost",GOTO S97,"") ->  | T97: =IF(G97="compost",GOTO T97,"") ->  | U97: =IF(G97="compost",GOTO U97,"") ->  | V97: =IF(G97="compost",GOTO V97,"") ->  | W97: =IF(G97="compost",GOTO W97,"") ->  | X97: =IF(G97="compost",GOTO X97,"") ->  | Y97: =IF(G97="compost",GOTO Y97,"") ->  | Z97: =IF(G97="compost",GOTO Z97,"") ->  | AA97: M3 outside | AB97: water in cilantro & pineapple & spider plants
A98: 2022-09-22 | B98: pm | C98: lopez | D98: Kayari | E98: 5 | F98: DE | G98: compost | J98: =IF(G98="Harvest",GOTO J98,"") ->  | K98: =IF(G98="Harvest",GOTO K98,"") ->  | M98: =IF(G98="Fertilize",GOTO M98,"") ->  | N98: =IF(G98="Fertilize",GOTO N98,"") ->  | P98: =IF(G98="Plant",GOTO P98,"") ->  | Q98: =IF(G98="Plant",GOTO Q98,"") ->  | S98: 100 | U98: 1 | V98: 1.5 | W98: 122 | X98: 90 | Y98: 88 | Z98: reset compost tea station | AA98: =IF(G98="Maintenance",GOTO AA98,IF(G98="Table",GOTO AA98,"")) ->  | AB98: =IF(G98="Maintenance",GOTO AB98,IF(G98="Table",GOTO AB98,"")) ->  | AC98: =IF(G98="Maintenance",GOTO AC98,IF(G98="Table",GOTO AC98,"")) -> 
A99: 2022-09-22 | B99: pm | C99: volunteers | G99: Fertilize | H99: grapes | I99: M4,12 | J99: =IF(G99="Harvest",GOTO J99,"") ->  | K99: =IF(G99="Harvest",GOTO K99,"") ->  | M99: ammonium sulfate | N99: M4,12 | O99: 2022-10-06 | P99: =IF(G99="Plant",GOTO P99,"") ->  | Q99: =IF(G99="Plant",GOTO Q99,"") ->  | S99: =IF(G99="compost",GOTO S99,"") ->  | T99: =IF(G99="compost",GOTO T99,"") ->  | U99: =IF(G99="compost",GOTO U99,"") ->  | V99: =IF(G99="compost",GOTO V99,"") ->  | W99: =IF(G99="compost",GOTO W99,"") ->  | X99: =IF(G99="compost",GOTO X99,"") ->  | Y99: =IF(G99="compost",GOTO Y99,"") ->  | Z99: =IF(G99="compost",GOTO Z99,"") ->  | AA99: =IF(G99="Maintenance",GOTO AA99,IF(G99="Table",GOTO AA99,"")) ->  | AB99: =IF(G99="Maintenance",GOTO AB99,IF(G99="Table",GOTO AB99,"")) ->  | AC99: =IF(G99="Maintenance",GOTO AC99,IF(G99="Table",GOTO AC99,"")) -> 
A100: 2022-09-24 | C100: volunteers | G100: harvest | H100: okra | I100: M15,16 | J100: 0 | K100: 7 | L100: M15,16 | M100: =IF(G100="Fertilize",GOTO M100,"") ->  | N100: =IF(G100="Fertilize",GOTO N100,"") ->  | O100: =IF(G100="Fertilize",A100+14,"") ->  | P100: =IF(G100="Plant",GOTO P100,"") ->  | Q100: =IF(G100="Plant",GOTO Q100,"") ->  | S100: =IF(G100="compost",GOTO S100,"") ->  | T100: =IF(G100="compost",GOTO T100,"") ->  | U100: =IF(G100="compost",GOTO U100,"") ->  | V100: =IF(G100="compost",GOTO V100,"") ->  | W100: =IF(G100="compost",GOTO W100,"") ->  | X100: =IF(G100="compost",GOTO X100,"") ->  | Y100: =IF(G100="compost",GOTO Y100,"") ->  | Z100: =IF(G100="compost",GOTO Z100,"") ->  | AA100: =IF(G100="Maintenance",GOTO AA100,IF(G100="Table",GOTO AA100,"")) ->  | AB100: =IF(G100="Maintenance",GOTO AB100,IF(G100="Table",GOTO AB100,"")) ->  | AC100: =IF(G100="Maintenance",GOTO AC100,IF(G100="Table",GOTO AC100,"")) -> 
A101: 2022-09-27 | C101: volunteers | G101: harvest | H101: okra | I101: M15,16 | J101: 2 | K101: 11 | L101: M15,16 | M101: =IF(G101="Fertilize",GOTO M101,"") ->  | N101: =IF(G101="Fertilize",GOTO N101,"") ->  | P101: =IF(G101="Plant",GOTO P101,"") ->  | Q101: =IF(G101="Plant",GOTO Q101,"") ->  | S101: =IF(G101="compost",GOTO S101,"") ->  | T101: =IF(G101="compost",GOTO T101,"") ->  | U101: =IF(G101="compost",GOTO U101,"") ->  | V101: =IF(G101="compost",GOTO V101,"") ->  | W101: =IF(G101="compost",GOTO W101,"") ->  | X101: =IF(G101="compost",GOTO X101,"") ->  | Y101: =IF(G101="compost",GOTO Y101,"") ->  | Z101: =IF(G101="compost",GOTO Z101,"") ->  | AA101: =IF(G101="Maintenance",GOTO AA101,IF(G101="Table",GOTO AA101,"")) ->  | AB101: =IF(G101="Maintenance",GOTO AB101,IF(G101="Table",GOTO AB101,"")) ->  | AC101: =IF(G101="Maintenance",GOTO AC101,IF(G101="Table",GOTO AC101,"")) -> 
A102: 2022-09-27 | C102: volunteers | G102: Fertilize | H102: citrus trees | I102: Orchard Citrus | J102: =IF(G102="Harvest",GOTO J102,"") ->  | K102: =IF(G102="Harvest",GOTO K102,"") ->  | M102: microlife 6-2-4 | N102: Orchard Citrus | O102: 2022-10-11 | P102: =IF(G102="Plant",GOTO P102,"") ->  | Q102: =IF(G102="Plant",GOTO Q102,"") ->  | S102: =IF(G102="compost",GOTO S102,"") ->  | T102: =IF(G102="compost",GOTO T102,"") ->  | U102: =IF(G102="compost",GOTO U102,"") ->  | V102: =IF(G102="compost",GOTO V102,"") ->  | W102: =IF(G102="compost",GOTO W102,"") ->  | X102: =IF(G102="compost",GOTO X102,"") ->  | Y102: =IF(G102="compost",GOTO Y102,"") ->  | Z102: =IF(G102="compost",GOTO Z102,"") ->  | AA102: =IF(G102="Maintenance",GOTO AA102,IF(G102="Table",GOTO AA102,"")) ->  | AB102: =IF(G102="Maintenance",GOTO AB102,IF(G102="Table",GOTO AB102,"")) ->  | AC102: =IF(G102="Maintenance",GOTO AC102,IF(G102="Table",GOTO AC102,"")) -> 
A103: 2022-09-27 | C103: volunteers | G103: maintenance, support | I103: =IF(G103="harvest",L103,IF(G103="plant",Q103,IF(G103="fertilize",N103,IF(G103="maintenance, support",AA103,IF(G103="observation",AA103,""))))) -> orchard | J103: =IF(G103="Harvest",GOTO J103,"") ->  | K103: =IF(G103="Harvest",GOTO K103,"") ->  | M103: =IF(G103="Fertilize",GOTO M103,"") ->  | N103: =IF(G103="Fertilize",GOTO N103,"") ->  | P103: =IF(G103="Plant",GOTO P103,"") ->  | Q103: =IF(G103="Plant",GOTO Q103,"") ->  | S103: =IF(G103="compost",GOTO S103,"") ->  | T103: =IF(G103="compost",GOTO T103,"") ->  | U103: =IF(G103="compost",GOTO U103,"") ->  | V103: =IF(G103="compost",GOTO V103,"") ->  | W103: =IF(G103="compost",GOTO W103,"") ->  | X103: =IF(G103="compost",GOTO X103,"") ->  | Y103: =IF(G103="compost",GOTO Y103,"") ->  | Z103: =IF(G103="compost",GOTO Z103,"") ->  | AA103: orchard | AB103: capped forest area sprinklers | AC103: preparation for extending to O9-12
A104: 2022-09-29 | B104: am | C104: Marucci | D104: Emma | E104: 1 | F104: AM | G104: compost | J104: =IF(G104="Harvest",GOTO J104,"") ->  | K104: =IF(G104="Harvest",GOTO K104,"") ->  | M104: =IF(G104="Fertilize",GOTO M104,"") ->  | N104: =IF(G104="Fertilize",GOTO N104,"") ->  | P104: pots | Q104: pots | S104: 80 | W104: 110 | Z104: sifted compost,shoveled compost | AA104: =IF(G104="Maintenance",GOTO AA104,IF(G104="Table",GOTO AA104,"")) ->  | AB104: =IF(G104="Maintenance",GOTO AB104,IF(G104="Table",GOTO AB104,"")) ->  | AC104: =IF(G104="Maintenance",GOTO AC104,IF(G104="Table",GOTO AC104,"")) -> 
A105: 2022-09-29 | B105: am | C105: Marucci | D105: blake | E105: 2 | F105: PM | G105: harvest | H105: okra | I105: m16 | J105: 0 | K105: 5 | L105: m16 | M105: =IF(G105="Fertilize",GOTO M105,"") ->  | N105: =IF(G105="Fertilize",GOTO N105,"") ->  | P105: =IF(G105="Plant",GOTO P105,"") ->  | Q105: =IF(G105="Plant",GOTO Q105,"") ->  | S105: =IF(G105="compost",GOTO S105,"") ->  | T105: =IF(G105="compost",GOTO T105,"") ->  | U105: =IF(G105="compost",GOTO U105,"") ->  | V105: =IF(G105="compost",GOTO V105,"") ->  | W105: =IF(G105="compost",GOTO W105,"") ->  | X105: =IF(G105="compost",GOTO X105,"") ->  | Y105: =IF(G105="compost",GOTO Y105,"") ->  | Z105: =IF(G105="compost",GOTO Z105,"") ->  | AA105: M5, 6 | AB105: filled holes with compost
A106: 2022-09-29 | B106: am | C106: Marucci | D106: Carlos | E106: 3 | F106: PB | G106: plant | H106: carrots | I106: M13 | J106: =IF(G106="Harvest",GOTO J106,"") ->  | K106: =IF(G106="Harvest",GOTO K106,"") ->  | M106: =IF(G106="Fertilize",GOTO M106,"") ->  | N106: =IF(G106="Fertilize",GOTO N106,"") ->  | P106: planting stick | Q106: M13 | R106: 2022-10-13 | S106: =IF(G106="compost",GOTO S106,"") ->  | T106: =IF(G106="compost",GOTO T106,"") ->  | U106: =IF(G106="compost",GOTO U106,"") ->  | V106: =IF(G106="compost",GOTO V106,"") ->  | W106: =IF(G106="compost",GOTO W106,"") ->  | X106: =IF(G106="compost",GOTO X106,"") ->  | Y106: =IF(G106="compost",GOTO Y106,"") ->  | Z106: =IF(G106="compost",GOTO Z106,"") ->  | AA106: M13 | AB106: fill holes that were low
A107: 2022-09-29 | B107: am | C107: Marucci | D107: Zamair | E107: 4 | F107: SK | G107: observation | I107: M9 | J107: =IF(G107="Harvest",GOTO J107,"") ->  | K107: =IF(G107="Harvest",GOTO K107,"") ->  | M107: =IF(G107="Fertilize",GOTO M107,"") ->  | N107: =IF(G107="Fertilize",GOTO N107,"") ->  | P107: =IF(G107="Plant",GOTO P107,"") ->  | Q107: =IF(G107="Plant",GOTO Q107,"") ->  | S107: =IF(G107="compost",GOTO S107,"") ->  | T107: =IF(G107="compost",GOTO T107,"") ->  | U107: =IF(G107="compost",GOTO U107,"") ->  | V107: =IF(G107="compost",GOTO V107,"") ->  | W107: =IF(G107="compost",GOTO W107,"") ->  | X107: =IF(G107="compost",GOTO X107,"") ->  | Y107: =IF(G107="compost",GOTO Y107,"") ->  | Z107: =IF(G107="compost",GOTO Z107,"") ->  | AA107: M9 | AB107: M9b plants taller | AC107: everything else no difference
A108: 2022-09-29 | B108: am | C108: Marucci | D108: Bryce | E108: 5 | F108: SH | G108: plant | H108: turnips | I108: M7 | J108: =IF(G108="Harvest",GOTO J108,"") ->  | K108: =IF(G108="Harvest",GOTO K108,"") ->  | M108: =IF(G108="Fertilize",GOTO M108,"") ->  | N108: =IF(G108="Fertilize",GOTO N108,"") ->  | P108: plant turnips 1/4" deep, 1-2" apart, water in | Q108: M7 | R108: 2022-10-13 | S108: =IF(G108="compost",GOTO S108,"") ->  | T108: =IF(G108="compost",GOTO T108,"") ->  | U108: =IF(G108="compost",GOTO U108,"") ->  | V108: =IF(G108="compost",GOTO V108,"") ->  | W108: =IF(G108="compost",GOTO W108,"") ->  | X108: =IF(G108="compost",GOTO X108,"") ->  | Y108: =IF(G108="compost",GOTO Y108,"") ->  | Z108: =IF(G108="compost",GOTO Z108,"") ->  | AA108: =IF(G108="Maintenance",GOTO AA108,IF(G108="Table",GOTO AA108,"")) ->  | AB108: =IF(G108="Maintenance",GOTO AB108,IF(G108="Table",GOTO AB108,"")) ->  | AC108: =IF(G108="Maintenance",GOTO AC108,IF(G108="Table",GOTO AC108,"")) -> 
A109: 2022-09-29 | B109: am | C109: Marucci | D109: Elaina | E109: 6 | F109: DC | G109: plant | H109: lettuce | I109: M6a | J109: =IF(G109="Harvest",GOTO J109,"") ->  | K109: =IF(G109="Harvest",GOTO K109,"") ->  | M109: =IF(G109="Fertilize",GOTO M109,"") ->  | N109: =IF(G109="Fertilize",GOTO N109,"") ->  | P109: scatter seed (future transplants) | Q109: M6a | R109: 2022-10-13 | S109: =IF(G109="compost",GOTO S109,"") ->  | T109: =IF(G109="compost",GOTO T109,"") ->  | U109: =IF(G109="compost",GOTO U109,"") ->  | V109: =IF(G109="compost",GOTO V109,"") ->  | W109: =IF(G109="compost",GOTO W109,"") ->  | X109: =IF(G109="compost",GOTO X109,"") ->  | Y109: =IF(G109="compost",GOTO Y109,"") ->  | Z109: =IF(G109="compost",GOTO Z109,"") ->  | AA109: shed | AB109: plant cilantro | AC109: water in well bottom tier
A110: 2022-09-29 | B110: PM | C110: Marucci | D110: Lauren | E110: 1 | F110: AM | G110: compost | J110: =IF(G110="Harvest",GOTO J110,"") ->  | K110: =IF(G110="Harvest",GOTO K110,"") ->  | M110: =IF(G110="Fertilize",GOTO M110,"") ->  | N110: =IF(G110="Fertilize",GOTO N110,"") ->  | P110: plant in pots water in | Q110: pots | S110: 88 | W110: 100 | Y110: 72 | Z110: collect compost tea, bin2 to bin3 | AA110: =IF(G110="Maintenance",GOTO AA110,IF(G110="Table",GOTO AA110,"")) ->  | AB110: =IF(G110="Maintenance",GOTO AB110,IF(G110="Table",GOTO AB110,"")) ->  | AC110: =IF(G110="Maintenance",GOTO AC110,IF(G110="Table",GOTO AC110,"")) -> 
A111: 2022-09-29 | B111: PM | C111: Marucci | D111: Bianca | E111: 2 | F111: DL | G111: plant | H111: spinach | I111: O16 | J111: =IF(G111="Harvest",GOTO J111,"") ->  | K111: =IF(G111="Harvest",GOTO K111,"") ->  | M111: =IF(G111="Fertilize",GOTO M111,"") ->  | N111: =IF(G111="Fertilize",GOTO N111,"") ->  | P111: plant 1/3 bed (3 rows) 1/2" by 2" apart, water in well | Q111: O16 | R111: 2022-10-13 | S111: =IF(G111="compost",GOTO S111,"") ->  | T111: =IF(G111="compost",GOTO T111,"") ->  | U111: =IF(G111="compost",GOTO U111,"") ->  | V111: =IF(G111="compost",GOTO V111,"") ->  | W111: =IF(G111="compost",GOTO W111,"") ->  | X111: =IF(G111="compost",GOTO X111,"") ->  | Y111: =IF(G111="compost",GOTO Y111,"") ->  | Z111: =IF(G111="compost",GOTO Z111,"") ->  | AA111: orchard | AB111: fill holes that were low | AC111: O17
A112: 2022-09-29 | B112: PM | C112: Marucci | D112: Michael | E112: 3 | F112: PM | G112: plant | H112: beets | I112: M10 | J112: =IF(G112="Harvest",GOTO J112,"") ->  | K112: =IF(G112="Harvest",GOTO K112,"") ->  | M112: =IF(G112="Fertilize",GOTO M112,"") ->  | N112: =IF(G112="Fertilize",GOTO N112,"") ->  | P112: plant 3/4"-1" deep, 1" apart, water in | Q112: M10 | R112: 2022-10-13 | S112: =IF(G112="compost",GOTO S112,"") ->  | T112: =IF(G112="compost",GOTO T112,"") ->  | U112: =IF(G112="compost",GOTO U112,"") ->  | V112: =IF(G112="compost",GOTO V112,"") ->  | W112: =IF(G112="compost",GOTO W112,"") ->  | X112: =IF(G112="compost",GOTO X112,"") ->  | Y112: =IF(G112="compost",GOTO Y112,"") ->  | Z112: =IF(G112="compost",GOTO Z112,"") ->  | AA112: M13 | AB112: fill in holes | AC112: add Microlife 6-2-4
A113: 2022-09-29 | B113: PM | C113: Marucci | D113: Michael | E113: 3 | F113: PM | G113: plant | H113: radish | I113: M13 | J113: =IF(G113="Harvest",GOTO J113,"") ->  | K113: =IF(G113="Harvest",GOTO K113,"") ->  | M113: =IF(G113="Fertilize",GOTO M113,"") ->  | N113: =IF(G113="Fertilize",GOTO N113,"") ->  | P113: surface plant, cover with compost, water in | Q113: M13 | R113: 2022-10-13 | S113: =IF(G113="compost",GOTO S113,"") ->  | T113: =IF(G113="compost",GOTO T113,"") ->  | U113: =IF(G113="compost",GOTO U113,"") ->  | V113: =IF(G113="compost",GOTO V113,"") ->  | W113: =IF(G113="compost",GOTO W113,"") ->  | X113: =IF(G113="compost",GOTO X113,"") ->  | Y113: =IF(G113="compost",GOTO Y113,"") ->  | Z113: =IF(G113="compost",GOTO Z113,"") ->  | AA113: =IF(G113="Maintenance",GOTO AA113,IF(G113="Table",GOTO AA113,"")) ->  | AB113: =IF(G113="Maintenance",GOTO AB113,IF(G113="Table",GOTO AB113,"")) ->  | AC113: =IF(G113="Maintenance",GOTO AC113,IF(G113="Table",GOTO AC113,"")) -> 
A114: 2022-09-29 | B114: PM | C114: Marucci | D114: Roxanne | E114: 4 | F114: SK | G114: observation | I114: M9 | J114: =IF(G114="Harvest",GOTO J114,"") ->  | K114: =IF(G114="Harvest",GOTO K114,"") ->  | M114: =IF(G114="Fertilize",GOTO M114,"") ->  | N114: =IF(G114="Fertilize",GOTO N114,"") ->  | P114: =IF(G114="Plant",GOTO P114,"") ->  | Q114: =IF(G114="Plant",GOTO Q114,"") ->  | S114: =IF(G114="compost",GOTO S114,"") ->  | T114: =IF(G114="compost",GOTO T114,"") ->  | U114: =IF(G114="compost",GOTO U114,"") ->  | V114: =IF(G114="compost",GOTO V114,"") ->  | W114: =IF(G114="compost",GOTO W114,"") ->  | X114: =IF(G114="compost",GOTO X114,"") ->  | Y114: =IF(G114="compost",GOTO Y114,"") ->  | Z114: =IF(G114="compost",GOTO Z114,"") ->  | AA114: M9 | AB114: M9b plants taller | AC114: everything else no difference, apply compost tea M9b only
A115: 2022-09-29 | B115: PM | C115: Marucci | D115: Breyanna | E115: 5 | F115: KK | G115: harvest | H115: eggplant | I115: M5 | J115: 5 | K115: 3 | L115: M5 | M115: =IF(G115="Fertilize",GOTO M115,"") ->  | N115: =IF(G115="Fertilize",GOTO N115,"") ->  | P115: =IF(G115="Plant",GOTO P115,"") ->  | Q115: =IF(G115="Plant",GOTO Q115,"") ->  | S115: =IF(G115="compost",GOTO S115,"") ->  | T115: =IF(G115="compost",GOTO T115,"") ->  | U115: =IF(G115="compost",GOTO U115,"") ->  | V115: =IF(G115="compost",GOTO V115,"") ->  | W115: =IF(G115="compost",GOTO W115,"") ->  | X115: =IF(G115="compost",GOTO X115,"") ->  | Y115: =IF(G115="compost",GOTO Y115,"") ->  | Z115: =IF(G115="compost",GOTO Z115,"") ->  | AA115: M14 | AB115: fill in holes | AC115: compost and microlife 6-2-4
A116: 2022-09-29 | B116: PM | C116: Marucci | D116: Amy | E116: 6 | F116: PB | G116: plant | H116: kale | I116: M15b | J116: =IF(G116="Harvest",GOTO J116,"") ->  | K116: =IF(G116="Harvest",GOTO K116,"") ->  | M116: =IF(G116="Fertilize",GOTO M116,"") ->  | N116: =IF(G116="Fertilize",GOTO N116,"") ->  | P116: plant 1/2" and 2" apart in several rows | Q116: M15b | R116: 2022-10-13 | S116: =IF(G116="compost",GOTO S116,"") ->  | T116: =IF(G116="compost",GOTO T116,"") ->  | U116: =IF(G116="compost",GOTO U116,"") ->  | V116: =IF(G116="compost",GOTO V116,"") ->  | W116: =IF(G116="compost",GOTO W116,"") ->  | X116: =IF(G116="compost",GOTO X116,"") ->  | Y116: =IF(G116="compost",GOTO Y116,"") ->  | Z116: =IF(G116="compost",GOTO Z116,"") ->  | AA116: =IF(G116="Maintenance",GOTO AA116,IF(G116="Table",GOTO AA116,"")) ->  | AB116: =IF(G116="Maintenance",GOTO AB116,IF(G116="Table",GOTO AB116,"")) ->  | AC116: =IF(G116="Maintenance",GOTO AC116,IF(G116="Table",GOTO AC116,"")) -> 
A117: 2022-09-29 | B117: PM | C117: Marucci | D117: Amy | E117: 6 | F117: PB | G117: plant | H117: radish | I117: M15a | J117: =IF(G117="Harvest",GOTO J117,"") ->  | K117: =IF(G117="Harvest",GOTO K117,"") ->  | M117: =IF(G117="Fertilize",GOTO M117,"") ->  | N117: =IF(G117="Fertilize",GOTO N117,"") ->  | P117: scatter seed (future transplants) | Q117: M15a | R117: 2022-10-13 | S117: =IF(G117="compost",GOTO S117,"") ->  | T117: =IF(G117="compost",GOTO T117,"") ->  | U117: =IF(G117="compost",GOTO U117,"") ->  | V117: =IF(G117="compost",GOTO V117,"") ->  | W117: =IF(G117="compost",GOTO W117,"") ->  | X117: =IF(G117="compost",GOTO X117,"") ->  | Y117: =IF(G117="compost",GOTO Y117,"") ->  | Z117: =IF(G117="compost",GOTO Z117,"") ->  | AA117: M15a,b | AB117: work bed up for planting with microlife 6-2-4 | AC117: water in plants after planting
A118: 2022-10-01 | C118: volunteers | G118: harvest | H118: okra | I118: M15 | J118: 0 | K118: 14 | L118: M15 | M118: =IF(G118="Fertilize",GOTO M118,"") ->  | N118: =IF(G118="Fertilize",GOTO N118,"") ->  | P118: =IF(G118="Plant",GOTO P118,"") ->  | Q118: =IF(G118="Plant",GOTO Q118,"") ->  | S118: =IF(G118="compost",GOTO S118,"") ->  | T118: =IF(G118="compost",GOTO T118,"") ->  | U118: =IF(G118="compost",GOTO U118,"") ->  | V118: =IF(G118="compost",GOTO V118,"") ->  | W118: =IF(G118="compost",GOTO W118,"") ->  | X118: =IF(G118="compost",GOTO X118,"") ->  | Y118: =IF(G118="compost",GOTO Y118,"") ->  | Z118: =IF(G118="compost",GOTO Z118,"") ->  | AA118: =IF(G118="Maintenance",GOTO AA118,IF(G118="Table",GOTO AA118,"")) ->  | AB118: =IF(G118="Maintenance",GOTO AB118,IF(G118="Table",GOTO AB118,"")) ->  | AC118: =IF(G118="Maintenance",GOTO AC118,IF(G118="Table",GOTO AC118,"")) -> 
A119: 2022-10-04 | C119: volunteers | G119: harvest | H119: okra | I119: M15 | J119: 2 | K119: 14 | L119: M15 | M119: =IF(G119="Fertilize",GOTO M119,"") ->  | N119: =IF(G119="Fertilize",GOTO N119,"") ->  | P119: =IF(G119="Plant",GOTO P119,"") ->  | Q119: =IF(G119="Plant",GOTO Q119,"") ->  | S119: =IF(G119="compost",GOTO S119,"") ->  | T119: =IF(G119="compost",GOTO T119,"") ->  | U119: =IF(G119="compost",GOTO U119,"") ->  | V119: =IF(G119="compost",GOTO V119,"") ->  | W119: =IF(G119="compost",GOTO W119,"") ->  | X119: =IF(G119="compost",GOTO X119,"") ->  | Y119: =IF(G119="compost",GOTO Y119,"") ->  | Z119: =IF(G119="compost",GOTO Z119,"") ->  | AA119: =IF(G119="Maintenance",GOTO AA119,IF(G119="Table",GOTO AA119,"")) ->  | AB119: =IF(G119="Maintenance",GOTO AB119,IF(G119="Table",GOTO AB119,"")) ->  | AC119: =IF(G119="Maintenance",GOTO AC119,IF(G119="Table",GOTO AC119,"")) -> 
A120: 2022-10-06 | C120: volunteers | G120: harvest | H120: okra | I120: M15 | J120: 1 | K120: 4 | L120: M15 | M120: =IF(G120="Fertilize",GOTO M120,"") ->  | N120: =IF(G120="Fertilize",GOTO N120,"") ->  | P120: =IF(G120="Plant",GOTO P120,"") ->  | Q120: =IF(G120="Plant",GOTO Q120,"") ->  | S120: =IF(G120="compost",GOTO S120,"") ->  | T120: =IF(G120="compost",GOTO T120,"") ->  | U120: =IF(G120="compost",GOTO U120,"") ->  | V120: =IF(G120="compost",GOTO V120,"") ->  | W120: =IF(G120="compost",GOTO W120,"") ->  | X120: =IF(G120="compost",GOTO X120,"") ->  | Y120: =IF(G120="compost",GOTO Y120,"") ->  | Z120: =IF(G120="compost",GOTO Z120,"") ->  | AA120: =IF(G120="Maintenance",GOTO AA120,IF(G120="Table",GOTO AA120,"")) ->  | AB120: =IF(G120="Maintenance",GOTO AB120,IF(G120="Table",GOTO AB120,"")) ->  | AC120: =IF(G120="Maintenance",GOTO AC120,IF(G120="Table",GOTO AC120,"")) -> 
A121: 2022-10-06 | C121: volunteers | G121: harvest | H121: beans, yard long | I121: M8 | J121: 0 | K121: 4 | L121: M8 | M121: =IF(G121="Fertilize",GOTO M121,"") ->  | N121: =IF(G121="Fertilize",GOTO N121,"") ->  | P121: =IF(G121="Plant",GOTO P121,"") ->  | Q121: =IF(G121="Plant",GOTO Q121,"") ->  | S121: =IF(G121="compost",GOTO S121,"") ->  | T121: =IF(G121="compost",GOTO T121,"") ->  | U121: =IF(G121="compost",GOTO U121,"") ->  | V121: =IF(G121="compost",GOTO V121,"") ->  | W121: =IF(G121="compost",GOTO W121,"") ->  | X121: =IF(G121="compost",GOTO X121,"") ->  | Y121: =IF(G121="compost",GOTO Y121,"") ->  | Z121: =IF(G121="compost",GOTO Z121,"") ->  | AA121: =IF(G121="Maintenance",GOTO AA121,IF(G121="Table",GOTO AA121,"")) ->  | AB121: =IF(G121="Maintenance",GOTO AB121,IF(G121="Table",GOTO AB121,"")) ->  | AC121: =IF(G121="Maintenance",GOTO AC121,IF(G121="Table",GOTO AC121,"")) -> 
A122: 2022-10-07 | C122: volunteers | G122: maintenance, support | I122: Main | J122: =IF(G122="Harvest",GOTO J122,"") ->  | K122: =IF(G122="Harvest",GOTO K122,"") ->  | M122: =IF(G122="Fertilize",GOTO M122,"") ->  | N122: =IF(G122="Fertilize",GOTO N122,"") ->  | P122: =IF(G122="Plant",GOTO P122,"") ->  | Q122: =IF(G122="Plant",GOTO Q122,"") ->  | S122: =IF(G122="compost",GOTO S122,"") ->  | T122: =IF(G122="compost",GOTO T122,"") ->  | U122: =IF(G122="compost",GOTO U122,"") ->  | V122: =IF(G122="compost",GOTO V122,"") ->  | W122: =IF(G122="compost",GOTO W122,"") ->  | X122: =IF(G122="compost",GOTO X122,"") ->  | Y122: =IF(G122="compost",GOTO Y122,"") ->  | Z122: =IF(G122="compost",GOTO Z122,"") ->  | AA122: shed | AB122: door sill and frame repaired | AC122: replaced rotted wood and painted
A123: 2022-10-08 | C123: volunteers | G123: harvest | H123: okra | I123: M15 | J123: 0 | K123: 7 | L123: M15 | M123: =IF(G123="Fertilize",GOTO M123,"") ->  | N123: =IF(G123="Fertilize",GOTO N123,"") ->  | P123: =IF(G123="Plant",GOTO P123,"") ->  | Q123: =IF(G123="Plant",GOTO Q123,"") ->  | S123: =IF(G123="compost",GOTO S123,"") ->  | T123: =IF(G123="compost",GOTO T123,"") ->  | U123: =IF(G123="compost",GOTO U123,"") ->  | V123: =IF(G123="compost",GOTO V123,"") ->  | W123: =IF(G123="compost",GOTO W123,"") ->  | X123: =IF(G123="compost",GOTO X123,"") ->  | Y123: =IF(G123="compost",GOTO Y123,"") ->  | Z123: =IF(G123="compost",GOTO Z123,"") ->  | AA123: =IF(G123="Maintenance",GOTO AA123,IF(G123="Table",GOTO AA123,"")) ->  | AB123: =IF(G123="Maintenance",GOTO AB123,IF(G123="Table",GOTO AB123,"")) ->  | AC123: =IF(G123="Maintenance",GOTO AC123,IF(G123="Table",GOTO AC123,"")) -> 
A124: 2022-10-08 | C124: volunteers | G124: maintenance, support | I124: Orchard | J124: =IF(G124="Harvest",GOTO J124,"") ->  | K124: =IF(G124="Harvest",GOTO K124,"") ->  | M124: =IF(G124="Fertilize",GOTO M124,"") ->  | N124: =IF(G124="Fertilize",GOTO N124,"") ->  | P124: =IF(G124="Plant",GOTO P124,"") ->  | Q124: =IF(G124="Plant",GOTO Q124,"") ->  | S124: =IF(G124="compost",GOTO S124,"") ->  | T124: =IF(G124="compost",GOTO T124,"") ->  | U124: =IF(G124="compost",GOTO U124,"") ->  | V124: =IF(G124="compost",GOTO V124,"") ->  | W124: =IF(G124="compost",GOTO W124,"") ->  | X124: =IF(G124="compost",GOTO X124,"") ->  | Y124: =IF(G124="compost",GOTO Y124,"") ->  | Z124: =IF(G124="compost",GOTO Z124,"") ->  | AA124: O9-12 | AB124: completed irrigation extension | AC124: add O9-12 to automatic irrigation
A125: 2022-10-08 | C125: volunteers | G125: harvest | H125: beans, yard long | I125: M8 | J125: 0 | K125: 2 | L125: M8 | M125: =IF(G125="Fertilize",GOTO M125,"") ->  | N125: =IF(G125="Fertilize",GOTO N125,"") ->  | P125: =IF(G125="Plant",GOTO P125,"") ->  | Q125: =IF(G125="Plant",GOTO Q125,"") ->  | S125: =IF(G125="compost",GOTO S125,"") ->  | T125: =IF(G125="compost",GOTO T125,"") ->  | U125: =IF(G125="compost",GOTO U125,"") ->  | V125: =IF(G125="compost",GOTO V125,"") ->  | W125: =IF(G125="compost",GOTO W125,"") ->  | X125: =IF(G125="compost",GOTO X125,"") ->  | Y125: =IF(G125="compost",GOTO Y125,"") ->  | Z125: =IF(G125="compost",GOTO Z125,"") ->  | AA125: =IF(G125="Maintenance",GOTO AA125,IF(G125="Table",GOTO AA125,"")) ->  | AB125: =IF(G125="Maintenance",GOTO AB125,IF(G125="Table",GOTO AB125,"")) ->  | AC125: =IF(G125="Maintenance",GOTO AC125,IF(G125="Table",GOTO AC125,"")) -> 
A126: 2022-10-11 | C126: volunteers | G126: harvest | H126: okra | I126: m15 | J126: 0 | K126: 9 | L126: m15 | M126: =IF(G126="Fertilize",GOTO M126,"") ->  | N126: =IF(G126="Fertilize",GOTO N126,"") ->  | P126: =IF(G126="Plant",GOTO P126,"") ->  | Q126: =IF(G126="Plant",GOTO Q126,"") ->  | S126: =IF(G126="compost",GOTO S126,"") ->  | T126: =IF(G126="compost",GOTO T126,"") ->  | U126: =IF(G126="compost",GOTO U126,"") ->  | V126: =IF(G126="compost",GOTO V126,"") ->  | W126: =IF(G126="compost",GOTO W126,"") ->  | X126: =IF(G126="compost",GOTO X126,"") ->  | Y126: =IF(G126="compost",GOTO Y126,"") ->  | Z126: =IF(G126="compost",GOTO Z126,"") ->  | AA126: =IF(G126="Maintenance",GOTO AA126,IF(G126="Table",GOTO AA126,"")) ->  | AB126: =IF(G126="Maintenance",GOTO AB126,IF(G126="Table",GOTO AB126,"")) ->  | AC126: =IF(G126="Maintenance",GOTO AC126,IF(G126="Table",GOTO AC126,"")) -> 
A127: 2022-10-11 | C127: volunteers | G127: harvest | H127: beans, yard long | I127: m8 | J127: 0 | K127: 1 | L127: m8 | M127: =IF(G127="Fertilize",GOTO M127,"") ->  | N127: =IF(G127="Fertilize",GOTO N127,"") ->  | P127: =IF(G127="Plant",GOTO P127,"") ->  | Q127: =IF(G127="Plant",GOTO Q127,"") ->  | S127: =IF(G127="compost",GOTO S127,"") ->  | T127: =IF(G127="compost",GOTO T127,"") ->  | U127: =IF(G127="compost",GOTO U127,"") ->  | V127: =IF(G127="compost",GOTO V127,"") ->  | W127: =IF(G127="compost",GOTO W127,"") ->  | X127: =IF(G127="compost",GOTO X127,"") ->  | Y127: =IF(G127="compost",GOTO Y127,"") ->  | Z127: =IF(G127="compost",GOTO Z127,"") ->  | AA127: =IF(G127="Maintenance",GOTO AA127,IF(G127="Table",GOTO AA127,"")) ->  | AB127: =IF(G127="Maintenance",GOTO AB127,IF(G127="Table",GOTO AB127,"")) ->  | AC127: =IF(G127="Maintenance",GOTO AC127,IF(G127="Table",GOTO AC127,"")) -> 
A128: 2022-10-11 | C128: volunteers | G128: harvest | H128: eggplant | I128: m5 | J128: 1 | K128: 11 | L128: m5 | M128: =IF(G128="Fertilize",GOTO M128,"") ->  | N128: =IF(G128="Fertilize",GOTO N128,"") ->  | P128: =IF(G128="Plant",GOTO P128,"") ->  | Q128: =IF(G128="Plant",GOTO Q128,"") ->  | S128: =IF(G128="compost",GOTO S128,"") ->  | T128: =IF(G128="compost",GOTO T128,"") ->  | U128: =IF(G128="compost",GOTO U128,"") ->  | V128: =IF(G128="compost",GOTO V128,"") ->  | W128: =IF(G128="compost",GOTO W128,"") ->  | X128: =IF(G128="compost",GOTO X128,"") ->  | Y128: =IF(G128="compost",GOTO Y128,"") ->  | Z128: =IF(G128="compost",GOTO Z128,"") ->  | AA128: =IF(G128="Maintenance",GOTO AA128,IF(G128="Table",GOTO AA128,"")) ->  | AB128: =IF(G128="Maintenance",GOTO AB128,IF(G128="Table",GOTO AB128,"")) ->  | AC128: =IF(G128="Maintenance",GOTO AC128,IF(G128="Table",GOTO AC128,"")) -> 
A129: 2022-10-13 | B129: PM | C129: Harisis | D129: Mariana | E129: 1 | F129: DK | G129: compost | J129: =IF(G129="Harvest",GOTO J129,"") ->  | K129: =IF(G129="Harvest",GOTO K129,"") ->  | M129: =IF(G129="Fertilize",GOTO M129,"") ->  | N129: =IF(G129="Fertilize",GOTO N129,"") ->  | P129: =IF(G129="Plant",GOTO P129,"") ->  | Q129: =IF(G129="Plant",GOTO Q129,"") ->  | R129: =IF(G129="Plant",A129+14,"") ->  | S129: 90 | U129: 0 | V129: 1.1 | W129: 142 | Z129: =IF(G129="compost",GOTO Z129,"") ->  | AA129: =IF(G129="Maintenance",GOTO AA129,IF(G129="Table",GOTO AA129,"")) ->  | AB129: =IF(G129="Maintenance",GOTO AB129,IF(G129="Table",GOTO AB129,"")) ->  | AC129: =IF(G129="Maintenance",GOTO AC129,IF(G129="Table",GOTO AC129,"")) -> 
A130: 2022-10-13 | B130: PM | C130: Harisis | D130: Enrique | E130: 2 | F130: KK/MW | G130: harvest | H130: potato, sweet | I130: O2 | J130: =130/2 -> 65 | K130: 8 | L130: O2 | M130: =IF(G130="Fertilize",GOTO M130,"") ->  | N130: =IF(G130="Fertilize",GOTO N130,"") ->  | P130: =IF(G130="Plant",GOTO P130,"") ->  | Q130: =IF(G130="Plant",GOTO Q130,"") ->  | S130: =IF(G130="compost",GOTO S130,"") ->  | T130: =IF(G130="compost",GOTO T130,"") ->  | U130: =IF(G130="compost",GOTO U130,"") ->  | V130: =IF(G130="compost",GOTO V130,"") ->  | W130: =IF(G130="compost",GOTO W130,"") ->  | X130: =IF(G130="compost",GOTO X130,"") ->  | Y130: =IF(G130="compost",GOTO Y130,"") ->  | Z130: =IF(G130="compost",GOTO Z130,"") ->  | AA130: =IF(G130="Maintenance",GOTO AA130,IF(G130="Table",GOTO AA130,"")) ->  | AB130: =IF(G130="Maintenance",GOTO AB130,IF(G130="Table",GOTO AB130,"")) ->  | AC130: =IF(G130="Maintenance",GOTO AC130,IF(G130="Table",GOTO AC130,"")) -> 
A131: 2022-10-13 | B131: PM | C131: Harisis | D131: Ellie | E131: 3 | F131: SK/SH | G131: harvest | H131: beans, yard long | I131: M8 | J131: 0 | K131: 2 | L131: M8 | M131: =IF(G131="Fertilize",GOTO M131,"") ->  | N131: =IF(G131="Fertilize",GOTO N131,"") ->  | P131: =IF(G131="Plant",GOTO P131,"") ->  | Q131: =IF(G131="Plant",GOTO Q131,"") ->  | S131: =IF(G131="compost",GOTO S131,"") ->  | T131: =IF(G131="compost",GOTO T131,"") ->  | U131: =IF(G131="compost",GOTO U131,"") ->  | V131: =IF(G131="compost",GOTO V131,"") ->  | W131: =IF(G131="compost",GOTO W131,"") ->  | X131: =IF(G131="compost",GOTO X131,"") ->  | Y131: =IF(G131="compost",GOTO Y131,"") ->  | Z131: =IF(G131="compost",GOTO Z131,"") ->  | AA131: =IF(G131="Maintenance",GOTO AA131,IF(G131="Table",GOTO AA131,"")) ->  | AB131: =IF(G131="Maintenance",GOTO AB131,IF(G131="Table",GOTO AB131,"")) ->  | AC131: =IF(G131="Maintenance",GOTO AC131,IF(G131="Table",GOTO AC131,"")) -> 
A132: 2022-10-13 | B132: PM | C132: Harisis | D132: Ellie | E132: 3 | F132: SK/SH | G132: harvest | H132: okra | I132: =IF(G132="harvest",L132,IF(G132="plant",Q132,IF(G132="fertilize",N132,IF(G132="maintenance",AA132,IF(G132="observation",AA132,""))))) -> M15 | J132: 0 | K132: 5 | L132: M15 | M132: =IF(G132="Fertilize",GOTO M132,"") ->  | N132: =IF(G132="Fertilize",GOTO N132,"") ->  | O132: =IF(G132="Fertilize",A132+14,"") ->  | P132: =IF(G132="Plant",GOTO P132,"") ->  | Q132: =IF(G132="Plant",GOTO Q132,"") ->  | S132: =IF(G132="compost",GOTO S132,"") ->  | T132: =IF(G132="compost",GOTO T132,"") ->  | U132: =IF(G132="compost",GOTO U132,"") ->  | V132: =IF(G132="compost",GOTO V132,"") ->  | W132: =IF(G132="compost",GOTO W132,"") ->  | X132: =IF(G132="compost",GOTO X132,"") ->  | Y132: =IF(G132="compost",GOTO Y132,"") ->  | Z132: =IF(G132="compost",GOTO Z132,"") ->  | AA132: =IF(G132="Maintenance",GOTO AA132,IF(G132="Table",GOTO AA132,"")) ->  | AB132: =IF(G132="Maintenance",GOTO AB132,IF(G132="Table",GOTO AB132,"")) ->  | AC132: =IF(G132="Maintenance",GOTO AC132,IF(G132="Table",GOTO AC132,"")) -> 
A133: 2022-10-13 | B133: PM | C133: Harisis | D133: Ellie | E133: 3 | F133: SK/SH | G133: harvest | H133: eggplant | I133: M5b | J133: 1 | K133: 5 | L133: M5b | M133: =IF(G133="Fertilize",GOTO M133,"") ->  | N133: =IF(G133="Fertilize",GOTO N133,"") ->  | P133: =IF(G133="Plant",GOTO P133,"") ->  | Q133: =IF(G133="Plant",GOTO Q133,"") ->  | S133: =IF(G133="compost",GOTO S133,"") ->  | T133: =IF(G133="compost",GOTO T133,"") ->  | U133: =IF(G133="compost",GOTO U133,"") ->  | V133: =IF(G133="compost",GOTO V133,"") ->  | W133: =IF(G133="compost",GOTO W133,"") ->  | X133: =IF(G133="compost",GOTO X133,"") ->  | Y133: =IF(G133="compost",GOTO Y133,"") ->  | Z133: =IF(G133="compost",GOTO Z133,"") ->  | AA133: =IF(G133="Maintenance",GOTO AA133,IF(G133="Table",GOTO AA133,"")) ->  | AB133: =IF(G133="Maintenance",GOTO AB133,IF(G133="Table",GOTO AB133,"")) ->  | AC133: =IF(G133="Maintenance",GOTO AC133,IF(G133="Table",GOTO AC133,"")) -> 
A134: 2022-10-13 | B134: PM | C134: Harisis | D134: Dariana | E134: 4 | F134: DC | G134: harvest | H134: potato, sweet | I134: O2 | J134: =130/2 -> 65 | K134: 7 | L134: O2 | M134: =IF(G134="Fertilize",GOTO M134,"") ->  | N134: =IF(G134="Fertilize",GOTO N134,"") ->  | P134: =IF(G134="Plant",GOTO P134,"") ->  | Q134: =IF(G134="Plant",GOTO Q134,"") ->  | S134: =IF(G134="compost",GOTO S134,"") ->  | T134: =IF(G134="compost",GOTO T134,"") ->  | U134: =IF(G134="compost",GOTO U134,"") ->  | V134: =IF(G134="compost",GOTO V134,"") ->  | W134: =IF(G134="compost",GOTO W134,"") ->  | X134: =IF(G134="compost",GOTO X134,"") ->  | Y134: =IF(G134="compost",GOTO Y134,"") ->  | Z134: =IF(G134="compost",GOTO Z134,"") ->  | AA134: =IF(G134="Maintenance",GOTO AA134,IF(G134="Table",GOTO AA134,"")) ->  | AB134: =IF(G134="Maintenance",GOTO AB134,IF(G134="Table",GOTO AB134,"")) ->  | AC134: =IF(G134="Maintenance",GOTO AC134,IF(G134="Table",GOTO AC134,"")) -> 
A135: 2022-10-13 | B135: AM | C135: Harisis | D135: Daniel | E135: 1 | F135: DK | G135: compost | J135: =IF(G135="Harvest",GOTO J135,"") ->  | K135: =IF(G135="Harvest",GOTO K135,"") ->  | M135: =IF(G135="Fertilize",GOTO M135,"") ->  | N135: =IF(G135="Fertilize",GOTO N135,"") ->  | P135: =IF(G135="Plant",GOTO P135,"") ->  | Q135: =IF(G135="Plant",GOTO Q135,"") ->  | S135: 82 | U135: 0 | V135: 1.2 | W135: 142 | Z135: helped with sweet potatoes | AA135: =IF(G135="Maintenance",GOTO AA135,IF(G135="Table",GOTO AA135,"")) ->  | AB135: =IF(G135="Maintenance",GOTO AB135,IF(G135="Table",GOTO AB135,"")) ->  | AC135: =IF(G135="Maintenance",GOTO AC135,IF(G135="Table",GOTO AC135,"")) -> 
A136: 2022-10-13 | B136: AM | C136: Harisis | D136: Dastan | E136: 2 | F136: DW/JT/MW | G136: harvest | H136: potato, sweet | I136: O2 | J136: 85 | K136: 8 | L136: O2 | M136: =IF(G136="Fertilize",GOTO M136,"") ->  | N136: =IF(G136="Fertilize",GOTO N136,"") ->  | P136: =IF(G136="Plant",GOTO P136,"") ->  | Q136: =IF(G136="Plant",GOTO Q136,"") ->  | S136: =IF(G136="compost",GOTO S136,"") ->  | T136: =IF(G136="compost",GOTO T136,"") ->  | U136: =IF(G136="compost",GOTO U136,"") ->  | V136: =IF(G136="compost",GOTO V136,"") ->  | W136: =IF(G136="compost",GOTO W136,"") ->  | X136: =IF(G136="compost",GOTO X136,"") ->  | Y136: =IF(G136="compost",GOTO Y136,"") ->  | Z136: =IF(G136="compost",GOTO Z136,"") ->  | AA136: =IF(G136="Maintenance",GOTO AA136,IF(G136="Table",GOTO AA136,"")) ->  | AB136: =IF(G136="Maintenance",GOTO AB136,IF(G136="Table",GOTO AB136,"")) ->  | AC136: =IF(G136="Maintenance",GOTO AC136,IF(G136="Table",GOTO AC136,"")) -> 
A137: 2022-10-13 | B137: AM | C137: Harisis | D137: Genesis | E137: 4 | F137: EV/LV | G137: plant | H137: cabbage | I137: O15 | J137: =IF(G137="Harvest",GOTO J137,"") ->  | K137: =IF(G137="Harvest",GOTO K137,"") ->  | M137: =IF(G137="Fertilize",GOTO M137,"") ->  | N137: =IF(G137="Fertilize",GOTO N137,"") ->  | P137: help with potatoes after planting | Q137: O15 | R137: 2022-10-27 | S137: =IF(G137="compost",GOTO S137,"") ->  | T137: =IF(G137="compost",GOTO T137,"") ->  | U137: =IF(G137="compost",GOTO U137,"") ->  | V137: =IF(G137="compost",GOTO V137,"") ->  | W137: =IF(G137="compost",GOTO W137,"") ->  | X137: =IF(G137="compost",GOTO X137,"") ->  | Y137: =IF(G137="compost",GOTO Y137,"") ->  | Z137: =IF(G137="compost",GOTO Z137,"") ->  | AA137: =IF(G137="Maintenance",GOTO AA137,IF(G137="Table",GOTO AA137,"")) ->  | AB137: =IF(G137="Maintenance",GOTO AB137,IF(G137="Table",GOTO AB137,"")) ->  | AC137: =IF(G137="Maintenance",GOTO AC137,IF(G137="Table",GOTO AC137,"")) -> 
A138: 2022-10-13 | B138: AM | C138: Harisis | D138: Nicolas | E138: 3 | F138: SK/SH | G138: harvest | H138: eggplant | I138: M5 | J138: 5 | K138: 8 | L138: M5 | M138: =IF(G138="Fertilize",GOTO M138,"") ->  | N138: =IF(G138="Fertilize",GOTO N138,"") ->  | P138: =IF(G138="Plant",GOTO P138,"") ->  | Q138: =IF(G138="Plant",GOTO Q138,"") ->  | S138: =IF(G138="compost",GOTO S138,"") ->  | T138: =IF(G138="compost",GOTO T138,"") ->  | U138: =IF(G138="compost",GOTO U138,"") ->  | V138: =IF(G138="compost",GOTO V138,"") ->  | W138: =IF(G138="compost",GOTO W138,"") ->  | X138: =IF(G138="compost",GOTO X138,"") ->  | Y138: =IF(G138="compost",GOTO Y138,"") ->  | Z138: =IF(G138="compost",GOTO Z138,"") ->  | AA138: =IF(G138="Maintenance",GOTO AA138,IF(G138="Table",GOTO AA138,"")) ->  | AB138: =IF(G138="Maintenance",GOTO AB138,IF(G138="Table",GOTO AB138,"")) ->  | AC138: =IF(G138="Maintenance",GOTO AC138,IF(G138="Table",GOTO AC138,"")) -> 
A139: 2022-10-13 | B139: AM | C139: Harisis | D139: Nicolas | E139: 3 | F139: SK/SH | G139: harvest | H139: peppers | I139: M5 | J139: 0 | K139: 2 | L139: M5 | M139: =IF(G139="Fertilize",GOTO M139,"") ->  | N139: =IF(G139="Fertilize",GOTO N139,"") ->  | P139: =IF(G139="Plant",GOTO P139,"") ->  | Q139: =IF(G139="Plant",GOTO Q139,"") ->  | S139: =IF(G139="compost",GOTO S139,"") ->  | T139: =IF(G139="compost",GOTO T139,"") ->  | U139: =IF(G139="compost",GOTO U139,"") ->  | V139: =IF(G139="compost",GOTO V139,"") ->  | W139: =IF(G139="compost",GOTO W139,"") ->  | X139: =IF(G139="compost",GOTO X139,"") ->  | Y139: =IF(G139="compost",GOTO Y139,"") ->  | Z139: =IF(G139="compost",GOTO Z139,"") ->  | AA139: =IF(G139="Maintenance",GOTO AA139,IF(G139="Table",GOTO AA139,"")) ->  | AB139: =IF(G139="Maintenance",GOTO AB139,IF(G139="Table",GOTO AB139,"")) ->  | AC139: =IF(G139="Maintenance",GOTO AC139,IF(G139="Table",GOTO AC139,"")) -> 
A140: 2022-10-13 | B140: AM | C140: Harisis | D140: Nicolas | E140: 3 | F140: SK/SH | G140: observation | I140: M9 | J140: =IF(G140="Harvest",GOTO J140,"") ->  | K140: =IF(G140="Harvest",GOTO K140,"") ->  | M140: =IF(G140="Fertilize",GOTO M140,"") ->  | N140: =IF(G140="Fertilize",GOTO N140,"") ->  | P140: =IF(G140="Plant",GOTO P140,"") ->  | Q140: =IF(G140="Plant",GOTO Q140,"") ->  | S140: =IF(G140="compost",GOTO S140,"") ->  | T140: =IF(G140="compost",GOTO T140,"") ->  | U140: =IF(G140="compost",GOTO U140,"") ->  | V140: =IF(G140="compost",GOTO V140,"") ->  | W140: =IF(G140="compost",GOTO W140,"") ->  | X140: =IF(G140="compost",GOTO X140,"") ->  | Y140: =IF(G140="compost",GOTO Y140,"") ->  | Z140: =IF(G140="compost",GOTO Z140,"") ->  | AA140: M9 | AB140: M9a color lighter; M9b sturdier | AC140: maybe soil difference bc soil added from aisle
A141: 2022-10-13 | B141: PM | C141: Harisis | D141: Ellie | E141: 3 | F141: SK/SH | G141: observation | I141: M9 | J141: =IF(G141="Harvest",GOTO J141,"") ->  | K141: =IF(G141="Harvest",GOTO K141,"") ->  | M141: =IF(G141="Fertilize",GOTO M141,"") ->  | N141: =IF(G141="Fertilize",GOTO N141,"") ->  | P141: =IF(G141="Plant",GOTO P141,"") ->  | Q141: =IF(G141="Plant",GOTO Q141,"") ->  | S141: =IF(G141="compost",GOTO S141,"") ->  | T141: =IF(G141="compost",GOTO T141,"") ->  | U141: =IF(G141="compost",GOTO U141,"") ->  | V141: =IF(G141="compost",GOTO V141,"") ->  | W141: =IF(G141="compost",GOTO W141,"") ->  | X141: =IF(G141="compost",GOTO X141,"") ->  | Y141: =IF(G141="compost",GOTO Y141,"") ->  | Z141: =IF(G141="compost",GOTO Z141,"") ->  | AA141: M9 | AB141: Mb taller 192" ; M9a shorter 169" ?????????? | AC141: otherwise no difference
A142: 2022-10-15 | C142: volunteers | G142: plant | H142: kale | I142: M5a | J142: =IF(G142="Harvest",GOTO J142,"") ->  | K142: =IF(G142="Harvest",GOTO K142,"") ->  | M142: =IF(G142="Fertilize",GOTO M142,"") ->  | N142: =IF(G142="Fertilize",GOTO N142,"") ->  | P142: also in holes M6 | Q142: M5a | R142: 2022-10-29 | S142: =IF(G142="compost",GOTO S142,"") ->  | T142: =IF(G142="compost",GOTO T142,"") ->  | U142: =IF(G142="compost",GOTO U142,"") ->  | V142: =IF(G142="compost",GOTO V142,"") ->  | W142: =IF(G142="compost",GOTO W142,"") ->  | X142: =IF(G142="compost",GOTO X142,"") ->  | Y142: =IF(G142="compost",GOTO Y142,"") ->  | Z142: =IF(G142="compost",GOTO Z142,"") ->  | AA142: =IF(G142="Maintenance",GOTO AA142,IF(G142="Table",GOTO AA142,"")) ->  | AB142: =IF(G142="Maintenance",GOTO AB142,IF(G142="Table",GOTO AB142,"")) ->  | AC142: =IF(G142="Maintenance",GOTO AC142,IF(G142="Table",GOTO AC142,"")) -> 
A143: 2022-10-15 | C143: volunteers | G143: plant | H143: kohlrabi | I143: M14a | J143: =IF(G143="Harvest",GOTO J143,"") ->  | K143: =IF(G143="Harvest",GOTO K143,"") ->  | M143: =IF(G143="Fertilize",GOTO M143,"") ->  | N143: =IF(G143="Fertilize",GOTO N143,"") ->  | P143: transplant doubles from other bed | Q143: M14a | R143: 2022-10-29 | S143: =IF(G143="compost",GOTO S143,"") ->  | T143: =IF(G143="compost",GOTO T143,"") ->  | U143: =IF(G143="compost",GOTO U143,"") ->  | V143: =IF(G143="compost",GOTO V143,"") ->  | W143: =IF(G143="compost",GOTO W143,"") ->  | X143: =IF(G143="compost",GOTO X143,"") ->  | Y143: =IF(G143="compost",GOTO Y143,"") ->  | Z143: =IF(G143="compost",GOTO Z143,"") ->  | AA143: =IF(G143="Maintenance",GOTO AA143,IF(G143="Table",GOTO AA143,"")) ->  | AB143: =IF(G143="Maintenance",GOTO AB143,IF(G143="Table",GOTO AB143,"")) ->  | AC143: =IF(G143="Maintenance",GOTO AC143,IF(G143="Table",GOTO AC143,"")) -> 
A144: 2022-10-18 | C144: volunteers | G144: Fertilize | H144: tomatoes | I144: M5 | J144: =IF(G144="Harvest",GOTO J144,"") ->  | K144: =IF(G144="Harvest",GOTO K144,"") ->  | M144: microlife 6-2-4 | N144: M5 | O144: 2022-11-01 | P144: =IF(G144="Plant",GOTO P144,"") ->  | Q144: =IF(G144="Plant",GOTO Q144,"") ->  | S144: =IF(G144="compost",GOTO S144,"") ->  | T144: =IF(G144="compost",GOTO T144,"") ->  | U144: =IF(G144="compost",GOTO U144,"") ->  | V144: =IF(G144="compost",GOTO V144,"") ->  | W144: =IF(G144="compost",GOTO W144,"") ->  | X144: =IF(G144="compost",GOTO X144,"") ->  | Y144: =IF(G144="compost",GOTO Y144,"") ->  | Z144: =IF(G144="compost",GOTO Z144,"") ->  | AA144: =IF(G144="Maintenance",GOTO AA144,IF(G144="Table",GOTO AA144,"")) ->  | AB144: =IF(G144="Maintenance",GOTO AB144,IF(G144="Table",GOTO AB144,"")) ->  | AC144: =IF(G144="Maintenance",GOTO AC144,IF(G144="Table",GOTO AC144,"")) -> 
A145: 2022-10-18 | C145: volunteers | G145: Fertilize | H145: beans, yard long | I145: M8 | J145: =IF(G145="Harvest",GOTO J145,"") ->  | K145: =IF(G145="Harvest",GOTO K145,"") ->  | M145: microlife 6-2-4 | N145: M8 | O145: 2022-11-01 | P145: =IF(G145="Plant",GOTO P145,"") ->  | Q145: =IF(G145="Plant",GOTO Q145,"") ->  | S145: =IF(G145="compost",GOTO S145,"") ->  | T145: =IF(G145="compost",GOTO T145,"") ->  | U145: =IF(G145="compost",GOTO U145,"") ->  | V145: =IF(G145="compost",GOTO V145,"") ->  | W145: =IF(G145="compost",GOTO W145,"") ->  | X145: =IF(G145="compost",GOTO X145,"") ->  | Y145: =IF(G145="compost",GOTO Y145,"") ->  | Z145: =IF(G145="compost",GOTO Z145,"") ->  | AA145: =IF(G145="Maintenance",GOTO AA145,IF(G145="Table",GOTO AA145,"")) ->  | AB145: =IF(G145="Maintenance",GOTO AB145,IF(G145="Table",GOTO AB145,"")) ->  | AC145: =IF(G145="Maintenance",GOTO AC145,IF(G145="Table",GOTO AC145,"")) -> 
A146: 2022-10-18 | C146: volunteers | G146: Fertilize | H146: peas, sugar snap | I146: M3 | J146: =IF(G146="Harvest",GOTO J146,"") ->  | K146: =IF(G146="Harvest",GOTO K146,"") ->  | M146: microlife 6-2-4 | N146: M3 | O146: 2022-11-01 | P146: =IF(G146="Plant",GOTO P146,"") ->  | Q146: =IF(G146="Plant",GOTO Q146,"") ->  | S146: =IF(G146="compost",GOTO S146,"") ->  | T146: =IF(G146="compost",GOTO T146,"") ->  | U146: =IF(G146="compost",GOTO U146,"") ->  | V146: =IF(G146="compost",GOTO V146,"") ->  | W146: =IF(G146="compost",GOTO W146,"") ->  | X146: =IF(G146="compost",GOTO X146,"") ->  | Y146: =IF(G146="compost",GOTO Y146,"") ->  | Z146: =IF(G146="compost",GOTO Z146,"") ->  | AA146: =IF(G146="Maintenance",GOTO AA146,IF(G146="Table",GOTO AA146,"")) ->  | AB146: =IF(G146="Maintenance",GOTO AB146,IF(G146="Table",GOTO AB146,"")) ->  | AC146: =IF(G146="Maintenance",GOTO AC146,IF(G146="Table",GOTO AC146,"")) -> 
A147: 2022-10-18 | C147: volunteers | G147: Fertilize | H147: cilantro, spider | I147: M2 | J147: =IF(G147="Harvest",GOTO J147,"") ->  | K147: =IF(G147="Harvest",GOTO K147,"") ->  | M147: microlife 6-2-4 | N147: M2 | O147: 2022-11-01 | P147: =IF(G147="Plant",GOTO P147,"") ->  | Q147: =IF(G147="Plant",GOTO Q147,"") ->  | S147: =IF(G147="compost",GOTO S147,"") ->  | T147: =IF(G147="compost",GOTO T147,"") ->  | U147: =IF(G147="compost",GOTO U147,"") ->  | V147: =IF(G147="compost",GOTO V147,"") ->  | W147: =IF(G147="compost",GOTO W147,"") ->  | X147: =IF(G147="compost",GOTO X147,"") ->  | Y147: =IF(G147="compost",GOTO Y147,"") ->  | Z147: =IF(G147="compost",GOTO Z147,"") ->  | AA147: =IF(G147="Maintenance",GOTO AA147,IF(G147="Table",GOTO AA147,"")) ->  | AB147: =IF(G147="Maintenance",GOTO AB147,IF(G147="Table",GOTO AB147,"")) ->  | AC147: =IF(G147="Maintenance",GOTO AC147,IF(G147="Table",GOTO AC147,"")) -> 
A148: 2022-10-18 | C148: volunteers | G148: Fertilize | H148: carrots, danver | I148: M13 | J148: =IF(G148="Harvest",GOTO J148,"") ->  | K148: =IF(G148="Harvest",GOTO K148,"") ->  | M148: microlife 6-2-4 | N148: M13 | O148: 2022-11-01 | P148: =IF(G148="Plant",GOTO P148,"") ->  | Q148: =IF(G148="Plant",GOTO Q148,"") ->  | S148: =IF(G148="compost",GOTO S148,"") ->  | T148: =IF(G148="compost",GOTO T148,"") ->  | U148: =IF(G148="compost",GOTO U148,"") ->  | V148: =IF(G148="compost",GOTO V148,"") ->  | W148: =IF(G148="compost",GOTO W148,"") ->  | X148: =IF(G148="compost",GOTO X148,"") ->  | Y148: =IF(G148="compost",GOTO Y148,"") ->  | Z148: =IF(G148="compost",GOTO Z148,"") ->  | AA148: =IF(G148="Maintenance",GOTO AA148,IF(G148="Table",GOTO AA148,"")) ->  | AB148: =IF(G148="Maintenance",GOTO AB148,IF(G148="Table",GOTO AB148,"")) ->  | AC148: =IF(G148="Maintenance",GOTO AC148,IF(G148="Table",GOTO AC148,"")) -> 
A149: 2022-10-18 | C149: volunteers | G149: Fertilize | H149: broccoli | I149: M9 | J149: =IF(G149="Harvest",GOTO J149,"") ->  | K149: =IF(G149="Harvest",GOTO K149,"") ->  | M149: microlife 6-2-4 | N149: M9 | O149: 2022-11-01 | P149: =IF(G149="Plant",GOTO P149,"") ->  | Q149: =IF(G149="Plant",GOTO Q149,"") ->  | S149: =IF(G149="compost",GOTO S149,"") ->  | T149: =IF(G149="compost",GOTO T149,"") ->  | U149: =IF(G149="compost",GOTO U149,"") ->  | V149: =IF(G149="compost",GOTO V149,"") ->  | W149: =IF(G149="compost",GOTO W149,"") ->  | X149: =IF(G149="compost",GOTO X149,"") ->  | Y149: =IF(G149="compost",GOTO Y149,"") ->  | Z149: =IF(G149="compost",GOTO Z149,"") ->  | AA149: =IF(G149="Maintenance",GOTO AA149,IF(G149="Table",GOTO AA149,"")) ->  | AB149: =IF(G149="Maintenance",GOTO AB149,IF(G149="Table",GOTO AB149,"")) ->  | AC149: =IF(G149="Maintenance",GOTO AC149,IF(G149="Table",GOTO AC149,"")) -> 
A150: 2022-10-18 | C150: volunteers | G150: Fertilize | H150: collards | I150: M6 | J150: =IF(G150="Harvest",GOTO J150,"") ->  | K150: =IF(G150="Harvest",GOTO K150,"") ->  | M150: microlife 6-2-4 | N150: M6 | O150: 2022-11-01 | P150: =IF(G150="Plant",GOTO P150,"") ->  | Q150: =IF(G150="Plant",GOTO Q150,"") ->  | S150: =IF(G150="compost",GOTO S150,"") ->  | T150: =IF(G150="compost",GOTO T150,"") ->  | U150: =IF(G150="compost",GOTO U150,"") ->  | V150: =IF(G150="compost",GOTO V150,"") ->  | W150: =IF(G150="compost",GOTO W150,"") ->  | X150: =IF(G150="compost",GOTO X150,"") ->  | Y150: =IF(G150="compost",GOTO Y150,"") ->  | Z150: =IF(G150="compost",GOTO Z150,"") ->  | AA150: =IF(G150="Maintenance",GOTO AA150,IF(G150="Table",GOTO AA150,"")) ->  | AB150: =IF(G150="Maintenance",GOTO AB150,IF(G150="Table",GOTO AB150,"")) ->  | AC150: =IF(G150="Maintenance",GOTO AC150,IF(G150="Table",GOTO AC150,"")) -> 
A151: 2022-10-18 | C151: volunteers | G151: Fertilize | H151: beets | I151: M10 | J151: =IF(G151="Harvest",GOTO J151,"") ->  | K151: =IF(G151="Harvest",GOTO K151,"") ->  | M151: microlife 6-2-4 | N151: M10 | O151: 2022-11-01 | P151: =IF(G151="Plant",GOTO P151,"") ->  | Q151: =IF(G151="Plant",GOTO Q151,"") ->  | S151: =IF(G151="compost",GOTO S151,"") ->  | T151: =IF(G151="compost",GOTO T151,"") ->  | U151: =IF(G151="compost",GOTO U151,"") ->  | V151: =IF(G151="compost",GOTO V151,"") ->  | W151: =IF(G151="compost",GOTO W151,"") ->  | X151: =IF(G151="compost",GOTO X151,"") ->  | Y151: =IF(G151="compost",GOTO Y151,"") ->  | Z151: =IF(G151="compost",GOTO Z151,"") ->  | AA151: =IF(G151="Maintenance",GOTO AA151,IF(G151="Table",GOTO AA151,"")) ->  | AB151: =IF(G151="Maintenance",GOTO AB151,IF(G151="Table",GOTO AB151,"")) ->  | AC151: =IF(G151="Maintenance",GOTO AC151,IF(G151="Table",GOTO AC151,"")) -> 
A152: 2022-10-18 | C152: volunteers | G152: Fertilize | H152: kale | I152: M15b | J152: =IF(G152="Harvest",GOTO J152,"") ->  | K152: =IF(G152="Harvest",GOTO K152,"") ->  | M152: microlife 6-2-4 | N152: M15b | O152: 2022-11-01 | P152: =IF(G152="Plant",GOTO P152,"") ->  | Q152: =IF(G152="Plant",GOTO Q152,"") ->  | S152: =IF(G152="compost",GOTO S152,"") ->  | T152: =IF(G152="compost",GOTO T152,"") ->  | U152: =IF(G152="compost",GOTO U152,"") ->  | V152: =IF(G152="compost",GOTO V152,"") ->  | W152: =IF(G152="compost",GOTO W152,"") ->  | X152: =IF(G152="compost",GOTO X152,"") ->  | Y152: =IF(G152="compost",GOTO Y152,"") ->  | Z152: =IF(G152="compost",GOTO Z152,"") ->  | AA152: =IF(G152="Maintenance",GOTO AA152,IF(G152="Table",GOTO AA152,"")) ->  | AB152: =IF(G152="Maintenance",GOTO AB152,IF(G152="Table",GOTO AB152,"")) ->  | AC152: =IF(G152="Maintenance",GOTO AC152,IF(G152="Table",GOTO AC152,"")) -> 
A153: 2022-10-18 | C153: volunteers | G153: Fertilize | H153: turnips | I153: M7 | J153: =IF(G153="Harvest",GOTO J153,"") ->  | K153: =IF(G153="Harvest",GOTO K153,"") ->  | M153: microlife 6-2-4 | N153: M7 | O153: 2022-11-01 | P153: =IF(G153="Plant",GOTO P153,"") ->  | Q153: =IF(G153="Plant",GOTO Q153,"") ->  | S153: =IF(G153="compost",GOTO S153,"") ->  | T153: =IF(G153="compost",GOTO T153,"") ->  | U153: =IF(G153="compost",GOTO U153,"") ->  | V153: =IF(G153="compost",GOTO V153,"") ->  | W153: =IF(G153="compost",GOTO W153,"") ->  | X153: =IF(G153="compost",GOTO X153,"") ->  | Y153: =IF(G153="compost",GOTO Y153,"") ->  | Z153: =IF(G153="compost",GOTO Z153,"") ->  | AA153: =IF(G153="Maintenance",GOTO AA153,IF(G153="Table",GOTO AA153,"")) ->  | AB153: =IF(G153="Maintenance",GOTO AB153,IF(G153="Table",GOTO AB153,"")) ->  | AC153: =IF(G153="Maintenance",GOTO AC153,IF(G153="Table",GOTO AC153,"")) -> 
A154: 2022-10-18 | C154: volunteers | G154: Fertilize | H154: radish | I154: M13,15 | J154: =IF(G154="Harvest",GOTO J154,"") ->  | K154: =IF(G154="Harvest",GOTO K154,"") ->  | M154: microlife 6-2-4 | N154: M13,15 | O154: 2022-11-01 | P154: =IF(G154="Plant",GOTO P154,"") ->  | Q154: =IF(G154="Plant",GOTO Q154,"") ->  | S154: =IF(G154="compost",GOTO S154,"") ->  | T154: =IF(G154="compost",GOTO T154,"") ->  | U154: =IF(G154="compost",GOTO U154,"") ->  | V154: =IF(G154="compost",GOTO V154,"") ->  | W154: =IF(G154="compost",GOTO W154,"") ->  | X154: =IF(G154="compost",GOTO X154,"") ->  | Y154: =IF(G154="compost",GOTO Y154,"") ->  | Z154: =IF(G154="compost",GOTO Z154,"") ->  | AA154: =IF(G154="Maintenance",GOTO AA154,IF(G154="Table",GOTO AA154,"")) ->  | AB154: =IF(G154="Maintenance",GOTO AB154,IF(G154="Table",GOTO AB154,"")) ->  | AC154: =IF(G154="Maintenance",GOTO AC154,IF(G154="Table",GOTO AC154,"")) -> 
A155: 2022-10-18 | C155: volunteers | G155: Fertilize | H155: spinach | I155: O16 | J155: =IF(G155="Harvest",GOTO J155,"") ->  | K155: =IF(G155="Harvest",GOTO K155,"") ->  | M155: microlife 6-2-4 | N155: O16 | O155: 2022-11-01 | P155: =IF(G155="Plant",GOTO P155,"") ->  | Q155: =IF(G155="Plant",GOTO Q155,"") ->  | S155: =IF(G155="compost",GOTO S155,"") ->  | T155: =IF(G155="compost",GOTO T155,"") ->  | U155: =IF(G155="compost",GOTO U155,"") ->  | V155: =IF(G155="compost",GOTO V155,"") ->  | W155: =IF(G155="compost",GOTO W155,"") ->  | X155: =IF(G155="compost",GOTO X155,"") ->  | Y155: =IF(G155="compost",GOTO Y155,"") ->  | Z155: =IF(G155="compost",GOTO Z155,"") ->  | AA155: =IF(G155="Maintenance",GOTO AA155,IF(G155="Table",GOTO AA155,"")) ->  | AB155: =IF(G155="Maintenance",GOTO AB155,IF(G155="Table",GOTO AB155,"")) ->  | AC155: =IF(G155="Maintenance",GOTO AC155,IF(G155="Table",GOTO AC155,"")) -> 
A156: 2022-10-18 | C156: volunteers | G156: Fertilize | H156: kohlrabi | I156: M14a | J156: =IF(G156="Harvest",GOTO J156,"") ->  | K156: =IF(G156="Harvest",GOTO K156,"") ->  | M156: microlife 6-2-4 | N156: M14a | O156: 2022-11-01 | P156: =IF(G156="Plant",GOTO P156,"") ->  | Q156: =IF(G156="Plant",GOTO Q156,"") ->  | S156: =IF(G156="compost",GOTO S156,"") ->  | T156: =IF(G156="compost",GOTO T156,"") ->  | U156: =IF(G156="compost",GOTO U156,"") ->  | V156: =IF(G156="compost",GOTO V156,"") ->  | W156: =IF(G156="compost",GOTO W156,"") ->  | X156: =IF(G156="compost",GOTO X156,"") ->  | Y156: =IF(G156="compost",GOTO Y156,"") ->  | Z156: =IF(G156="compost",GOTO Z156,"") ->  | AA156: =IF(G156="Maintenance",GOTO AA156,IF(G156="Table",GOTO AA156,"")) ->  | AB156: =IF(G156="Maintenance",GOTO AB156,IF(G156="Table",GOTO AB156,"")) ->  | AC156: =IF(G156="Maintenance",GOTO AC156,IF(G156="Table",GOTO AC156,"")) -> 
A157: 2022-10-18 | C157: volunteers | G157: Fertilize | H157: cabbage | I157: O15 | J157: =IF(G157="Harvest",GOTO J157,"") ->  | K157: =IF(G157="Harvest",GOTO K157,"") ->  | M157: microlife 6-2-4 | N157: O15 | O157: 2022-11-01 | P157: =IF(G157="Plant",GOTO P157,"") ->  | Q157: =IF(G157="Plant",GOTO Q157,"") ->  | S157: =IF(G157="compost",GOTO S157,"") ->  | T157: =IF(G157="compost",GOTO T157,"") ->  | U157: =IF(G157="compost",GOTO U157,"") ->  | V157: =IF(G157="compost",GOTO V157,"") ->  | W157: =IF(G157="compost",GOTO W157,"") ->  | X157: =IF(G157="compost",GOTO X157,"") ->  | Y157: =IF(G157="compost",GOTO Y157,"") ->  | Z157: =IF(G157="compost",GOTO Z157,"") ->  | AA157: =IF(G157="Maintenance",GOTO AA157,IF(G157="Table",GOTO AA157,"")) ->  | AB157: =IF(G157="Maintenance",GOTO AB157,IF(G157="Table",GOTO AB157,"")) ->  | AC157: =IF(G157="Maintenance",GOTO AC157,IF(G157="Table",GOTO AC157,"")) -> 
A158: 2022-10-18 | C158: volunteers | G158: harvest | H158: beans, yard long | I158: M8 | J158: 0 | K158: 11 | L158: M8 | M158: =IF(G158="Fertilize",GOTO M158,"") ->  | N158: =IF(G158="Fertilize",GOTO N158,"") ->  | P158: =IF(G158="Plant",GOTO P158,"") ->  | Q158: =IF(G158="Plant",GOTO Q158,"") ->  | S158: =IF(G158="compost",GOTO S158,"") ->  | T158: =IF(G158="compost",GOTO T158,"") ->  | U158: =IF(G158="compost",GOTO U158,"") ->  | V158: =IF(G158="compost",GOTO V158,"") ->  | W158: =IF(G158="compost",GOTO W158,"") ->  | X158: =IF(G158="compost",GOTO X158,"") ->  | Y158: =IF(G158="compost",GOTO Y158,"") ->  | Z158: =IF(G158="compost",GOTO Z158,"") ->  | AA158: =IF(G158="Maintenance",GOTO AA158,IF(G158="Table",GOTO AA158,"")) ->  | AB158: =IF(G158="Maintenance",GOTO AB158,IF(G158="Table",GOTO AB158,"")) ->  | AC158: =IF(G158="Maintenance",GOTO AC158,IF(G158="Table",GOTO AC158,"")) -> 
A159: 2022-10-18 | C159: volunteers | G159: harvest | H159: okra | I159: M15 | J159: 0 | K159: 8 | L159: M15 | M159: =IF(G159="Fertilize",GOTO M159,"") ->  | N159: =IF(G159="Fertilize",GOTO N159,"") ->  | P159: =IF(G159="Plant",GOTO P159,"") ->  | Q159: =IF(G159="Plant",GOTO Q159,"") ->  | S159: =IF(G159="compost",GOTO S159,"") ->  | T159: =IF(G159="compost",GOTO T159,"") ->  | U159: =IF(G159="compost",GOTO U159,"") ->  | V159: =IF(G159="compost",GOTO V159,"") ->  | W159: =IF(G159="compost",GOTO W159,"") ->  | X159: =IF(G159="compost",GOTO X159,"") ->  | Y159: =IF(G159="compost",GOTO Y159,"") ->  | Z159: =IF(G159="compost",GOTO Z159,"") ->  | AA159: =IF(G159="Maintenance",GOTO AA159,IF(G159="Table",GOTO AA159,"")) ->  | AB159: =IF(G159="Maintenance",GOTO AB159,IF(G159="Table",GOTO AB159,"")) ->  | AC159: =IF(G159="Maintenance",GOTO AC159,IF(G159="Table",GOTO AC159,"")) -> 
A160: 2022-10-18 | C160: volunteers | G160: harvest | H160: peppers | I160: M5 | J160: 0 | K160: 2 | L160: M5 | M160: =IF(G160="Fertilize",GOTO M160,"") ->  | N160: =IF(G160="Fertilize",GOTO N160,"") ->  | P160: =IF(G160="Plant",GOTO P160,"") ->  | Q160: =IF(G160="Plant",GOTO Q160,"") ->  | S160: =IF(G160="compost",GOTO S160,"") ->  | T160: =IF(G160="compost",GOTO T160,"") ->  | U160: =IF(G160="compost",GOTO U160,"") ->  | V160: =IF(G160="compost",GOTO V160,"") ->  | W160: =IF(G160="compost",GOTO W160,"") ->  | X160: =IF(G160="compost",GOTO X160,"") ->  | Y160: =IF(G160="compost",GOTO Y160,"") ->  | Z160: =IF(G160="compost",GOTO Z160,"") ->  | AA160: =IF(G160="Maintenance",GOTO AA160,IF(G160="Table",GOTO AA160,"")) ->  | AB160: =IF(G160="Maintenance",GOTO AB160,IF(G160="Table",GOTO AB160,"")) ->  | AC160: =IF(G160="Maintenance",GOTO AC160,IF(G160="Table",GOTO AC160,"")) -> 
A161: 2022-10-20 | B161: AM | C161: lopez | D161: Mika | E161: 1 | F161: PM | G161: harvest | H161: potato, sweet | I161: O2 | J161: =305-234 -> 71 | K161: 5 | L161: O2 | M161: =IF(G161="Fertilize",GOTO M161,"") ->  | N161: =IF(G161="Fertilize",GOTO N161,"") ->  | P161: =IF(G161="Plant",GOTO P161,"") ->  | Q161: =IF(G161="Plant",GOTO Q161,"") ->  | R161: =IF(G161="Plant",A161+14,"") ->  | AA161: =IF(G161="Maintenance",GOTO AA161,IF(G161="Table",GOTO AA161,"")) ->  | AB161: =IF(G161="Maintenance",GOTO AB161,IF(G161="Table",GOTO AB161,"")) ->  | AC161: =IF(G161="Maintenance",GOTO AC161,IF(G161="Table",GOTO AC161,"")) -> 
A162: 2022-10-20 | B162: AM | C162: lopez | D162: Zoe | E162: 2 | F162: SH/JB | G162: harvest | H162: okra | I162: M15 | J162: 0 | K162: 2 | L162: M15 | M162: =IF(G162="Fertilize",GOTO M162,"") ->  | N162: =IF(G162="Fertilize",GOTO N162,"") ->  | P162: =IF(G162="Plant",GOTO P162,"") ->  | Q162: =IF(G162="Plant",GOTO Q162,"") ->  | S162: =IF(G162="compost",GOTO S162,"") ->  | T162: =IF(G162="compost",GOTO T162,"") ->  | U162: =IF(G162="compost",GOTO U162,"") ->  | V162: =IF(G162="compost",GOTO V162,"") ->  | W162: =IF(G162="compost",GOTO W162,"") ->  | X162: =IF(G162="compost",GOTO X162,"") ->  | Y162: =IF(G162="compost",GOTO Y162,"") ->  | Z162: =IF(G162="compost",GOTO Z162,"") ->  | AA162: shed | AB162: plant cauliflower,cabbage,broccoli by shed | AC162: ????
A163: 2022-10-20 | B163: AM | C163: lopez | D163: Abigail | E163: 3 | F163: EV/LV | G163: plant | H163: spinach | I163: O16 | J163: =IF(G163="Harvest",GOTO J163,"") ->  | K163: =IF(G163="Harvest",GOTO K163,"") ->  | M163: =IF(G163="Fertilize",GOTO M163,"") ->  | N163: =IF(G163="Fertilize",GOTO N163,"") ->  | Q163: O16 | R163: 2022-11-03 | S163: =IF(G163="compost",GOTO S163,"") ->  | T163: =IF(G163="compost",GOTO T163,"") ->  | U163: =IF(G163="compost",GOTO U163,"") ->  | V163: =IF(G163="compost",GOTO V163,"") ->  | W163: =IF(G163="compost",GOTO W163,"") ->  | X163: =IF(G163="compost",GOTO X163,"") ->  | Y163: =IF(G163="compost",GOTO Y163,"") ->  | Z163: =IF(G163="compost",GOTO Z163,"") ->  | AA163: =IF(G163="Maintenance",GOTO AA163,IF(G163="Table",GOTO AA163,"")) ->  | AB163: =IF(G163="Maintenance",GOTO AB163,IF(G163="Table",GOTO AB163,"")) ->  | AC163: =IF(G163="Maintenance",GOTO AC163,IF(G163="Table",GOTO AC163,"")) -> 
A164: 2022-10-20 | B164: AM | C164: lopez | D164: Abigail | E164: 3 | F164: EV/LV | G164: plant | H164: cauliflower | I164: O28,17 | J164: =IF(G164="Harvest",GOTO J164,"") ->  | K164: =IF(G164="Harvest",GOTO K164,"") ->  | M164: =IF(G164="Fertilize",GOTO M164,"") ->  | N164: =IF(G164="Fertilize",GOTO N164,"") ->  | O164: =IF(G164="Fertilize",A164+14,"") ->  | Q164: O28,17 | R164: 2022-11-03 | S164: =IF(G164="compost",GOTO S164,"") ->  | T164: =IF(G164="compost",GOTO T164,"") ->  | U164: =IF(G164="compost",GOTO U164,"") ->  | V164: =IF(G164="compost",GOTO V164,"") ->  | W164: =IF(G164="compost",GOTO W164,"") ->  | X164: =IF(G164="compost",GOTO X164,"") ->  | Y164: =IF(G164="compost",GOTO Y164,"") ->  | Z164: =IF(G164="compost",GOTO Z164,"") ->  | AA164: =IF(G164="Maintenance",GOTO AA164,IF(G164="Table",GOTO AA164,"")) ->  | AB164: =IF(G164="Maintenance",GOTO AB164,IF(G164="Table",GOTO AB164,"")) ->  | AC164: =IF(G164="Maintenance",GOTO AC164,IF(G164="Table",GOTO AC164,"")) -> 
A165: 2022-10-20 | B165: AM | C165: lopez | D165: Kallie | E165: 4 | F165: DK | G165: compost | J165: =IF(G165="Harvest",GOTO J165,"") ->  | K165: =IF(G165="Harvest",GOTO K165,"") ->  | M165: =IF(G165="Fertilize",GOTO M165,"") ->  | N165: =IF(G165="Fertilize",GOTO N165,"") ->  | P165: =IF(G165="Plant",GOTO P165,"") ->  | Q165: =IF(G165="Plant",GOTO Q165,"") ->  | S165: 69 | U165: 0.5 | V165: 1.4 | W165: 95 | X165: 90 | Y165: 72 | Z165: bump up spider plants | AA165: =IF(G165="Maintenance",GOTO AA165,IF(G165="Table",GOTO AA165,"")) ->  | AB165: =IF(G165="Maintenance",GOTO AB165,IF(G165="Table",GOTO AB165,"")) ->  | AC165: =IF(G165="Maintenance",GOTO AC165,IF(G165="Table",GOTO AC165,"")) -> 
A166: 2022-10-20 | B166: AM | C166: lopez | D166: Tyson | E166: 5 | F166: MW | G166: harvest | H166: potato, sweet | I166: O2 | J166: 234 | K166: 8 | L166: O2 | M166: =IF(G166="Fertilize",GOTO M166,"") ->  | N166: =IF(G166="Fertilize",GOTO N166,"") ->  | P166: =IF(G166="Plant",GOTO P166,"") ->  | Q166: =IF(G166="Plant",GOTO Q166,"") ->  | S166: =IF(G166="compost",GOTO S166,"") ->  | T166: =IF(G166="compost",GOTO T166,"") ->  | U166: =IF(G166="compost",GOTO U166,"") ->  | V166: =IF(G166="compost",GOTO V166,"") ->  | W166: =IF(G166="compost",GOTO W166,"") ->  | X166: =IF(G166="compost",GOTO X166,"") ->  | Y166: =IF(G166="compost",GOTO Y166,"") ->  | Z166: =IF(G166="compost",GOTO Z166,"") ->  | AA166: =IF(G166="Maintenance",GOTO AA166,IF(G166="Table",GOTO AA166,"")) ->  | AB166: =IF(G166="Maintenance",GOTO AB166,IF(G166="Table",GOTO AB166,"")) ->  | AC166: =IF(G166="Maintenance",GOTO AC166,IF(G166="Table",GOTO AC166,"")) -> 
A167: 2022-10-20 | B167: AM | C167: lopez | D167: Justin | E167: 1 | F167: DK | G167: compost | J167: =IF(G167="Harvest",GOTO J167,"") ->  | K167: =IF(G167="Harvest",GOTO K167,"") ->  | M167: =IF(G167="Fertilize",GOTO M167,"") ->  | N167: =IF(G167="Fertilize",GOTO N167,"") ->  | P167: =IF(G167="Plant",GOTO P167,"") ->  | Q167: =IF(G167="Plant",GOTO Q167,"") ->  | S167: 84 | U167: 0.4 | V167: 1.3 | W167: 82 | X167: 79 | Y167: 74 | Z167: make new batch compost TEA | AA167: =IF(G167="Maintenance",GOTO AA167,IF(G167="Table",GOTO AA167,"")) ->  | AB167: =IF(G167="Maintenance",GOTO AB167,IF(G167="Table",GOTO AB167,"")) ->  | AC167: =IF(G167="Maintenance",GOTO AC167,IF(G167="Table",GOTO AC167,"")) -> 
A168: 2022-10-20 | B168: AM | C168: lopez | D168: Shaheer | E168: 2 | F168: PM | G168: harvest | H168: potato, sweet | I168: A1 | J168: 6 | K168: 8 | L168: A1 | M168: =IF(G168="Fertilize",GOTO M168,"") ->  | N168: =IF(G168="Fertilize",GOTO N168,"") ->  | P168: =IF(G168="Plant",GOTO P168,"") ->  | Q168: =IF(G168="Plant",GOTO Q168,"") ->  | S168: =IF(G168="compost",GOTO S168,"") ->  | T168: =IF(G168="compost",GOTO T168,"") ->  | U168: =IF(G168="compost",GOTO U168,"") ->  | V168: =IF(G168="compost",GOTO V168,"") ->  | W168: =IF(G168="compost",GOTO W168,"") ->  | X168: =IF(G168="compost",GOTO X168,"") ->  | Y168: =IF(G168="compost",GOTO Y168,"") ->  | Z168: =IF(G168="compost",GOTO Z168,"") ->  | AA168: =IF(G168="Maintenance",GOTO AA168,IF(G168="Table",GOTO AA168,"")) ->  | AB168: =IF(G168="Maintenance",GOTO AB168,IF(G168="Table",GOTO AB168,"")) ->  | AC168: =IF(G168="Maintenance",GOTO AC168,IF(G168="Table",GOTO AC168,"")) -> 
A169: 2022-10-20 | B169: PM | C169: lopez | D169: Alina | E169: 3 | F169: DC | G169: harvest | H169: potato, sweet | I169: A1 | J169: 20 | K169: 6 | L169: A1 | M169: =IF(G169="Fertilize",GOTO M169,"") ->  | N169: =IF(G169="Fertilize",GOTO N169,"") ->  | P169: =IF(G169="Plant",GOTO P169,"") ->  | Q169: =IF(G169="Plant",GOTO Q169,"") ->  | S169: =IF(G169="compost",GOTO S169,"") ->  | T169: =IF(G169="compost",GOTO T169,"") ->  | U169: =IF(G169="compost",GOTO U169,"") ->  | V169: =IF(G169="compost",GOTO V169,"") ->  | W169: =IF(G169="compost",GOTO W169,"") ->  | X169: =IF(G169="compost",GOTO X169,"") ->  | Y169: =IF(G169="compost",GOTO Y169,"") ->  | Z169: =IF(G169="compost",GOTO Z169,"") ->  | AA169: =IF(G169="Maintenance",GOTO AA169,IF(G169="Table",GOTO AA169,"")) ->  | AB169: =IF(G169="Maintenance",GOTO AB169,IF(G169="Table",GOTO AB169,"")) ->  | AC169: =IF(G169="Maintenance",GOTO AC169,IF(G169="Table",GOTO AC169,"")) -> 
A170: 2022-10-20 | B170: PM | C170: lopez | D170: Eli | E170: 4 | F170: SH/JB | G170: plant | H170: basil | I170: M2 | J170: =IF(G170="Harvest",GOTO J170,"") ->  | K170: =IF(G170="Harvest",GOTO K170,"") ->  | M170: =IF(G170="Fertilize",GOTO M170,"") ->  | N170: =IF(G170="Fertilize",GOTO N170,"") ->  | Q170: M2 | R170: 2022-11-03 | S170: =IF(G170="compost",GOTO S170,"") ->  | T170: =IF(G170="compost",GOTO T170,"") ->  | U170: =IF(G170="compost",GOTO U170,"") ->  | V170: =IF(G170="compost",GOTO V170,"") ->  | W170: =IF(G170="compost",GOTO W170,"") ->  | X170: =IF(G170="compost",GOTO X170,"") ->  | Y170: =IF(G170="compost",GOTO Y170,"") ->  | Z170: =IF(G170="compost",GOTO Z170,"") ->  | AA170: =IF(G170="Maintenance",GOTO AA170,IF(G170="Table",GOTO AA170,"")) ->  | AB170: =IF(G170="Maintenance",GOTO AB170,IF(G170="Table",GOTO AB170,"")) ->  | AC170: =IF(G170="Maintenance",GOTO AC170,IF(G170="Table",GOTO AC170,"")) -> 
A171: 2022-10-20 | B171: PM | C171: lopez | D171: Eli | E171: 4 | F171: SH/JB | G171: harvest | H171: onions, multiplying | I171: main | J171: 4 | K171: 12 | L171: main | M171: =IF(G171="Fertilize",GOTO M171,"") ->  | N171: =IF(G171="Fertilize",GOTO N171,"") ->  | Q171: M2 | S171: =IF(G171="compost",GOTO S171,"") ->  | T171: =IF(G171="compost",GOTO T171,"") ->  | U171: =IF(G171="compost",GOTO U171,"") ->  | V171: =IF(G171="compost",GOTO V171,"") ->  | W171: =IF(G171="compost",GOTO W171,"") ->  | X171: =IF(G171="compost",GOTO X171,"") ->  | Y171: =IF(G171="compost",GOTO Y171,"") ->  | Z171: =IF(G171="compost",GOTO Z171,"") ->  | AA171: =IF(G171="Maintenance",GOTO AA171,IF(G171="Table",GOTO AA171,"")) ->  | AB171: =IF(G171="Maintenance",GOTO AB171,IF(G171="Table",GOTO AB171,"")) ->  | AC171: =IF(G171="Maintenance",GOTO AC171,IF(G171="Table",GOTO AC171,"")) -> 
A172: 2022-10-20 | B172: PM | C172: lopez | D172: Eli | E172: 4 | F172: SH/JB | G172: harvest | H172: eggplant | I172: M5 | J172: 4 | K172: 0 | L172: M5 | M172: =IF(G172="Fertilize",GOTO M172,"") ->  | N172: =IF(G172="Fertilize",GOTO N172,"") ->  | Q172: M2 | S172: =IF(G172="compost",GOTO S172,"") ->  | T172: =IF(G172="compost",GOTO T172,"") ->  | U172: =IF(G172="compost",GOTO U172,"") ->  | V172: =IF(G172="compost",GOTO V172,"") ->  | W172: =IF(G172="compost",GOTO W172,"") ->  | X172: =IF(G172="compost",GOTO X172,"") ->  | Y172: =IF(G172="compost",GOTO Y172,"") ->  | Z172: =IF(G172="compost",GOTO Z172,"") ->  | AA172: =IF(G172="Maintenance",GOTO AA172,IF(G172="Table",GOTO AA172,"")) ->  | AB172: =IF(G172="Maintenance",GOTO AB172,IF(G172="Table",GOTO AB172,"")) ->  | AC172: =IF(G172="Maintenance",GOTO AC172,IF(G172="Table",GOTO AC172,"")) -> 
A173: 2022-10-20 | B173: PM | C173: lopez | D173: Eli | E173: 4 | F173: SH/JB | G173: plant | H173: basil | I173: M2 | M173: =IF(G173="Fertilize",GOTO M173,"") ->  | N173: =IF(G173="Fertilize",GOTO N173,"") ->  | Q173: M2 | R173: 2022-11-03 | S173: =IF(G173="compost",GOTO S173,"") ->  | T173: =IF(G173="compost",GOTO T173,"") ->  | U173: =IF(G173="compost",GOTO U173,"") ->  | V173: =IF(G173="compost",GOTO V173,"") ->  | W173: =IF(G173="compost",GOTO W173,"") ->  | X173: =IF(G173="compost",GOTO X173,"") ->  | Y173: =IF(G173="compost",GOTO Y173,"") ->  | Z173: =IF(G173="compost",GOTO Z173,"") ->  | AA173: =IF(G173="Maintenance",GOTO AA173,IF(G173="Table",GOTO AA173,"")) ->  | AB173: =IF(G173="Maintenance",GOTO AB173,IF(G173="Table",GOTO AB173,"")) ->  | AC173: =IF(G173="Maintenance",GOTO AC173,IF(G173="Table",GOTO AC173,"")) -> 
A174: 2022-10-20 | B174: PM | C174: lopez | D174: Eli | E174: 4 | F174: SH/JB | G174: harvest | H174: peppers | I174: M5 | J174: 0 | K174: 3 | L174: M5 | M174: =IF(G174="Fertilize",GOTO M174,"") ->  | N174: =IF(G174="Fertilize",GOTO N174,"") ->  | Q174: M2 | S174: =IF(G174="compost",GOTO S174,"") ->  | T174: =IF(G174="compost",GOTO T174,"") ->  | U174: =IF(G174="compost",GOTO U174,"") ->  | V174: =IF(G174="compost",GOTO V174,"") ->  | W174: =IF(G174="compost",GOTO W174,"") ->  | X174: =IF(G174="compost",GOTO X174,"") ->  | Y174: =IF(G174="compost",GOTO Y174,"") ->  | Z174: =IF(G174="compost",GOTO Z174,"") ->  | AA174: =IF(G174="Maintenance",GOTO AA174,IF(G174="Table",GOTO AA174,"")) ->  | AB174: =IF(G174="Maintenance",GOTO AB174,IF(G174="Table",GOTO AB174,"")) ->  | AC174: =IF(G174="Maintenance",GOTO AC174,IF(G174="Table",GOTO AC174,"")) -> 
A175: 2022-10-20 | B175: PM | C175: lopez | D175: vevadam | E175: 5 | F175: AM | G175: plant | H175: turnips | I175: M7a | J175: 3 | K175: 6 | L175: M6b | M175: =IF(G175="Fertilize",GOTO M175,"") ->  | N175: =IF(G175="Fertilize",GOTO N175,"") ->  | Q175: M7a | R175: 2022-11-03 | S175: =IF(G175="compost",GOTO S175,"") ->  | T175: =IF(G175="compost",GOTO T175,"") ->  | U175: =IF(G175="compost",GOTO U175,"") ->  | V175: =IF(G175="compost",GOTO V175,"") ->  | W175: =IF(G175="compost",GOTO W175,"") ->  | X175: =IF(G175="compost",GOTO X175,"") ->  | Y175: =IF(G175="compost",GOTO Y175,"") ->  | Z175: =IF(G175="compost",GOTO Z175,"") ->  | AA175: =IF(G175="Maintenance",GOTO AA175,IF(G175="Table",GOTO AA175,"")) ->  | AB175: =IF(G175="Maintenance",GOTO AB175,IF(G175="Table",GOTO AB175,"")) ->  | AC175: =IF(G175="Maintenance",GOTO AC175,IF(G175="Table",GOTO AC175,"")) -> 
A176: 2022-10-22 | C176: volunteers | G176: harvest | H176: okra | I176: M15a | J176: 0 | K176: 14 | L176: M15a | M176: =IF(G176="Fertilize",GOTO M176,"") ->  | N176: =IF(G176="Fertilize",GOTO N176,"") ->  | P176: =IF(G176="Plant",GOTO P176,"") ->  | Q176: =IF(G176="Plant",GOTO Q176,"") ->  | S176: =IF(G176="compost",GOTO S176,"") ->  | T176: =IF(G176="compost",GOTO T176,"") ->  | U176: =IF(G176="compost",GOTO U176,"") ->  | V176: =IF(G176="compost",GOTO V176,"") ->  | W176: =IF(G176="compost",GOTO W176,"") ->  | X176: =IF(G176="compost",GOTO X176,"") ->  | Y176: =IF(G176="compost",GOTO Y176,"") ->  | Z176: =IF(G176="compost",GOTO Z176,"") ->  | AA176: =IF(G176="Maintenance",GOTO AA176,IF(G176="Table",GOTO AA176,"")) ->  | AB176: =IF(G176="Maintenance",GOTO AB176,IF(G176="Table",GOTO AB176,"")) ->  | AC176: =IF(G176="Maintenance",GOTO AC176,IF(G176="Table",GOTO AC176,"")) -> 
A177: 2022-10-22 | C177: volunteers | G177: maintenance, support | I177: =IF(G177="harvest",L177,IF(G177="plant",Q177,IF(G177="fertilize",N177,IF(G177="maintenance, support",AA177,IF(G177="observation",AA177,""))))) -> orchard | J177: =IF(G177="Harvest",GOTO J177,"") ->  | K177: =IF(G177="Harvest",GOTO K177,"") ->  | M177: =IF(G177="Fertilize",GOTO M177,"") ->  | N177: =IF(G177="Fertilize",GOTO N177,"") ->  | P177: =IF(G177="Plant",GOTO P177,"") ->  | Q177: =IF(G177="Plant",GOTO Q177,"") ->  | S177: =IF(G177="compost",GOTO S177,"") ->  | T177: =IF(G177="compost",GOTO T177,"") ->  | U177: =IF(G177="compost",GOTO U177,"") ->  | V177: =IF(G177="compost",GOTO V177,"") ->  | W177: =IF(G177="compost",GOTO W177,"") ->  | X177: =IF(G177="compost",GOTO X177,"") ->  | Y177: =IF(G177="compost",GOTO Y177,"") ->  | Z177: =IF(G177="compost",GOTO Z177,"") ->  | AA177: orchard | AB177: prep O2 for Onions and sugar snap peas | AC177: mulch last of sweet potato vines
A178: 2022-10-22 | C178: volunteers | G178: plant | H178: turnips | I178: M7a | J178: =IF(G178="Harvest",GOTO J178,"") ->  | K178: =IF(G178="Harvest",GOTO K178,"") ->  | M178: =IF(G178="Fertilize",GOTO M178,"") ->  | N178: =IF(G178="Fertilize",GOTO N178,"") ->  | Q178: M7a | R178: 2022-11-05 | S178: =IF(G178="compost",GOTO S178,"") ->  | T178: =IF(G178="compost",GOTO T178,"") ->  | U178: =IF(G178="compost",GOTO U178,"") ->  | V178: =IF(G178="compost",GOTO V178,"") ->  | W178: =IF(G178="compost",GOTO W178,"") ->  | X178: =IF(G178="compost",GOTO X178,"") ->  | Y178: =IF(G178="compost",GOTO Y178,"") ->  | Z178: =IF(G178="compost",GOTO Z178,"") ->  | AA178: =IF(G178="Maintenance",GOTO AA178,IF(G178="Table",GOTO AA178,"")) ->  | AB178: =IF(G178="Maintenance",GOTO AB178,IF(G178="Table",GOTO AB178,"")) ->  | AC178: =IF(G178="Maintenance",GOTO AC178,IF(G178="Table",GOTO AC178,"")) -> 
A179: 2022-10-22 | C179: volunteers | G179: harvest | H179: eggplant | I179: M5b | J179: 0 | K179: 4 | L179: M5b | M179: =IF(G179="Fertilize",GOTO M179,"") ->  | N179: =IF(G179="Fertilize",GOTO N179,"") ->  | P179: =IF(G179="Plant",GOTO P179,"") ->  | Q179: =IF(G179="Plant",GOTO Q179,"") ->  | S179: =IF(G179="compost",GOTO S179,"") ->  | T179: =IF(G179="compost",GOTO T179,"") ->  | U179: =IF(G179="compost",GOTO U179,"") ->  | V179: =IF(G179="compost",GOTO V179,"") ->  | W179: =IF(G179="compost",GOTO W179,"") ->  | X179: =IF(G179="compost",GOTO X179,"") ->  | Y179: =IF(G179="compost",GOTO Y179,"") ->  | Z179: =IF(G179="compost",GOTO Z179,"") ->  | AA179: =IF(G179="Maintenance",GOTO AA179,IF(G179="Table",GOTO AA179,"")) ->  | AB179: =IF(G179="Maintenance",GOTO AB179,IF(G179="Table",GOTO AB179,"")) ->  | AC179: =IF(G179="Maintenance",GOTO AC179,IF(G179="Table",GOTO AC179,"")) -> 
A180: 2022-10-22 | C180: volunteers | G180: maintenance, support | I180: Main | J180: =IF(G180="Harvest",GOTO J180,"") ->  | K180: =IF(G180="Harvest",GOTO K180,"") ->  | M180: =IF(G180="Fertilize",GOTO M180,"") ->  | N180: =IF(G180="Fertilize",GOTO N180,"") ->  | P180: =IF(G180="Plant",GOTO P180,"") ->  | Q180: =IF(G180="Plant",GOTO Q180,"") ->  | S180: =IF(G180="compost",GOTO S180,"") ->  | T180: =IF(G180="compost",GOTO T180,"") ->  | U180: =IF(G180="compost",GOTO U180,"") ->  | V180: =IF(G180="compost",GOTO V180,"") ->  | W180: =IF(G180="compost",GOTO W180,"") ->  | X180: =IF(G180="compost",GOTO X180,"") ->  | Y180: =IF(G180="compost",GOTO Y180,"") ->  | Z180: =IF(G180="compost",GOTO Z180,"") ->  | AA180: shed | AB180: move compost from bin1 to bin2 | AC180: fill pails with compost ready to use
A181: 2022-10-27 | B181: AM | C181: Marucci | D181: Michael | E181: 1 | F181: PM | G181: harvest | H181: potato, sweet | I181: A2-4 | J181: 62 | K181: 6 | L181: A2-4 | M181: =IF(G181="Fertilize",GOTO M181,"") ->  | N181: =IF(G181="Fertilize",GOTO N181,"") ->  | P181: =IF(G181="Plant",GOTO P181,"") ->  | Q181: =IF(G181="Plant",GOTO Q181,"") ->  | S181: =IF(G181="compost",GOTO S181,"") ->  | T181: =IF(G181="compost",GOTO T181,"") ->  | U181: =IF(G181="compost",GOTO U181,"") ->  | V181: =IF(G181="compost",GOTO V181,"") ->  | W181: =IF(G181="compost",GOTO W181,"") ->  | X181: =IF(G181="compost",GOTO X181,"") ->  | Y181: =IF(G181="compost",GOTO Y181,"") ->  | Z181: =IF(G181="compost",GOTO Z181,"") ->  | AA181: =IF(G181="Maintenance",GOTO AA181,IF(G181="Table",GOTO AA181,"")) ->  | AB181: =IF(G181="Maintenance",GOTO AB181,IF(G181="Table",GOTO AB181,"")) ->  | AC181: =IF(G181="Maintenance",GOTO AC181,IF(G181="Table",GOTO AC181,"")) -> 
A182: 2022-10-27 | B182: AM | C182: Marucci | D182: Paris | E182: 2 | F182: SH/MW | G182: plant | H182: peas, sugar snap | I182: O2 (fence) | J182: =IF(G182="Harvest",GOTO J182,"") ->  | K182: =IF(G182="Harvest",GOTO K182,"") ->  | M182: =IF(G182="Fertilize",GOTO M182,"") ->  | N182: =IF(G182="Fertilize",GOTO N182,"") ->  | P182: 1" deep, 1"apart | Q182: O2 (fence) | R182: 2022-11-10 | S182: =IF(G182="compost",GOTO S182,"") ->  | T182: =IF(G182="compost",GOTO T182,"") ->  | U182: =IF(G182="compost",GOTO U182,"") ->  | V182: =IF(G182="compost",GOTO V182,"") ->  | W182: =IF(G182="compost",GOTO W182,"") ->  | X182: =IF(G182="compost",GOTO X182,"") ->  | Y182: =IF(G182="compost",GOTO Y182,"") ->  | Z182: =IF(G182="compost",GOTO Z182,"") ->  | AA182: =IF(G182="Maintenance",GOTO AA182,IF(G182="Table",GOTO AA182,"")) ->  | AB182: =IF(G182="Maintenance",GOTO AB182,IF(G182="Table",GOTO AB182,"")) ->  | AC182: =IF(G182="Maintenance",GOTO AC182,IF(G182="Table",GOTO AC182,"")) -> 
A183: 2022-10-27 | B183: AM | C183: Marucci | D183: Kassey | E183: 3 | F183: JB | G183: harvest | H183: potato, sweet | I183: A2-4 | J183: 62 | K183: 6 | L183: A2-4 | M183: =IF(G183="Fertilize",GOTO M183,"") ->  | N183: =IF(G183="Fertilize",GOTO N183,"") ->  | P183: =IF(G183="Plant",GOTO P183,"") ->  | Q183: =IF(G183="Plant",GOTO Q183,"") ->  | S183: =IF(G183="compost",GOTO S183,"") ->  | T183: =IF(G183="compost",GOTO T183,"") ->  | U183: =IF(G183="compost",GOTO U183,"") ->  | V183: =IF(G183="compost",GOTO V183,"") ->  | W183: =IF(G183="compost",GOTO W183,"") ->  | X183: =IF(G183="compost",GOTO X183,"") ->  | Y183: =IF(G183="compost",GOTO Y183,"") ->  | Z183: =IF(G183="compost",GOTO Z183,"") ->  | AA183: =IF(G183="Maintenance",GOTO AA183,IF(G183="Table",GOTO AA183,"")) ->  | AB183: =IF(G183="Maintenance",GOTO AB183,IF(G183="Table",GOTO AB183,"")) ->  | AC183: =IF(G183="Maintenance",GOTO AC183,IF(G183="Table",GOTO AC183,"")) -> 
A184: 2022-10-27 | B184: AM | C184: Marucci | D184: Kyndal | E184: 4 | F184: HO | G184: plant | H184: cabbage | I184: O17 | J184: =IF(G184="Harvest",GOTO J184,"") ->  | K184: =IF(G184="Harvest",GOTO K184,"") ->  | M184: =IF(G184="Fertilize",GOTO M184,"") ->  | N184: =IF(G184="Fertilize",GOTO N184,"") ->  | P184: plant and water in | Q184: O17 | R184: 2022-11-10 | S184: =IF(G184="compost",GOTO S184,"") ->  | T184: =IF(G184="compost",GOTO T184,"") ->  | U184: =IF(G184="compost",GOTO U184,"") ->  | V184: =IF(G184="compost",GOTO V184,"") ->  | W184: =IF(G184="compost",GOTO W184,"") ->  | X184: =IF(G184="compost",GOTO X184,"") ->  | Y184: =IF(G184="compost",GOTO Y184,"") ->  | Z184: =IF(G184="compost",GOTO Z184,"") ->  | AA184: Orchard | AB184: scatter Rye seed and scratch in | AC184: =IF(G184="Maintenance",GOTO AC184,IF(G184="Table",GOTO AC184,"")) -> 
A185: 2022-10-27 | B185: AM | C185: Marucci | D185: Addalyn | E185: 5 | F185: DC | G185: harvest | H185: okra | I185: M15a | J185: 0 | K185: 2 | L185: M15a | M185: =IF(G185="Fertilize",GOTO M185,"") ->  | N185: =IF(G185="Fertilize",GOTO N185,"") ->  | P185: =IF(G185="Plant",GOTO P185,"") ->  | Q185: =IF(G185="Plant",GOTO Q185,"") ->  | S185: =IF(G185="compost",GOTO S185,"") ->  | T185: =IF(G185="compost",GOTO T185,"") ->  | U185: =IF(G185="compost",GOTO U185,"") ->  | V185: =IF(G185="compost",GOTO V185,"") ->  | W185: =IF(G185="compost",GOTO W185,"") ->  | X185: =IF(G185="compost",GOTO X185,"") ->  | Y185: =IF(G185="compost",GOTO Y185,"") ->  | Z185: =IF(G185="compost",GOTO Z185,"") ->  | AA185: =IF(G185="Maintenance",GOTO AA185,IF(G185="Table",GOTO AA185,"")) ->  | AB185: =IF(G185="Maintenance",GOTO AB185,IF(G185="Table",GOTO AB185,"")) ->  | AC185: =IF(G185="Maintenance",GOTO AC185,IF(G185="Table",GOTO AC185,"")) -> 
A186: 2022-10-27 | B186: AM | C186: Marucci | D186: Addalyn | E186: 5 | F186: DC | G186: plant | H186: radish, watermelon | I186: M11a | J186: =IF(G186="Harvest",GOTO J186,"") ->  | K186: =IF(G186="Harvest",GOTO K186,"") ->  | M186: =IF(G186="Fertilize",GOTO M186,"") ->  | N186: =IF(G186="Fertilize",GOTO N186,"") ->  | P186: plant 3 rows 1/4" deep, 1" apart | Q186: M11a | R186: 2022-11-10 | S186: =IF(G186="compost",GOTO S186,"") ->  | T186: =IF(G186="compost",GOTO T186,"") ->  | U186: =IF(G186="compost",GOTO U186,"") ->  | V186: =IF(G186="compost",GOTO V186,"") ->  | W186: =IF(G186="compost",GOTO W186,"") ->  | X186: =IF(G186="compost",GOTO X186,"") ->  | Y186: =IF(G186="compost",GOTO Y186,"") ->  | Z186: =IF(G186="compost",GOTO Z186,"") ->  | AA186: =IF(G186="Maintenance",GOTO AA186,IF(G186="Table",GOTO AA186,"")) ->  | AB186: =IF(G186="Maintenance",GOTO AB186,IF(G186="Table",GOTO AB186,"")) ->  | AC186: =IF(G186="Maintenance",GOTO AC186,IF(G186="Table",GOTO AC186,"")) -> 
A187: 2022-10-27 | B187: AM | C187: Marucci | D187: Alejandro | E187: 6 | F187: DK | G187: compost | J187: =IF(G187="Harvest",GOTO J187,"") ->  | K187: =IF(G187="Harvest",GOTO K187,"") ->  | M187: =IF(G187="Fertilize",GOTO M187,"") ->  | N187: =IF(G187="Fertilize",GOTO N187,"") ->  | P187: =IF(G187="Plant",GOTO P187,"") ->  | Q187: =IF(G187="Plant",GOTO Q187,"") ->  | S187: 61 | U187: .6 | V187: 2.2 | W187: 92 | X187: 110 | Y187: 79 | Z187: cut up sugar cane and restart bin1 | AA187: =IF(G187="Maintenance",GOTO AA187,IF(G187="Table",GOTO AA187,"")) ->  | AB187: =IF(G187="Maintenance",GOTO AB187,IF(G187="Table",GOTO AB187,"")) ->  | AC187: =IF(G187="Maintenance",GOTO AC187,IF(G187="Table",GOTO AC187,"")) -> 
A188: 2022-10-27 | B188: PM | C188: Marucci | D188: Logan | E188: 1 | F188: PM | G188: harvest | H188: potato, sweet | I188: A5-9 | J188: 14 | K188: 0 | L188: A5-9 | M188: =IF(G188="Fertilize",GOTO M188,"") ->  | N188: =IF(G188="Fertilize",GOTO N188,"") ->  | P188: =IF(G188="Plant",GOTO P188,"") ->  | Q188: =IF(G188="Plant",GOTO Q188,"") ->  | S188: =IF(G188="compost",GOTO S188,"") ->  | T188: =IF(G188="compost",GOTO T188,"") ->  | U188: =IF(G188="compost",GOTO U188,"") ->  | V188: =IF(G188="compost",GOTO V188,"") ->  | W188: =IF(G188="compost",GOTO W188,"") ->  | X188: =IF(G188="compost",GOTO X188,"") ->  | Y188: =IF(G188="compost",GOTO Y188,"") ->  | Z188: =IF(G188="compost",GOTO Z188,"") ->  | AA188: =IF(G188="Maintenance",GOTO AA188,IF(G188="Table",GOTO AA188,"")) ->  | AB188: =IF(G188="Maintenance",GOTO AB188,IF(G188="Table",GOTO AB188,"")) ->  | AC188: =IF(G188="Maintenance",GOTO AC188,IF(G188="Table",GOTO AC188,"")) -> 
A189: 2022-10-27 | B189: PM | C189: Marucci | D189: Christian | E189: 2 | F189: DC | G189: harvest | H189: collards | I189: M6b | J189: 2 | K189: 8 | L189: M6b | M189: =IF(G189="Fertilize",GOTO M189,"") ->  | N189: =IF(G189="Fertilize",GOTO N189,"") ->  | P189: =IF(G189="Plant",GOTO P189,"") ->  | Q189: =IF(G189="Plant",GOTO Q189,"") ->  | S189: =IF(G189="compost",GOTO S189,"") ->  | T189: =IF(G189="compost",GOTO T189,"") ->  | U189: =IF(G189="compost",GOTO U189,"") ->  | V189: =IF(G189="compost",GOTO V189,"") ->  | W189: =IF(G189="compost",GOTO W189,"") ->  | X189: =IF(G189="compost",GOTO X189,"") ->  | Y189: =IF(G189="compost",GOTO Y189,"") ->  | Z189: =IF(G189="compost",GOTO Z189,"") ->  | AA189: =IF(G189="Maintenance",GOTO AA189,IF(G189="Table",GOTO AA189,"")) ->  | AB189: =IF(G189="Maintenance",GOTO AB189,IF(G189="Table",GOTO AB189,"")) ->  | AC189: =IF(G189="Maintenance",GOTO AC189,IF(G189="Table",GOTO AC189,"")) -> 
A190: 2022-10-27 | B190: PM | C190: Marucci | D190: Christian | E190: 2 | F190: DC | G190: harvest | H190: eggplant | I190: M5b | J190: 2 | K190: 9 | L190: M5b | M190: =IF(G190="Fertilize",GOTO M190,"") ->  | N190: =IF(G190="Fertilize",GOTO N190,"") ->  | P190: =IF(G190="Plant",GOTO P190,"") ->  | Q190: =IF(G190="Plant",GOTO Q190,"") ->  | S190: =IF(G190="compost",GOTO S190,"") ->  | T190: =IF(G190="compost",GOTO T190,"") ->  | U190: =IF(G190="compost",GOTO U190,"") ->  | V190: =IF(G190="compost",GOTO V190,"") ->  | W190: =IF(G190="compost",GOTO W190,"") ->  | X190: =IF(G190="compost",GOTO X190,"") ->  | Y190: =IF(G190="compost",GOTO Y190,"") ->  | Z190: =IF(G190="compost",GOTO Z190,"") ->  | AA190: =IF(G190="Maintenance",GOTO AA190,IF(G190="Table",GOTO AA190,"")) ->  | AB190: =IF(G190="Maintenance",GOTO AB190,IF(G190="Table",GOTO AB190,"")) ->  | AC190: =IF(G190="Maintenance",GOTO AC190,IF(G190="Table",GOTO AC190,"")) -> 
A191: 2022-10-27 | B191: PM | C191: Marucci | D191: Christian | E191: 2 | F191: DC | G191: harvest | H191: peppers | I191: M5b | J191: 2 | L191: M5b | M191: =IF(G191="Fertilize",GOTO M191,"") ->  | N191: =IF(G191="Fertilize",GOTO N191,"") ->  | P191: =IF(G191="Plant",GOTO P191,"") ->  | Q191: =IF(G191="Plant",GOTO Q191,"") ->  | S191: =IF(G191="compost",GOTO S191,"") ->  | T191: =IF(G191="compost",GOTO T191,"") ->  | U191: =IF(G191="compost",GOTO U191,"") ->  | V191: =IF(G191="compost",GOTO V191,"") ->  | W191: =IF(G191="compost",GOTO W191,"") ->  | X191: =IF(G191="compost",GOTO X191,"") ->  | Y191: =IF(G191="compost",GOTO Y191,"") ->  | Z191: =IF(G191="compost",GOTO Z191,"") ->  | AA191: =IF(G191="Maintenance",GOTO AA191,IF(G191="Table",GOTO AA191,"")) ->  | AB191: =IF(G191="Maintenance",GOTO AB191,IF(G191="Table",GOTO AB191,"")) ->  | AC191: =IF(G191="Maintenance",GOTO AC191,IF(G191="Table",GOTO AC191,"")) -> 
A192: 2022-10-27 | B192: PM | C192: Marucci | E192: 3 | F192: SH/MW | G192: maintenance, support | I192: =IF(G192="harvest",L192,IF(G192="plant",Q192,IF(G192="fertilize",N192,IF(G192="maintenance, support",AA192,IF(G192="observation",AA192,""))))) -> orchard | J192: =IF(G192="Harvest",GOTO J192,"") ->  | K192: =IF(G192="Harvest",GOTO K192,"") ->  | M192: =IF(G192="Fertilize",GOTO M192,"") ->  | N192: =IF(G192="Fertilize",GOTO N192,"") ->  | P192: =IF(G192="Plant",GOTO P192,"") ->  | Q192: =IF(G192="Plant",GOTO Q192,"") ->  | S192: =IF(G192="compost",GOTO S192,"") ->  | T192: =IF(G192="compost",GOTO T192,"") ->  | U192: =IF(G192="compost",GOTO U192,"") ->  | V192: =IF(G192="compost",GOTO V192,"") ->  | W192: =IF(G192="compost",GOTO W192,"") ->  | X192: =IF(G192="compost",GOTO X192,"") ->  | Y192: =IF(G192="compost",GOTO Y192,"") ->  | Z192: =IF(G192="compost",GOTO Z192,"") ->  | AA192: orchard | AB192: replant sugar snap peas | AC192: use up hydrated peas
A193: 2022-10-27 | B193: PM | C193: Marucci | D193: Roxanne | E193: 4 | F193: JB | G193: maintenance, support | I193: =IF(G193="harvest",L193,IF(G193="plant",Q193,IF(G193="fertilize",N193,IF(G193="maintenance, support",AA193,IF(G193="observation",AA193,""))))) -> Main | J193: =IF(G193="Harvest",GOTO J193,"") ->  | K193: =IF(G193="Harvest",GOTO K193,"") ->  | M193: =IF(G193="Fertilize",GOTO M193,"") ->  | N193: =IF(G193="Fertilize",GOTO N193,"") ->  | P193: =IF(G193="Plant",GOTO P193,"") ->  | Q193: =IF(G193="Plant",GOTO Q193,"") ->  | R193: =IF(G193="Plant",A193+14,"") ->  | S193: =IF(G193="compost",GOTO S193,"") ->  | T193: =IF(G193="compost",GOTO T193,"") ->  | U193: =IF(G193="compost",GOTO U193,"") ->  | V193: =IF(G193="compost",GOTO V193,"") ->  | W193: =IF(G193="compost",GOTO W193,"") ->  | X193: =IF(G193="compost",GOTO X193,"") ->  | Y193: =IF(G193="compost",GOTO Y193,"") ->  | Z193: =IF(G193="compost",GOTO Z193,"") ->  | AA193: Main | AB193: mulch bed M20,remove marjoram, replace lavendar
A194: 2022-10-27 | B194: PM | C194: Marucci | D194: Roxanne | E194: 4 | F194: Jb | G194: plant | H194: sorrel, french | I194: Main | J194: =IF(G194="Harvest",GOTO J194,"") ->  | K194: =IF(G194="Harvest",GOTO K194,"") ->  | M194: =IF(G194="Fertilize",GOTO M194,"") ->  | N194: =IF(G194="Fertilize",GOTO N194,"") ->  | P194: plant in 4" pots, plant lovage M2 | Q194: Main | R194: 2022-11-10 | S194: =IF(G194="compost",GOTO S194,"") ->  | T194: =IF(G194="compost",GOTO T194,"") ->  | U194: =IF(G194="compost",GOTO U194,"") ->  | V194: =IF(G194="compost",GOTO V194,"") ->  | W194: =IF(G194="compost",GOTO W194,"") ->  | X194: =IF(G194="compost",GOTO X194,"") ->  | Y194: =IF(G194="compost",GOTO Y194,"") ->  | Z194: =IF(G194="compost",GOTO Z194,"") ->  | AA194: =IF(G194="Maintenance",GOTO AA194,IF(G194="Table",GOTO AA194,"")) ->  | AB194: =IF(G194="Maintenance",GOTO AB194,IF(G194="Table",GOTO AB194,"")) ->  | AC194: =IF(G194="Maintenance",GOTO AC194,IF(G194="Table",GOTO AC194,"")) -> 
A195: 2022-10-27 | B195: PM | C195: Marucci | D195: Austin | E195: 5 | F195: KK | G195: harvest | H195: potato, sweet | I195: A5-9 | J195: 13 | K195: 15 | L195: A5-9 | M195: =IF(G195="Fertilize",GOTO M195,"") ->  | N195: =IF(G195="Fertilize",GOTO N195,"") ->  | P195: =IF(G195="Plant",GOTO P195,"") ->  | Q195: =IF(G195="Plant",GOTO Q195,"") ->  | S195: =IF(G195="compost",GOTO S195,"") ->  | T195: =IF(G195="compost",GOTO T195,"") ->  | U195: =IF(G195="compost",GOTO U195,"") ->  | V195: =IF(G195="compost",GOTO V195,"") ->  | W195: =IF(G195="compost",GOTO W195,"") ->  | X195: =IF(G195="compost",GOTO X195,"") ->  | Y195: =IF(G195="compost",GOTO Y195,"") ->  | Z195: =IF(G195="compost",GOTO Z195,"") ->  | AA195: =IF(G195="Maintenance",GOTO AA195,IF(G195="Table",GOTO AA195,"")) ->  | AB195: =IF(G195="Maintenance",GOTO AB195,IF(G195="Table",GOTO AB195,"")) ->  | AC195: =IF(G195="Maintenance",GOTO AC195,IF(G195="Table",GOTO AC195,"")) -> 
A196: 2022-10-27 | B196: PM | C196: Marucci | D196: Trip | E196: 6 | F196: DK | G196: compost | I196: =IF(G196="harvest",L196,IF(G196="plant",Q196,IF(G196="fertilize",N196,IF(G196="maintenance",AA196,IF(G196="observation",AA196,""))))) ->  | J196: =IF(G196="Harvest",GOTO J196,"") ->  | K196: =IF(G196="Harvest",GOTO K196,"") ->  | M196: =IF(G196="Fertilize",GOTO M196,"") ->  | N196: =IF(G196="Fertilize",GOTO N196,"") ->  | P196: =IF(G196="Plant",GOTO P196,"") ->  | Q196: =IF(G196="Plant",GOTO Q196,"") ->  | S196: 82 | U196: 2.4 | V196: .6 | W196: 100 | X196: 120 | Y196: 72 | Z196: fill pails with compost #3, cover next to bin #3 | AA196: =IF(G196="Maintenance",GOTO AA196,IF(G196="Table",GOTO AA196,"")) ->  | AB196: =IF(G196="Maintenance",GOTO AB196,IF(G196="Table",GOTO AB196,"")) ->  | AC196: =IF(G196="Maintenance",GOTO AC196,IF(G196="Table",GOTO AC196,"")) -> 
A197: 2022-11-03 | B197: AM | C197: Harisis | D197: Alexa | E197: 1 | F197: PM | G197: harvest | H197: spinach | I197: O2 | J197: 0 | K197: 10 | L197: O2 | M197: =IF(G197="Fertilize",GOTO M197,"") ->  | N197: =IF(G197="Fertilize",GOTO N197,"") ->  | O197: =IF(G197="Fertilize",A197+14,"") ->  | P197: =IF(G197="Plant",GOTO P197,"") ->  | Q197: =IF(G197="Plant",GOTO Q197,"") ->  | S197: =IF(G197="compost",GOTO S197,"") ->  | T197: =IF(G197="compost",GOTO T197,"") ->  | U197: =IF(G197="compost",GOTO U197,"") ->  | V197: =IF(G197="compost",GOTO V197,"") ->  | W197: =IF(G197="compost",GOTO W197,"") ->  | X197: =IF(G197="compost",GOTO X197,"") ->  | Y197: =IF(G197="compost",GOTO Y197,"") ->  | Z197: =IF(G197="compost",GOTO Z197,"") ->  | AA197: orchard | AB197: spread pine mulch in walkways | AC197: Along O2 mostly
A198: 2022-11-03 | B198: AM | C198: Harisis | D198: Yuliana | E198: 2 | F198: DC/JT | G198: compost | J198: =IF(G198="Harvest",GOTO J198,"") ->  | K198: =IF(G198="Harvest",GOTO K198,"") ->  | M198: =IF(G198="Fertilize",GOTO M198,"") ->  | N198: =IF(G198="Fertilize",GOTO N198,"") ->  | P198: =IF(G198="Plant",GOTO P198,"") ->  | Q198: =IF(G198="Plant",GOTO Q198,"") ->  | S198: 78 | V198: 1.5 | X198: 104 | AA198: =IF(G198="Maintenance",GOTO AA198,IF(G198="Table",GOTO AA198,"")) ->  | AB198: =IF(G198="Maintenance",GOTO AB198,IF(G198="Table",GOTO AB198,"")) ->  | AC198: =IF(G198="Maintenance",GOTO AC198,IF(G198="Table",GOTO AC198,"")) -> 
A199: 2022-11-03 | B199: AM | C199: Harisis | D199: Christian | E199: 3 | F199: SH/MW | G199: plant | H199: collards | I199: M15 | J199: =IF(G199="Harvest",GOTO J199,"") ->  | K199: =IF(G199="Harvest",GOTO K199,"") ->  | M199: =IF(G199="Fertilize",GOTO M199,"") ->  | N199: =IF(G199="Fertilize",GOTO N199,"") ->  | P199: plant, water, and mark row | Q199: M15 | R199: 2022-11-17 | S199: =IF(G199="compost",GOTO S199,"") ->  | T199: =IF(G199="compost",GOTO T199,"") ->  | U199: =IF(G199="compost",GOTO U199,"") ->  | V199: =IF(G199="compost",GOTO V199,"") ->  | W199: =IF(G199="compost",GOTO W199,"") ->  | X199: =IF(G199="compost",GOTO X199,"") ->  | Y199: =IF(G199="compost",GOTO Y199,"") ->  | Z199: =IF(G199="compost",GOTO Z199,"") ->  | AA199: =IF(G199="Maintenance",GOTO AA199,IF(G199="Table",GOTO AA199,"")) ->  | AB199: =IF(G199="Maintenance",GOTO AB199,IF(G199="Table",GOTO AB199,"")) ->  | AC199: =IF(G199="Maintenance",GOTO AC199,IF(G199="Table",GOTO AC199,"")) -> 
A200: 2022-11-03 | B200: AM | C200: Harisis | D200: Christian | E200: 3 | F200: SH/MW | G200: harvest | H200: radish | I200: M15a | J200: 1 | K200: 14 | L200: M15a | M200: =IF(G200="Fertilize",GOTO M200,"") ->  | N200: =IF(G200="Fertilize",GOTO N200,"") ->  | P200: =IF(G200="Plant",GOTO P200,"") ->  | Q200: =IF(G200="Plant",GOTO Q200,"") ->  | R200: =IF(G200="Plant",A200+14,"") ->  | S200: =IF(G200="compost",GOTO S200,"") ->  | T200: =IF(G200="compost",GOTO T200,"") ->  | U200: =IF(G200="compost",GOTO U200,"") ->  | V200: =IF(G200="compost",GOTO V200,"") ->  | W200: =IF(G200="compost",GOTO W200,"") ->  | X200: =IF(G200="compost",GOTO X200,"") ->  | Y200: =IF(G200="compost",GOTO Y200,"") ->  | Z200: =IF(G200="compost",GOTO Z200,"") ->  | AA200: =IF(G200="Maintenance",GOTO AA200,IF(G200="Table",GOTO AA200,"")) ->  | AB200: =IF(G200="Maintenance",GOTO AB200,IF(G200="Table",GOTO AB200,"")) ->  | AC200: =IF(G200="Maintenance",GOTO AC200,IF(G200="Table",GOTO AC200,"")) -> 
... 1019 more rows

Sheet Experiments
A1: =NOW() -> 2023-07-29T07:56:11.350
A3: Task | B3: (Multiple Items)
A6: date | B6: location | C6: notes3 | D6: action
A7: 2022-08-27 | B7: main | C7: non-toxic sealant preservative | D7: applied wood sealer to tables
C8: non-toxic sealant preservative Total
A9: 2022-09-03 | B9: Annex | C9: non-toxic sealant preservative | D9: applied wood sealer to outdoor classroom
C10: non-toxic sealant preservative Total
B11: Orchard | C11: both mowers | D11: installed new drive belt on mowers
C12: both mowers Total
A13: 2022-09-08 | B13: weed control | C13: M6,7,9,10,13,14 | D13: hand weed & added grass mulch
C14: M6,7,9,10,13,14 Total
A15: 2022-09-13 | B15: main | C15: solar system, between green tank and bench | D15: setup solar powered compost TEA station
C16: solar system, between green tank and bench Total
A17: 2022-09-17 | B17: main | C17: repaired tiers and filled in beds with soil | D17: repaired 3 tier herb bed
C18: repaired tiers and filled in beds with soil Total
B19: Orchard | C19: zone 3 re-configured to O9-12 | D19: modifying irrigation '#3' to water O9-12 automatically
C20: zone 3 re-configured to O9-12 Total
A21: 2022-09-11 | B21: weed control | C21: orchard & main walkways | D21: applied AXXE
C22: orchard & main walkways Total
A23: 2022-09-22 | B23: M9 | C23: so far no observable difference | D23: Broccoli: compost tea vs none
D24: Broccoli: compost tea (M9a) vs none (m9b)
C25: so far no observable difference Total
A26: 2022-09-27 | B26: Orchard | C26: preparation for extending to O9-12 | D26: capped forest area sprinklers
C27: preparation for extending to O9-12 Total
A28: 2022-09-29 | B28: M9 | C28: everything else no difference | D28: M9b plants taller
C29: everything else no difference Total
C30: everything else no difference, apply compost tea M9b only | D30: M9b plants taller
C31: everything else no difference, apply compost tea M9b only Total
A32: 2022-10-08 | B32: Orchard | C32: add O9-12 to automatic irrigation | D32: completed irrigation extension
C33: add O9-12 to automatic irrigation Total
A34: 2022-10-07 | B34: main | C34: replaced rotted wood and painted | D34: door sill and frame repaired
C35: replaced rotted wood and painted Total
A36: 2022-10-13 | B36: M9 | C36: otherwise no difference | D36: Mb taller 192" ; M9a shorter 169" ??????????
C37: otherwise no difference Total
C38: maybe soil difference bc soil added from aisle | D38: M9a color lighter; M9b sturdier
C39: maybe soil difference bc soil added from aisle Total
A40: 2022-10-22 | B40: main | C40: fill pails with compost ready to use | D40: move compost from bin1 to bin2
C41: fill pails with compost ready to use Total
B42: Orchard | C42: mulch last of sweet potato vines | D42: prep O2 for Onions and sugar snap peas
C43: mulch last of sweet potato vines Total
A44: 2022-10-27 | B44: Main | D44: mulch bed M20,remove marjoram, replace lavendar
C45: Total
B46: Orchard | C46: use up hydrated peas | D46: replant sugar snap peas
C47: use up hydrated peas Total
A48: 2022-11-10 | B48: M9a | C48: on 11/10 (b=1.9; a=.5oz ???, 1.9) | D48: data is unclear (11/8 a=.7oz; b=.5oz)
C49: on 11/10 (b=1.9; a=.5oz ???, 1.9) Total
B50: M9b | C50: unable to make numbers make sense; from appearance (11/10/22) M9b had a lot of heads, bigger leaves and M9a seemed to have been picked with only a few heads to be picked | D50: data is unclear (it appears a = .12oz; b= 1# 4oz)
C51: unable to make numbers make sense; from appearance (11/10/22) M9b had a lot of heads, bigger leaves and M9a seemed to have been picked with only a few heads to be picked Total
A52: 2022-11-15 | B52: Annex | D52: rebuilt beds A5,6
C53: Total
A54: 2022-11-22 | B54: M9a | C54: 3oz more than M9b | D54: broccoli harvest M9a
C55: 3oz more than M9b Total
B56: M9b | C56: 3oz less than m9a | D56: broccoli harvest M9b
C57: 3oz less than m9a Total
A58: 2022-12-01 | B58: Annex | C58: to keep children from running through beds | D58: installed fence around A1-A9 beds
C59: to keep children from running through beds Total
B60: M9a | C60: no oz. | D60: broccoli harvest M9a
C61: no oz. Total
B62: M9b | C62: 2oz more than M9a | D62: broccoli harvest M9b
C63: 2oz more than M9a Total
A64: 2022-12-03 | B64: M9a | C64: 4 oz more than m9b (m9b=7oz) | D64: broccoli harvest M9a
C65: 4 oz more than m9b (m9b=7oz) Total
B66: M9b | C66: 4 oz less than m9a (m9a=3oz) | D66: broccoli harvest M9b
C67: 4 oz less than m9a (m9a=3oz) Total
A68: 2022-12-15 | B68: main | C68: remove seed before putting in compost bins | D68: break pumpkins
C69: remove seed before putting in compost bins Total
A70: 2022-12-23 | B70: gardens | C70: citrus,turnips, and lettuce covered | D70: hard freeze 16degrees
C71: citrus,turnips, and lettuce covered Total
A72: 2022-12-27 | B72: gardens | C72: covered beds survived (onions, turnips, sorrel, and kohlrabi. Uncovered beds and citrus were pretty hard hit fruit and leaves left on trees were frozen. | D72: aftermath of hard freeze reviewed, all covers removed
C73: covered beds survived (onions, turnips, sorrel, and kohlrabi. Uncovered beds and citrus were pretty hard hit fruit and leaves left on trees were frozen. Total
A74: 2023-01-05 | B74: M18,17 | C74: discard sugar cane | D74: cut sugar cane, and cotton
C75: discard sugar cane Total
B76: Main | C76: all discarded | D76: removed frozen broccoli, cut sugar cane
C77: all discarded Total
A78: 2023-01-07 | B78: Orchard | D78: amended holes for lettuce planting
C79: Total
A80: 2023-01-12 | B80: M18 | C80: #NAME? | D80: cut all sugar cane down, clean seeds - cotton balls
C81: #NAME? Total
B82: m2 | D82: cut large parsley, oregano, plant cilantro
C83: Total
B84: Marquee | C84: cut ground level, put in bag | D84: remove weeds
C85: cut ground level, put in bag Total
A86: 2023-01-19 | B86: O11,12 | C86: #NAME? | D86: clean holes, add 6-2-4, fill hole to near top
C87: #NAME? Total
B88: O2/5,6/9,10 | C88: #NAME? | D88: water holes& peas/water 5,6/ top off holes 9,10
C89: #NAME? Total
A90: 2023-01-23 | B90: Orchard | C90: over 100 (40# bags) soil mix, leaf compost, potting soil | D90: collected soil and compost donation from Warren's Rock-N-Mulch
C91: over 100 (40# bags) soil mix, leaf compost, potting soil Total
A92: 2023-01-26 | B92: Annex | D92: cut Cuphea in corner and mulch, plant acorns in 4"pots
C93: Total
B94: classroom | C94: identify soil classification of soil in beds and compare beds | D94: perform soil sediment tests on soil from beds M2,M3,M5,& "AS"
C95: identify soil classification of soil in beds and compare beds Total
B96: M9a&b | D96: fill bed and holes with bagged soil
C97: Total
B98: main | C98: 42 blocks | D98: raise beds M9, 10 to 2 blocks high
C99: 42 blocks Total
B100: orchard/main | C100: 9 bags | D100: load soil from orchard and unload in Main
C101: 9 bags Total
A102: 2023-02-02 | B102: classroom | C102: identify soil classification of soil in beds and compare beds | D102: perform soil sediment tests on soil from beds M13B,M14A,M14B,M15A, M15B, M16A,M16B,A1,A2,O2,O15,O16
C103: identify soil classification of soil in beds and compare beds Total
A104: 2023-02-04 | B104: gardens | C104: garden too wet to do much | D104: weeded sugar snaps O2, spread mulch, dug holes in A1 for potatoes
C105: garden too wet to do much Total
A106: 2023-02-07 | B106: Orchard | C106: grapes 1/3 completed | D106: till O2, train sugar snaps, prune grapes
C107: grapes 1/3 completed Total
A108: 2023-02-14 | B108: A1, O2 | C108: some potatoes dug up but not eaten, animal in search of Microlife ? (maybe) | D108: replanted dug up potatoes
C109: some potatoes dug up but not eaten, animal in search of Microlife ? (maybe) Total
A110: 2023-02-16
C111: Total
C112: sandy-clay loam | D112: compiled class results for soil characteristics - garden beds
C113: sandy-clay loam Total
A114: 2023-02-23 | C114: M14 | D114: remove kohl rabi plant in M14
C115: M14 Total
C116: M13 | D116: fill holes with soil
C117: M13 Total
A118: 2023-03-02 | B118: M17 | D118: check for strawberries & water, water acorns
C119: Total
B120: main | D120: move landscape pavers from playground area to orchard (~50), prep beds O9,O10,O11)
C121: Total
A122: 2023-03-09 | B122: M10 | D122: fill holes in bed M10
C123: Total
C124: (blank)
C125: (blank) Total
B126: m16 | C126: (blank) | D126: (blank)
C127: (blank) Total
C128: cut garlic leaves, cut 22 leaves sorrel | D128: remove parsley - bolting
C129: cut garlic leaves, cut 22 leaves sorrel Total
A130: 2023-03-16 | B130: Orchard | C130: control # 3 | D130: installed trellis irrigation O9-12
C131: control # 3 Total
A132: 2023-03-21 | B132: Orchard | C132: by passed main water supply | D132: isolated water flow to beds O9-12
C133: by passed main water supply Total
A134: 2023-03-28 | B134: main | C134: added 4" compost without tilling soil | D134: Turned bed into NO-Dig bed, M14a,b & M11 a&b
C135: added 4" compost without tilling soil Total
A136: 2023-04-06 | B136: M15b | C136: fill tub with compost, plant basil | D136: thin cucumbers to 2" apart
C137: fill tub with compost, plant basil Total
B138: M17 | D138: weed cotton area
C139: Total
B140: Marquee | C140: add 6-2-4 | D140: weed marquee area
C141: add 6-2-4 Total
B142: M6a, M11a | D142: Amend bed with compost and microgro
C143: Total
A144: 2023-04-13 | B144: O17 | C144: put in orchard | D144: move leaves from drop off
C145: put in orchard Total
A146: 2023-04-15 | B146: Annex | C146: 2 sprinklers - Annex courtyard irrigation | D146: installed shed control of irrigation in Annex
C147: 2 sprinklers - Annex courtyard irrigation Total
A148: 2023-04-14 | B148: Orchard | C148: Orchard irrigation repaired by Daniels construction | D148: re-installed shed control of irrigation
C149: Orchard irrigation repaired by Daniels construction Total
A150: 2023-04-22 | B150: main | C150: moved water closer and in soil | D150: weed tree and fix water
C151: moved water closer and in soil Total
A152: 2023-04-29 | B152: O15,5,3 | C152: chipped leaves | D152: mulched peppers, pickling cukes
C153: chipped leaves Total
B154: M2,8 | C154: pine straw | D154: mulched strawberries
C155: pine straw Total
A156: 2023-05-09 | B156: main | C156: prevent catepillar and larvae damage | D156: sprayed neem oil
C157: prevent catepillar and larvae damage Total
A158: 2023-05-16 | B158: Arbor Tree 2016 | C158: cut open for return of 2016 class | D158: dug up 2016 time capsule
C159: cut open for return of 2016 class Total
A160: 2023-05-20 | B160: main | C160: prevent larvae and catepillar damage | D160: spray stems with neem,Bt mixture, M13,14,9,&5
C161: prevent larvae and catepillar damage Total
B162: O2 | C162: prep bed for sweet potatoes | D162: weed
C163: prep bed for sweet potatoes Total
B164: M6,M11 | C164: to prevent weed growth | D164: add compost to bare areas
C165: to prevent weed growth Total
A166: 2023-05-27 | B166: M7b | C166: chopped leaves | D166: add mulch to top to retard weeds
C167: chopped leaves Total
A168: 2023-06-15 | B168: Arbor trees playground | C168: replaced to stolen irrigation heads | D168: repaired irrigation
C169: replaced to stolen irrigation heads Total
B170: main,orchard,annex, arbor trees playground | C170: set watering to everyday from 3 days a week | D170: increased watering due to 100 degree days all week long
C171: set watering to everyday from 3 days a week Total
A172: 2023-06-22 | B172: main, outside fence | C172: broken connection repaired | D172: repaired sprinkler head damage
C173: broken connection repaired Total
A174: Grand Total

Sheet Garden maintenance
A1: =NOW() -> 2023-07-29T07:56:11.350 | B1: Garden Maintenance
A3: Task | B3: maintenance, support
A6: date | B6: location | C6: action | D6: notes3
A7: 2022-09-03 | B7: Orchard | C7: installed new drive belt on mowers | D7: both mowers
C8: installed new drive belt on mowers Total
A9: 9/3/2022 Total
A10: 2022-09-08 | B10: weed control | C10: hand weed & added grass mulch | D10: M6,7,9,10,13,14
C11: hand weed & added grass mulch Total
A12: 9/8/2022 Total
A13: 2022-09-13 | B13: main | C13: setup solar powered compost TEA station | D13: solar system, between green tank and bench
C14: setup solar powered compost TEA station Total
A15: 9/13/2022 Total
A16: 2022-09-17 | B16: Orchard | C16: modifying irrigation '#3' to water O9-12 automatically | D16: zone 3 re-configured to O9-12
C17: modifying irrigation '#3' to water O9-12 automatically Total
A18: 9/17/2022 Total
A19: 2022-09-11 | B19: weed control | C19: applied AXXE | D19: orchard & main walkways
C20: applied AXXE Total
A21: 9/11/2022 Total
A22: 2022-09-27 | B22: Orchard | C22: capped forest area sprinklers | D22: preparation for extending to O9-12
C23: capped forest area sprinklers Total
A24: 9/27/2022 Total
A25: 2022-10-22 | B25: main | C25: move compost from bin1 to bin2 | D25: fill pails with compost ready to use
C26: move compost from bin1 to bin2 Total
B27: Orchard | C27: prep O2 for Onions and sugar snap peas | D27: mulch last of sweet potato vines
C28: prep O2 for Onions and sugar snap peas Total
A29: 10/22/2022 Total
A30: 2022-10-27 | B30: Main | C30: mulch bed M20,remove marjoram, replace lavendar
C31: mulch bed M20,remove marjoram, replace lavendar Total
B32: Orchard | C32: replant sugar snap peas | D32: use up hydrated peas
C33: replant sugar snap peas Total
A34: 10/27/2022 Total
A35: 2022-12-15 | B35: main | C35: break pumpkins | D35: remove seed before putting in compost bins
C36: break pumpkins Total
A37: 12/15/2022 Total
A38: 2022-12-23 | B38: gardens | C38: hard freeze 16degrees | D38: citrus,turnips, and lettuce covered
C39: hard freeze 16degrees Total
A40: 12/23/2022 Total
A41: 2022-12-27 | B41: gardens | C41: aftermath of hard freeze reviewed, all covers removed | D41: covered beds survived (onions, turnips, sorrel, and kohlrabi. Uncovered beds and citrus were pretty hard hit fruit and leaves left on trees were frozen.
C42: aftermath of hard freeze reviewed, all covers removed Total
A43: 12/27/2022 Total
A44: 2023-01-05 | B44: M18,17 | C44: cut sugar cane, and cotton | D44: discard sugar cane
C45: cut sugar cane, and cotton Total
B46: Main | C46: removed frozen broccoli, cut sugar cane | D46: all discarded
C47: removed frozen broccoli, cut sugar cane Total
A48: 1/5/2023 Total
A49: 2023-01-07 | B49: Orchard | C49: amended holes for lettuce planting
C50: amended holes for lettuce planting Total
A51: 1/7/2023 Total
A52: 2023-01-12 | B52: M18 | C52: cut all sugar cane down, clean seeds - cotton balls | D52: #NAME?
C53: cut all sugar cane down, clean seeds - cotton balls Total
B54: m2 | C54: cut large parsley, oregano, plant cilantro
C55: cut large parsley, oregano, plant cilantro Total
B56: Marquee | C56: remove weeds | D56: cut ground level, put in bag
C57: remove weeds Total
A58: 1/12/2023 Total
A59: 2023-01-19 | B59: O11,12 | C59: clean holes, add 6-2-4, fill hole to near top | D59: #NAME?
C60: clean holes, add 6-2-4, fill hole to near top Total
B61: O2/5,6/9,10 | C61: water holes& peas/water 5,6/ top off holes 9,10 | D61: #NAME?
C62: water holes& peas/water 5,6/ top off holes 9,10 Total
A63: 1/19/2023 Total
A64: 2023-01-23 | B64: Orchard | C64: collected soil and compost donation from Warren's Rock-N-Mulch | D64: over 100 (40# bags) soil mix, leaf compost, potting soil
C65: collected soil and compost donation from Warren's Rock-N-Mulch Total
A66: 1/23/2023 Total
A67: 2023-01-26 | B67: Annex | C67: cut Cuphea in corner and mulch, plant acorns in 4"pots
C68: cut Cuphea in corner and mulch, plant acorns in 4"pots Total
B69: main | C69: raise beds M9, 10 to 2 blocks high | D69: 42 blocks
C70: raise beds M9, 10 to 2 blocks high Total
B71: orchard/main | C71: load soil from orchard and unload in Main | D71: 9 bags
C72: load soil from orchard and unload in Main Total
A73: 1/26/2023 Total
A74: 2023-02-04 | B74: gardens | C74: weeded sugar snaps O2, spread mulch, dug holes in A1 for potatoes | D74: garden too wet to do much
C75: weeded sugar snaps O2, spread mulch, dug holes in A1 for potatoes Total
A76: 2/4/2023 Total
A77: 2023-02-07 | B77: Orchard | C77: till O2, train sugar snaps, prune grapes | D77: grapes 1/3 completed
C78: till O2, train sugar snaps, prune grapes Total
A79: 2/7/2023 Total
A80: 2023-02-14 | B80: A1, O2 | C80: replanted dug up potatoes | D80: some potatoes dug up but not eaten, animal in search of Microlife ? (maybe)
C81: replanted dug up potatoes Total
A82: 2/14/2023 Total
A83: 2023-02-23 | C83: remove kohl rabi plant in M14 | D83: M14
C84: remove kohl rabi plant in M14 Total
C85: fill holes with soil | D85: M13
C86: fill holes with soil Total
A87: 2/23/2023 Total
A88: 2023-03-02 | B88: M17 | C88: check for strawberries & water, water acorns
C89: check for strawberries & water, water acorns Total
A90: 3/2/2023 Total
A91: 2023-03-09 | B91: M10 | D91: (blank)
C92: Total
C93: fill holes in bed M10
C94: fill holes in bed M10 Total
B95: m16 | C95: (blank) | D95: (blank)
C96: (blank) Total
C97: remove parsley - bolting | D97: cut garlic leaves, cut 22 leaves sorrel
C98: remove parsley - bolting Total
A99: 3/9/2023 Total
A100: 2023-03-16 | B100: Orchard | C100: installed trellis irrigation O9-12 | D100: control # 3
C101: installed trellis irrigation O9-12 Total
A102: 3/16/2023 Total
A103: 2023-03-28 | B103: main | C103: Turned bed into NO-Dig bed, M14a,b & M11 a&b | D103: added 4" compost without tilling soil
C104: Turned bed into NO-Dig bed, M14a,b & M11 a&b Total
A105: 3/28/2023 Total
A106: 2023-04-06 | B106: M15b | C106: thin cucumbers to 2" apart | D106: fill tub with compost, plant basil
C107: thin cucumbers to 2" apart Total
B108: M17 | C108: weed cotton area
C109: weed cotton area Total
B110: Marquee | C110: weed marquee area | D110: add 6-2-4
C111: weed marquee area Total
B112: M6a, M11a | C112: Amend bed with compost and microgro
C113: Amend bed with compost and microgro Total
A114: 4/6/2023 Total
A115: 2023-04-13 | B115: O17 | C115: move leaves from drop off | D115: put in orchard
C116: move leaves from drop off Total
A117: 4/13/2023 Total
A118: 2023-04-15 | B118: Annex | C118: installed shed control of irrigation in Annex | D118: 2 sprinklers - Annex courtyard irrigation
C119: installed shed control of irrigation in Annex Total
A120: 4/15/2023 Total
A121: 2023-04-14 | B121: Orchard | C121: re-installed shed control of irrigation | D121: Orchard irrigation repaired by Daniels construction
C122: re-installed shed control of irrigation Total
A123: 4/14/2023 Total
A124: 2023-04-29 | B124: O15,5,3 | C124: mulched peppers, pickling cukes | D124: chipped leaves
C125: mulched peppers, pickling cukes Total
B126: M2,8 | C126: mulched strawberries | D126: pine straw
C127: mulched strawberries Total
A128: 4/29/2023 Total
A129: 2023-05-09 | B129: main | C129: sprayed neem oil | D129: prevent catepillar and larvae damage
C130: sprayed neem oil Total
A131: 5/9/2023 Total
A132: 2023-05-16 | B132: Arbor Tree 2016 | C132: dug up 2016 time capsule | D132: cut open for return of 2016 class
C133: dug up 2016 time capsule Total
A134: 5/16/2023 Total
A135: 2023-05-20 | B135: main | C135: spray stems with neem,Bt mixture, M13,14,9,&5 | D135: prevent larvae and catepillar damage
C136: spray stems with neem,Bt mixture, M13,14,9,&5 Total
B137: O2 | C137: weed | D137: prep bed for sweet potatoes
C138: weed Total
B139: M6,M11 | C139: add compost to bare areas | D139: to prevent weed growth
C140: add compost to bare areas Total
A141: 5/20/2023 Total
A142: 2023-05-27 | B142: M7b | C142: add mulch to top to retard weeds | D142: chopped leaves
C143: add mulch to top to retard weeds Total
A144: 5/27/2023 Total
A145: 2023-06-15 | B145: Arbor trees playground | C145: repaired irrigation | D145: replaced to stolen irrigation heads
C146: repaired irrigation Total
B147: main,orchard,annex, arbor trees playground | C147: increased watering due to 100 degree days all week long | D147: set watering to everyday from 3 days a week
C148: increased watering due to 100 degree days all week long Total
A149: 6/15/2023 Total
A150: 2023-06-22 | B150: main, outside fence | C150: repaired sprinkler head damage | D150: broken connection repaired
C151: repaired sprinkler head damage Total
A152: 6/22/2023 Total
A153: Grand Total

Sheet Project Maintenance
A1: =NOW() -> 2023-07-29T07:56:11.350 | B1: Project Activites Report (upkeep / maintenance / unplanned and new projects | D1: red is general upkeep / maintenance
D2: green is irrigation related
D3: black = unplanned projects
D4: blue = new projects
A6: location | B6: date | C6: action | D6: notes3
A7: Annex | B7: 2022-09-03 | C7: applied wood sealer to outdoor classroom | D7: non-toxic sealant preservative
B8: 2022-11-15 | C8: rebuilt beds A5,6
B9: 2022-12-01 | C9: installed fence around A1-A9 beds | D9: to keep children from running through beds
B10: 2023-04-15 | C10: installed shed control of irrigation in Annex | D10: 2 sprinklers - Annex courtyard irrigation
B11: 2023-05-13 | C11: repair bench / outdoor classroom | D11: replace rotted wood seat
B12: 2023-05-18 | C12: water bib repaired, hose end replaced, hose hooked up
A13: M7b | B13: 2023-05-27 | C13: add mulch to top to retard weeds | D13: chopped leaves
A14: main | B14: 2022-08-27 | C14: applied wood sealer to tables | D14: non-toxic sealant preservative
B15: 2022-09-13 | C15: setup solar powered compost TEA station | D15: solar system, between green tank and bench
B16: 2022-09-17 | C16: repaired 3 tier herb bed | D16: repaired tiers and filled in beds with soil
B17: 2022-10-07 | C17: door sill and frame repaired | D17: replaced rotted wood and painted, Thank you Bruce and Kristi
B18: 2023-01-26 | C18: raise beds M9, 10 to 2 blocks high | D18: 42 blocks
B19: 2023-03-02 | C19: move landscape pavers from playground area to orchard (~50), prep beds O9,O10,O11)
B20: 2023-03-28 | C20: Turned bed into NO-Dig bed, M14a,b & M11 a&b | D20: added 4" compost without tilling soil
B21: 2023-04-08 | C21: Moved rain gauge into garden area from outside garden | D21: behind grapes attached to fence
B22: 2023-05-11 | C22: repaired irrigation valve for herb beds | D22: with water off, replaced valve diaphragm
B23: 2023-05-20 | C23: spray stems with neem,Bt mixture, M13,14,9,&5 | D23: prevent larvae and catepillar damage
B24: 2023-07-13 | C24: filled in open seams with sealant, sealed membrane with adhesive
A25: Orchard | B25: 2022-09-03 | C25: installed new drive belt on mowers | D25: both mowers
B26: 2022-09-17 | C26: modifying irrigation '#3' to water O9-12 automatically | D26: zone 3 re-configured to O9-12
B27: 2022-10-08 | C27: completed irrigation extension | D27: add O9-12 to automatic irrigation
B28: 2023-01-23 | C28: collected soil and compost donation from Warren's Rock-N-Mulch | D28: over 100 (40# bags) soil mix, leaf compost, potting soil
B29: 2023-03-16 | C29: installed trellis irrigation O9-12 | D29: control # 3
B30: 2023-03-21 | C30: isolated water flow to beds O9-12 | D30: by passed main water supply
B31: 2023-04-14 | C31: re-installed shed control of irrigation | D31: Orchard irrigation repaired by Daniels construction
B32: 2023-02-16 | C32: compiled class results for soil characteristics - garden beds | D32: sandy-clay loam
A33: Arbor Tree 2016 | B33: 2023-02-28 | C33: Planted a Shumardi oak in place of 2016 tree that had died over last summer | D33: site of time capsules for 2016 and 2023
B34: 2023-05-16 | C34: dug up 2016 time capsule | D34: cut open for return of 2016 class
A35: Arbor trees playground | B35: 2023-06-15 | C35: repaired irrigation | D35: replaced to stolen irrigation heads
B36: 2023-06-22 | C36: installed a 4X4X8 boundary around tree | D36: to protect against mower damage
B37: 2023-06-27 | C37: weeded and added pine bark mulch | D37: try to save tree by holding moisture
A38: main,orchard,annex, arbor trees playground | B38: 2023-06-15 | C38: increased watering due to 100 degree days all week long | D38: set watering to everyday from 3 days a week
A39: main, outside fence | B39: 2023-06-22 | C39: repaired sprinkler head damage | D39: broken connection repaired
A40: Grand Total

Sheet weed control
A1: =NOW() -> 2023-07-29T07:56:11.350 | B1: Weed Control
A3: Task | B3: (Multiple Items)
A6: date | B6: location | C6: notes3 | D6: action
A7: 2022-09-03 | B7: Orchard | C7: both mowers | D7: installed new drive belt on mowers
C8: both mowers Total
A9: 9/3/2022 Total
A10: 2022-09-08 | B10: weed control | C10: M6,7,9,10,13,14 | D10: hand weed & added grass mulch
C11: M6,7,9,10,13,14 Total
A12: 9/8/2022 Total
A13: 2022-09-13 | B13: main | C13: solar system, between green tank and bench | D13: setup solar powered compost TEA station
C14: solar system, between green tank and bench Total
A15: 9/13/2022 Total
A16: 2023-01-12 | B16: Marquee | C16: cut ground level, put in bag | D16: remove weeds
C17: cut ground level, put in bag Total
A18: 1/12/2023 Total
A19: 2023-01-23 | B19: Orchard | C19: over 100 (40# bags) soil mix, leaf compost, potting soil | D19: collected soil and compost donation from Warren's Rock-N-Mulch
C20: over 100 (40# bags) soil mix, leaf compost, potting soil Total
A21: 1/23/2023 Total
A22: 2023-01-26 | B22: main | C22: 42 blocks | D22: raise beds M9, 10 to 2 blocks high
C23: 42 blocks Total
A24: 1/26/2023 Total
A25: 2023-02-04 | B25: gardens | C25: garden too wet to do much | D25: weeded sugar snaps O2, spread mulch, dug holes in A1 for potatoes
C26: garden too wet to do much Total
A27: 2/4/2023 Total
A28: 2023-03-16 | B28: Orchard | C28: control # 3 | D28: installed trellis irrigation O9-12
C29: control # 3 Total
A30: 3/16/2023 Total
A31: 2023-03-28 | B31: main | C31: added 4" compost without tilling soil | D31: Turned bed into NO-Dig bed, M14a,b & M11 a&b
C32: added 4" compost without tilling soil Total
A33: 3/28/2023 Total
A34: 2023-04-06 | B34: M17 | D34: weed cotton area
C35: Total
B36: Marquee | C36: add 6-2-4 | D36: weed marquee area
C37: add 6-2-4 Total
A38: 4/6/2023 Total
A39: 2023-04-15 | B39: Annex | C39: 2 sprinklers - Annex courtyard irrigation | D39: installed shed control of irrigation in Annex
C40: 2 sprinklers - Annex courtyard irrigation Total
A41: 4/15/2023 Total
A42: 2023-04-14 | B42: Orchard | C42: Orchard irrigation repaired by Daniels construction | D42: re-installed shed control of irrigation
C43: Orchard irrigation repaired by Daniels construction Total
A44: 4/14/2023 Total
A45: 2023-04-22 | B45: main | C45: moved water closer and in soil | D45: weed tree and fix water
C46: moved water closer and in soil Total
A47: 4/22/2023 Total
A48: 2023-05-11 | B48: main | C48: with water off, replaced valve diaphragm | D48: repaired irrigation valve for herb beds
C49: with water off, replaced valve diaphragm Total
A50: 5/11/2023 Total
A51: 2023-05-16 | B51: Arbor Tree 2016 | C51: cut open for return of 2016 class | D51: dug up 2016 time capsule
C52: cut open for return of 2016 class Total
A53: 5/16/2023 Total
A54: 2023-05-20 | B54: main | C54: prevent larvae and catepillar damage | D54: spray stems with neem,Bt mixture, M13,14,9,&5
C55: prevent larvae and catepillar damage Total
B56: O2 | C56: prep bed for sweet potatoes | D56: weed
C57: prep bed for sweet potatoes Total
B58: M6,M11 | C58: to prevent weed growth | D58: add compost to bare areas
C59: to prevent weed growth Total
A60: 5/20/2023 Total
A61: 2023-04-08 | B61: main | C61: behind grapes attached to fence | D61: Moved rain gauge into garden area from outside garden
C62: behind grapes attached to fence Total
A63: 4/8/2023 Total
A64: 2023-02-28 | B64: Arbor Tree 2016 | C64: site of time capsules for 2016 and 2023 | D64: Planted a Shumardi oak in place of 2016 tree that had died over last summer
C65: site of time capsules for 2016 and 2023 Total
A66: 2/28/2023 Total
A67: 2023-05-27 | B67: M7b | C67: chopped leaves | D67: add mulch to top to retard weeds
C68: chopped leaves Total
A69: 5/27/2023 Total
A70: 2023-06-15 | B70: Arbor trees playground | C70: replaced to stolen irrigation heads | D70: repaired irrigation
C71: replaced to stolen irrigation heads Total
B72: main,orchard,annex, arbor trees playground | C72: set watering to everyday from 3 days a week | D72: increased watering due to 100 degree days all week long
C73: set watering to everyday from 3 days a week Total
A74: 6/15/2023 Total
A75: 2023-06-22 | B75: Arbor trees playground | C75: to protect against mower damage | D75: installed a 4X4X8 boundary around tree
C76: to protect against mower damage Total
B77: main, outside fence | C77: broken connection repaired | D77: repaired sprinkler head damage
C78: broken connection repaired Total
A79: 6/22/2023 Total
A80: 2023-06-27 | B80: Arbor trees playground | C80: try to save tree by holding moisture | D80: weeded and added pine bark mulch
C81: try to save tree by holding moisture Total
A82: 6/27/2023 Total
A83: 2023-07-13 | B83: main | D83: filled in open seams with sealant, sealed membrane with adhesive
C84: Total
A85: 7/13/2023 Total
A86: Grand Total

Sheet Planting data
A1: =NOW() -> 2023-07-29T07:56:11.350 | B1: Plant
A3: Task | B3: plant
A6: date | B6: Produce | C6: location | D6: apply fert
A7: 2022-08-25 | B7: tomatoes | C7: M5 | D7: 2022-09-08
A8: 8/25/2022 Total
A9: 2022-09-03 | B9: beans, yard long | C9: M8 | D9: 2022-09-17
A10: 9/3/2022 Total
A11: 2022-09-13 | B11: peas, sugar snap | C11: M3 | D11: 2022-09-27
A12: 9/13/2022 Total
A13: 2022-09-15 | B13: broccoli | C13: M9 | D13: 2022-09-29
B14: cabbage | C14: O16 | D14: 2022-09-29
B15: carrots | C15: M13 | D15: 2022-09-29
B16: cilantro | C16: m2 | D16: 2022-09-29
B17: collards | C17: M6 | D17: 2022-09-29
B18: parsley & basil | C18: m2 | D18: 2022-09-29
A19: 9/15/2022 Total
A20: 2022-09-22 | B20: carrots | C20: M13 | D20: 2022-10-20
B21: cilantro, spider | C21: pots | D21: 2022-10-06
B22: milkweed, native & tropical | C22: M21 | D22: 2022-10-06
C23: M3 outside | D23: 2022-10-06
A24: 9/22/2022 Total
A25: 2022-09-29 | B25: beets | C25: M10 | D25: 2022-10-13
B26: carrots | C26: M13 | D26: 2022-10-13
B27: kale | C27: M15b | D27: 2022-10-13
B28: lettuce | C28: M6a | D28: 2022-10-13
B29: radish | C29: M13 | D29: 2022-10-13
C30: M15a | D30: 2022-10-13
B31: spinach | C31: O16 | D31: 2022-10-13
B32: turnips | C32: M7 | D32: 2022-10-13
A33: 9/29/2022 Total
A34: 2022-10-13 | B34: cabbage | C34: O15 | D34: 2022-10-27
A35: 10/13/2022 Total
A36: 2022-10-15 | B36: kale | C36: M5a | D36: 2022-10-29
B37: kohlrabi | C37: M14a | D37: 2022-10-29
A38: 10/15/2022 Total
A39: 2022-10-20 | B39: basil | C39: m2 | D39: 2022-11-03
B40: cauliflower | C40: O28,17 | D40: 2022-11-03
B41: spinach | C41: O16 | D41: 2022-11-03
B42: turnips | C42: M7a | D42: 2022-11-03
A43: 10/20/2022 Total
A44: 2022-10-22 | B44: turnips | C44: M7a | D44: 2022-11-05
A45: 10/22/2022 Total
A46: 2022-10-27 | B46: cabbage | C46: O17 | D46: 2022-11-10
B47: peas, sugar snap | C47: O2 (fence) | D47: 2022-11-10
B48: radish, watermelon | C48: M11a | D48: 2022-11-10
B49: sorrel, french | C49: Main | D49: 2022-11-10
A50: 10/27/2022 Total
A51: 2022-11-03 | B51: collards | C51: M15 | D51: 2022-11-17
B52: lettuce | C52: M16b | D52: 2022-11-17
B53: spinach | C53: M16a | D53: 2022-11-17
A54: 11/3/2022 Total
A55: 2022-11-10 | B55: dill | C55: A7 | D55: 2022-11-24
B56: lettuce | C56: M14a | D56: 2022-11-24
C57: O9 | D57: 2022-11-24
B58: radish | C58: A2 | D58: 2022-11-24
C59: A3 | D59: 2022-11-24
A60: 11/10/2022 Total
A61: 2022-11-17 | B61: leeks | C61: Main | D61: 2022-12-01
B62: lettuce | C62: M16b | D62: 2022-12-01
C63: O2 | D63: 2022-12-01
B64: radish | C64: M16a | D64: 2022-12-01
B65: spinach | C65: M16a | D65: 2022-12-01
B66: turnips | C66: M7b | D66: 2022-12-01
B67: sorrel, french | C67: M3 outside | D67: 2022-12-01
A68: 11/17/2022 Total
A69: 2022-12-01 | B69: onions, 1015Y | C69: A2 | D69: 2022-12-15
C70: A4 | D70: 2022-12-15
A71: 12/1/2022 Total
A72: 2022-12-08 | B72: onions, 1015Y | C72: A5 | D72: 2022-12-22
C73: A6 | D73: 2022-12-22
A74: 12/8/2022 Total
A75: 2022-12-15 | B75: onions, 1015Y | C75: M8, A7 | D75: 2022-12-29
A76: 12/15/2022 Total
A77: 2022-12-29 | B77: peas, sugar snap | C77: M3,8 | D77: 2023-01-12
B78: radish | C78: O7 | D78: 2023-01-12
A79: 12/29/2022 Total
A80: 2023-01-05 | B80: lettuce | C80: M11b | D80: 2023-01-19
C81: O6 | D81: 2023-01-19
B82: peas, sugar snap | C82: O2 | D82: 2023-01-19
B83: spinach | C83: M6 | D83: 2023-01-19
C84: O16 | D84: 2023-01-19
A85: 1/5/2023 Total
A86: 2023-01-03 | B86: radish | C86: O6 | D86: 2023-01-17
A87: 1/3/2023 Total
A88: 2023-01-12 | B88: lettuce | C88: O2 | D88: 2023-01-26
B89: onions, multiplying | C89: M11 | D89: 2023-01-26
B90: radish, watermelon | C90: M16b | D90: 2023-01-26
A91: 1/12/2023 Total
A92: 2023-01-19 | B92: Arugula | C92: M6b | D92: 2023-02-02
B93: onions, multiplying | C93: M7,10,14 | D93: 2023-02-02
B94: turnips | C94: M5b | D94: 2023-02-02
B95: flowers/acorn | C95: shed | D95: 2023-02-02
A96: 1/19/2023 Total
A97: 2023-02-07 | B97: potato, white | C97: A1 | D97: 2023-02-21
A98: 2/7/2023 Total
A99: 2023-02-09 | B99: potato, white | C99: O2 | D99: 2023-02-23
A100: 2/9/2023 Total
A101: 2023-02-16 | B101: zinnia | C101: M13 holes | D101: 2023-03-02
A102: 2/16/2023 Total
A103: 2023-02-23 | B103: dill | C103: O13,14 | D103: 2023-03-09
B104: lettuce | C104: main (holes) | D104: 2023-03-09
B105: radish, French Breakfast | C105: A3 | D105: 2023-03-09
A106: 2/23/2023 Total
A107: 2023-03-02 | B107: radish | C107: A3 | D107: 2023-03-16
C108: O5,O6 | D108: 2023-03-16
A109: 3/2/2023 Total
A110: 2023-03-09 | B110: tomato | C110: M13 | D110: 2023-03-23
C111: M5b | D111: 2023-03-23
B112: BEANS, bush | C112: M7 | D112: 2023-03-23
A113: 3/9/2023 Total
A114: 2023-03-16 | B114: peppers | C114: O28 | D114: 2023-03-30
A115: 3/16/2023 Total
A116: 2023-03-23 | B116: peppers | C116: M9 | D116: 2023-04-06
B117: tomatoes | C117: M5b | D117: 2023-04-06
B118: tomato | C118: m16 | D118: 2023-04-06
A119: 3/23/2023 Total
A120: 2023-03-30 | B120: squash | C120: M14a,b | D120: 2023-04-13
B121: Cucumbers, burpless tendergreens | C121: M15 a,b | D121: 2023-04-13
A122: 3/30/2023 Total
A123: 2023-04-06 | B123: Cucumbers, pickling | C123: O15 | D123: 2023-04-20
A124: 4/6/2023 Total
A125: 2023-04-13 | B125: Cucumbers, pickling | C125: O6 | D125: 2023-04-27
B126: Penta | C126: Marquee | D126: 2023-04-27
A127: 4/13/2023 Total
A128: 2023-04-20 | B128: Cucumbers, pickling | C128: M6 | D128: 2023-05-04
A129: 4/20/2023 Total
A130: 2023-04-27 | B130: strawberries | C130: M8,2 | D130: 2023-05-11
A131: 4/27/2023 Total
A132: 2023-04-29 | B132: okra | C132: M11a,b | D132: 2023-05-13
A133: 4/29/2023 Total
A134: 2023-05-11 | B134: okra | C134: O11,12 | D134: 2023-05-25
A135: 5/11/2023 Total
A136: 2023-05-18 | B136: okra | C136: O17 | D136: 2023-06-01
B137: sweet potatoes, Georgia jets | C137: A1-7 | D137: 2023-06-01
A138: 5/18/2023 Total
A139: 2023-05-25 | B139: beans, yard long | C139: M7b | D139: 2023-06-08
B140: okra | C140: O17 | D140: 2023-06-08
B141: sweet potatoes, Beauregard | C141: O2 | D141: 2023-06-08
A142: 5/25/2023 Total
A143: 2023-05-27 | B143: sweet potatoes | C143: O2 | D143: 2023-06-10
A144: 5/27/2023 Total
A145: 2023-07-11 | B145: beans, yard long | C145: M16,M3 | D145: 2023-07-25
A146: 7/11/2023 Total
A147: Grand Total

Sheet Fertilizing Data
A1: =NOW() -> 2023-07-29T07:56:11.350 | B1: Fertilize
A3: Task | B3: (Multiple Items)
A6: date | B6: Produce | C6: fert used | D6: location | E6: Next Application
A7: 2022-08-01 | B7: grapes | C7: microlife 6-2-4 | D7: M12 | E7: 2022-08-15
C8: microlife 6-2-4 Total
A9: 8/1/2022 Total
A10: 2022-08-27 | D10: main
C11: Total
A12: 8/27/2022 Total
A13: 2022-09-03 | B13: (blank) | D13: Annex
D14: Orchard
C15: Total
A16: 9/3/2022 Total
A17: 2022-09-08 | B17: (blank) | D17: weed control
C18: Total
A19: 9/8/2022 Total
A20: 2022-09-13 | B20: (blank) | D20: main
C21: Total
A22: 9/13/2022 Total
A23: 2022-09-17 | B23: (blank) | D23: main
D24: Orchard
C25: Total
A26: 9/17/2022 Total
A27: 2022-09-11 | B27: (blank) | D27: weed control
C28: Total
A29: 9/11/2022 Total
A30: 2022-09-22 | B30: grapes | C30: ammonium sulfate | D30: M4,12 | E30: 2022-10-06
C31: ammonium sulfate Total
A32: 9/22/2022 Total
A33: 2022-09-27 | B33: citrus trees | C33: microlife 6-2-4 | D33: Orchard Citrus | E33: 2022-10-11
C34: microlife 6-2-4 Total
B35: (blank) | D35: Orchard
C36: Total
A37: 9/27/2022 Total
A38: 2022-10-08 | B38: (blank) | D38: Orchard
C39: Total
A40: 10/8/2022 Total
A41: 2022-10-07 | B41: (blank) | D41: main
C42: Total
A43: 10/7/2022 Total
A44: 2022-10-18 | B44: beans, yard long | C44: microlife 6-2-4 | D44: M8 | E44: 2022-11-01
C45: microlife 6-2-4 Total
B46: beets | C46: microlife 6-2-4 | D46: M10 | E46: 2022-11-01
C47: microlife 6-2-4 Total
B48: broccoli | C48: microlife 6-2-4 | D48: M9 | E48: 2022-11-01
C49: microlife 6-2-4 Total
B50: cabbage | C50: microlife 6-2-4 | D50: O15 | E50: 2022-11-01
C51: microlife 6-2-4 Total
B52: carrots, danver | C52: microlife 6-2-4 | D52: M13 | E52: 2022-11-01
C53: microlife 6-2-4 Total
B54: cilantro, spider | C54: microlife 6-2-4 | D54: m2 | E54: 2022-11-01
C55: microlife 6-2-4 Total
B56: collards | C56: microlife 6-2-4 | D56: M6 | E56: 2022-11-01
C57: microlife 6-2-4 Total
B58: kale | C58: microlife 6-2-4 | D58: M15b | E58: 2022-11-01
C59: microlife 6-2-4 Total
B60: kohlrabi | C60: microlife 6-2-4 | D60: M14a | E60: 2022-11-01
C61: microlife 6-2-4 Total
B62: peas, sugar snap | C62: microlife 6-2-4 | D62: M3 | E62: 2022-11-01
C63: microlife 6-2-4 Total
B64: radish | C64: microlife 6-2-4 | D64: M13,15 | E64: 2022-11-01
C65: microlife 6-2-4 Total
B66: spinach | C66: microlife 6-2-4 | D66: O16 | E66: 2022-11-01
C67: microlife 6-2-4 Total
B68: tomatoes | C68: microlife 6-2-4 | D68: M5 | E68: 2022-11-01
C69: microlife 6-2-4 Total
B70: turnips | C70: microlife 6-2-4 | D70: M7 | E70: 2022-11-01
C71: microlife 6-2-4 Total
A72: 10/18/2022 Total
A73: 2022-10-22 | B73: (blank) | D73: main
D74: Orchard
C75: Total
A76: 10/22/2022 Total
A77: 2022-10-27 | B77: (blank) | D77: Main
D78: Orchard
C79: Total
A80: 10/27/2022 Total
A81: 2022-11-15 | B81: (blank) | D81: Annex
C82: Total
A83: 11/15/2022 Total
A84: 2022-12-01 | B84: (blank) | D84: Annex
C85: Total
A86: 12/1/2022 Total
A87: 2022-12-15 | B87: (blank) | D87: main
C88: Total
A89: 12/15/2022 Total
A90: 2022-12-23 | B90: (blank) | D90: gardens
C91: Total
A92: 12/23/2022 Total
A93: 2022-12-27 | B93: (blank) | D93: gardens
C94: Total
A95: 12/27/2022 Total
A96: 2022-12-29 | B96: onions, 1015Y | C96: 6-2-4 | D96: Annex | E96: 2023-01-12
C97: 6-2-4 Total
A98: 12/29/2022 Total
A99: 2023-01-05 | B99: (blank) | D99: M18,17
D100: Main
C101: Total
A102: 1/5/2023 Total
A103: 2023-01-07 | B103: (blank) | D103: Orchard
C104: Total
A105: 1/7/2023 Total
A106: 2023-01-12 | B106: (blank) | D106: M18
D107: m2
D108: Marquee
C109: Total
A110: 1/12/2023 Total
A111: 2023-01-19 | B111: (blank) | D111: O11,12
D112: O2/5,6/9,10
C113: Total
A114: 1/19/2023 Total
A115: 2023-01-14 | B115: onions, 1015Y | C115: max bloom | D115: Annex | E115: 2023-01-28
C116: max bloom Total
A117: 1/14/2023 Total
A118: 2023-01-23 | B118: (blank) | D118: Orchard
C119: Total
A120: 1/23/2023 Total
A121: 2023-01-26 | B121: (blank) | D121: Annex
D122: M9a&b
D123: main
D124: orchard/main
C125: Total
A126: 1/26/2023 Total
A127: 2023-02-04 | B127: (blank) | D127: gardens
C128: Total
A129: 2/4/2023 Total
A130: 2023-02-07 | B130: (blank) | D130: Orchard
C131: Total
A132: 2/7/2023 Total
A133: 2023-02-14 | B133: potato, white | D133: A1, O2
C134: Total
A135: 2/14/2023 Total
A136: 2023-02-23
C137: Total
B138: (blank)
C139: Total
A140: 2/23/2023 Total
A141: 2023-02-21 | B141: onions, 1015Y | C141: max bloom | D141: A1, O2 | E141: 2023-03-07
C142: max bloom Total
A143: 2/21/2023 Total
A144: 2023-03-02 | D144: main
C145: Total
B146: peas, sugar snap | C146: max bloom | D146: M3, M8 | E146: 2023-03-16
C147: max bloom Total
B148: strawberries | D148: M17
C149: Total
A150: 3/2/2023 Total
A151: 2023-03-09 | D151: M10
D152: m16
C154: Total
A155: 3/9/2023 Total
A156: 2023-03-16 | D156: Orchard
C157: Total
A158: 3/16/2023 Total
A159: 2023-03-21 | D159: Orchard
C160: Total
A161: 3/21/2023 Total
A162: 2023-03-28 | D162: main
C163: Total
A164: 3/28/2023 Total
A165: 2023-04-06 | D165: M17
D166: Marquee
D167: M6a, M11a
C168: Total
B169: cucumber | D169: M15b
C170: Total
A171: 4/6/2023 Total
A172: 2023-04-13 | D172: O17
C173: Total
A174: 4/13/2023 Total
A175: 2023-04-15 | D175: Annex
C176: Total
A177: 4/15/2023 Total
A178: 2023-04-14 | D178: Orchard
C179: Total
A180: 4/14/2023 Total
A181: 2023-04-22 | D181: main
C182: Total
A183: 4/22/2023 Total
A184: 2023-04-29 | D184: M2,8
C185: Total
D186: O15,5,3
C187: Total
A188: 4/29/2023 Total
A189: 2023-05-09 | D189: main
C190: Total
A191: 5/9/2023 Total
A192: 2023-05-11 | D192: main
C193: Total
A194: 5/11/2023 Total
A195: 2023-05-13 | D195: Annex
C196: Total
A197: 5/13/2023 Total
A198: 2023-05-16 | D198: Arbor Tree 2016
C199: Total
A200: 5/16/2023 Total
A201: 2023-05-18 | D201: Annex
C202: Total
A203: 5/18/2023 Total
A204: 2023-05-20 | D204: main
... 31 more rows

Sheet harvest calculator
A1: =NOW() -> 2023-07-29T07:56:11.350 | C1: Harvest
A3: date | B3: (All)
B5: Data | D5: Total | E5: total
A6: Produce | B6: Sum of lbs | C6: Sum of oz | D6: lbs | E6: Oz
A7: Arugula | B7: 0 | C7: 29 | D7: =IF(B7<0,"",(B7+(INT(C7/16)))) -> 1 | E7: =IF(C7=0,"",((16*(C7/16-(INT(C7/16)))))) -> 13
A8: basil | B8: 1 | C8: 8 | D8: =IF(B8<0,"",(B8+(INT(C8/16)))) -> 1 | E8: =IF(C8=0,"",(16*(C8/16-(INT(C8/16))))) -> 8
A9: beans, yard long | B9: 41 | C9: 188 | D9: 52 | E9: 12
A10: beets | B10: 20 | C10: 8 | D10: 20 | E10: 8
A11: broccoli | B11: 5 | C11: 85 | D11: 10 | E11: =IF(C11=0,"",(16*(C11/16-(INT(C11/16))))) -> 5
A12: cabbage | B12: 20 | C12: 33 | D12: 22 | E12: =IF(C12=0,"",(16*(C12/16-(INT(C12/16))))) -> 1
A13: carrots | B13: 1 | C13: 7 | D13: 1 | E13: 7
A14: carrots, danver | B14: 13 | C14: 68 | D14: 17 | E14: 4
A15: cauliflower | B15: 0 | C15: 7 | D15: 0 | E15: 7
A16: chives, garlic | B16: 5 | C16: 28 | D16: 6 | E16: 12
A17: cilantro | B17: 10 | C17: 18 | D17: 11 | E17: 2
A18: collards | B18: 28 | C18: 132 | D18: 36 | E18: 4
A19: cotton | B19: 1 | C19: 0 | D19: 1
A20: cucumbers | B20: 233 | C20: 148 | D20: 242 | E20: 4
A21: dill | B21: 0 | C21: 0 | D21: 0
A22: eggplant | B22: 113 | C22: 274 | D22: 130 | E22: 2
A23: grapes | B23: 104 | C23: 93 | D23: 109 | E23: 13
A24: kale | B24: 12 | C24: 76 | D24: 16 | E24: 12
A25: kohlrabi | B25: 9 | C25: 38 | D25: 11 | E25: 6
A26: kumquats | B26: 64 | C26: 15 | D26: 64 | E26: 15
A27: leeks | B27: 0 | C27: 0 | D27: 0
A28: lettuce | B28: 113 | C28: 226 | D28: 127 | E28: 2
A29: okra | B29: 59 | C29: 328 | D29: 79 | E29: 8
A30: onions | B30: 29 | C30: 5 | D30: 29 | E30: 5
A31: onions, multiplying | B31: 105 | C31: 120 | D31: 112 | E31: 8
A32: parsley & basil | B32: 0 | C32: 0 | D32: 0
A33: peanuts | B33: 0 | C33: 13 | D33: 0 | E33: 13
A34: peas, sugar snap | B34: 4 | C34: 71 | D34: 8 | E34: 7
A35: peppers | B35: 25 | C35: 157 | D35: 34 | E35: 13
A36: potato, sweet | B36: 697 | C36: 77 | D36: 701 | E36: 13
A37: potato, white | B37: 1 | C37: 0 | D37: 1
A38: radish | B38: 41 | C38: 145 | D38: 50 | E38: 1
A39: radish, watermelon | B39: 0 | C39: 0 | D39: 0
A40: spinach | B40: 4 | C40: 115 | D40: 11 | E40: 3
A41: squash | B41: 2 | C41: 17 | D41: 3 | E41: 1
A42: swiss chard | B42: 8 | C42: 30 | D42: 9 | E42: 14
A43: tomatoes | B43: 365 | C43: 162 | D43: 375 | E43: 2
A44: turnips | B44: 55 | C44: 183 | D44: 66 | E44: 7
A45: squash, summer | B45: 23 | C45: 150 | D45: 32 | E45: 6
A46: sorrel, french | B46: 0 | C46: 2 | D46: 0 | E46: 2
A47: onions, 1015Y | B47: 221 | C47: 47 | D47: 223 | E47: 15
A48: garlic, chives | B48: 1 | C48: 2 | D48: 1 | E48: 2
A49: cilantro, sorrel | B49: 0 | C49: 0 | D49: 0
A50: parsley | B50: 0 | C50: 14 | D50: 0 | E50: 14
A51: tomato | B51: 0 | C51: 0 | D51: 0
A52: BEANS, bush | B52: 3 | C52: 102 | D52: 9 | E52: 6
A53: mizuna | B53: 9 | C53: 38 | D53: 11 | E53: 6
A54: lettuce, red | B54: 6 | C54: 10 | D54: 6 | E54: 10
A55: radish, French Breakfast | B55: 0 | C55: 0 | D55: 0
A56: Cucumbers, burpless tendergreens | B56: 13 | C56: 22 | D56: 14 | E56: 6
A57: Cucumbers, pickling | B57: 103 | C57: 51 | D57: 106 | E57: 3
A58: onion, 1015Y | B58: 0 | C58: 3 | D58: 0 | E58: 3
A59: cucumber | B59: 20 | C59: 18 | D59: 21 | E59: 2
A60: Penta | B60: 0 | C60: 0 | D60: 0
A61: pepper, banana | B61: 0 | C61: 1 | D61: 0 | E61: 1
A62: peppers, banana | B62: 3 | C62: 27 | D62: =IF(B62<0,"",(B62+(INT(C62/16)))) -> 4 | E62: =IF(C62=0,"",(16*(C62/16-(INT(C62/16))))) -> 11
A63: broccoli leaves | B63: 1 | C63: 4 | D63: 1 | E63: 4
A64: potaoto, red | B64: 32 | C64: 1 | D64: =IF(B64<0,"",(B64+(INT(C64/16)))) -> 32 | E64: =IF(C64=0,"",(16*(C64/16-(INT(C64/16))))) -> 1
A65: potatoes, red | B65: 186 | C65: 25 | D65: 187 | E65: 9
A66: sweet potatoes, Georgia jets | B66: 0 | C66: 0 | D66: =IF(B66<0,"",(B66+(INT(C66/16)))) -> 0 | E66: =IF(C66=0,"",(16*(C66/16-(INT(C66/16))))) -> 
A67: cucumber, burpless | B67: 3 | C67: 14 | D67: 3 | E67: 14
A68: squash,summer | B68: 3 | C68: 6 | D68: 3 | E68: 6
A69: sweet potatoes, Beauregard | B69: 0 | C69: 0 | D69: 0
A70: cucumber, pickles | B70: 8 | C70: 30
A71: figs, celeste | B71: 0 | C71: 21
A72: sweet potatoes | B72: 0 | C72: 0
A73: tomatoes, cherry | B73: 17 | C73: 15
A74: figs,celeste & brown turkey | B74: 2 | C74: 5
A75: figs | B75: 9 | C75: 36
A76: peppers, jalapeno | B76: 1 | C76: 3
A77: cucucmbers | B77: 3 | C77: 2
A78: Grand Total | B78: 2855 | C78: 3553

Sheet Projects 22 - 23
A1: Category | B1: Project Specifics | C1: Goals Achieved | E1: What Next | I1: Notes
B2: Yearly produce #s | C2: (Aug21-May22) | E2: (Aug 22 - May 23)
A3: Unexpected Projects | E3: 2022-2023 plan
A4: Water Issues | B4: Orchard irrigation was non existent due to construction (dtc) | C4: a temporarily automated irrigation fix in-place (Mar 2022) but needs permanent setup once construction complete | E4: Once school construction is complete need to have irrigation re-connected to shed irrigation controller. School is supposed to be complete by start of 22-23, so sometime during fall try to get irrigation re-established The Orchard irrigation has been modified with new wiring to the Orchard and connected to the controller in the main garden shed ports 1-3 (April 13, 2023). | I4: Electric line was dug along sidewalk to module sidewalk and parking lot sidewalk to the big rock then under the fence into the soccer field and over to the orchard control area.
B5: Irrigation to Athletic field trees disrupted (again dtc) | C5: repaired March-April 2022 | E5: Irrigation to athletic field trees has been repaired and in working condition. | I5: issues reside with lawn care breaking off sprinkler heads when mowing.
B6: No water to Annex due to construction | C6: need to get school involved | E6: Need to get school to repair outside area irrigation (controller & water line.) After discussion with school maintenance, we connected the annex sprinkler (only) to the controller in the main garden shed. | I6: a line was buried between the red shed and under the sidewalk and annex wall connecting to the sprinkler valve just inside the annex wall area.
B7: No water to West side Arbor Day trees - lost chinkapin Oak | C7: need to get school involved | E7: school repaired beginning of March 2023.
B8: Major water leak in main garden | C8: repaired April 2022 | E8: done
B9: installed irrigation to beds 9-12 | C9: completed 3/16/23 | E9: done and controlled by irrigation center - main garden controller.
A10: Projects
A11: Orchard Shed | B11: finish flooring | C11: completed Aug 2021 | E11: done
B12: second solar light needed inside shed | C12: completed Mar 2022 | E12: done
B13: windows in shed doors vandalized | C13: repaired thank you Kristi & Bruce | E13: done
A15: Orchard area | B15: move beds due to increased boundary shading | C15: installed oval metal raised bed, 1 tier cinderblock raised bed,& 1 tier wood raised bed each with irrigation | E15: completed and in use
B16: remove dead citrus trees and replace | C16: done and new trees added include; Washington Navel Improved Meyer Lemon Hamlen orange Henderson Red Ruby Grapefruit | E16: done
B17: O-2 bed irrigation upgrade | C17: reconfigured spray heads and temporarily tapped into irrigation | E17: better but still needs tweaking - need better coverage control (Still needs attention).
E18: need additional irrigation to new citrus trees (grapefruit, orange trees, and lemon tree)
A20: Main gardens | B20: raised beds upgrade | C20: converted 3 wood N/S raised beds in middle of main garden to 3 - 2 tier E/W raised cinderblock beds with water outlets | E20: done, completd raised bed upgrade M9, M10
B21: pathway upgrades | C21: continuing to add pavers as opportunities present themselves | E21: this will continue until the wet areas in the main garden are covered with pavers - so ongoing
B22: remove dead citrus and replace | C22: done / new citrus improved Meyer Lemon Mandarin orange | E22: lost several of the newly planted citrus trees due to this years freeze (grapefruit, myer lemon, hamblen orange).
E23: coat benches and outdoor wood furniture with preservative
A24: Annex gardens | B24: maintain raised beds | C24: Bed A-1 restored Annex classroom furniture | E24: beds in this area need to be constructed of wood for safety reasons so this is an ongoing yearly project. Beds A5,6 repaired. Class room benches need repairing with new lumber | I24: Annex classroom benches need repair/replacement in some cases. They also need to be coated with preservative.
A26: Campus | B26: maintain school marque | C26: Maintained routinely | E26: Should the growers maintain this area, and the front beds as well?? We will continue to weed and replant the marque.
B27: butterfly beds | C27: destroyed by construction ? | E27: This bed area is gone, there is some replacement with outside the main garden flower areas - we have started a new pollinator bed in Annex and outside the main garden, waiting on school construction to replace pollinator beds that were next to modules
B28: front beds | C28: lawn service has taken over | E28: we are no longer involved in this area
B29: signage maintenance | C29: No activity this year. | E29: If we get time we will continue to try to get this done
A31: Garden Programs | B31: microlife promotion | C31: Great organization and execution of this promotion, Thank you Eric; distribution from Opperman home. | E31: done. Any thoughts or comments? We moved over 10,000 lbs of fertilizer contributing ~$2k for operations
B32: Arbor Day Tree (purchase, plant,and irrigate) | C32: Judy - executed a well organized program, Gudrun procured the tree. | E32: Do we wish to keep this activity going? It is nice and also fun to see the grads come back and open the capsule but there is a problem with maintaining the trees. We are pushed to keep them mulched, watering can be an issue, fencing around the trees can look pretty shabby. This activity is being retired. Planting areas inside the exercise area are ravaged by the students and lawn crew alike. Watering is problematic as there is frequent damage to the irrigation heads by students and lawn crew. Planting areas outside the exercise area are fully utilized.
A35: Trial Activities | B35: Crop leads | E35: I thought this worked well this last year. Are there more volunteers to participate in overseeing particular crops? We have a lot of things we do that require additional support. For instance the need to do pruning of the fruit trees and trees along the Orchard perimeter. A lot is being done in this area not to mention spraying for grass/weed control and liquid fertilizer. We could spread some of this out to prevent burn out of all leads.
B36: Sydney | C36: yard long beans, sugar snap peas, dill
B37: Anne, Denise | C37: pollinator beds
B38: Judy | C38: herbs
B39: Eric | C39: tomatoes, tomatillos, peppers, eggplant
B40: Denton | C40: grapes, citrus
B41: Phyllis | C41: carrots, flowers
B42: Hal | C42: potatoes, arbor day trees
B43: Backup responsibility holders | E43: Backup ….. Eric has takien on the tasks of the treasury and Kristi / MarySue have taken on the mowing and edge trimming of the Orchard area. I think I can say that both efforts are very greatly appreciated. Now the question is do we support this idea of Backup holders or should we be looking for another way to support these functions when someone needs to take a break? | I43: We need to formalize this approach so that we can spread out the work load.
B44: President, VP | C44: Lisa Marucci,Eric V.
B45: Treasurer | C45: Eric,(Hal)
B46: Secretary | C46: Kristi,??
B47: operations coordinator | C47: Denton,??
B48: student activity coordinator | C48: Gudrun, (Judy??)
B49: Orchard area grounds care | C49: Kristi, MarySue
B50: mulch and compost TEA | C50: Hal
